Workbook

Sheet de Bilt 2000-2018
B2: 2000 | C2: Ongewogen graaddagen | D2: Gewogen graaddagen | E2: Koeldagen | F2: Gem. etm. temperatuur | G2: Gem. relatieve vochtigheid
B3: maand | C3: K.d | D3: K.d | E3: K.d | F3: °C | G3: %
B4: 1 | C4: 423.8 | D4: 466.18 | E4: 0 | F4: 4.329032258 | G4: 89.25806452
B5: 2 | C5: 352.2 | D5: 387.42 | E5: 0 | F5: 5.855172414 | G5: 83.82758621
B6: 3 | C6: 335.4 | D6: 335.4 | E6: 0 | F6: 6.82 | G6: 85.66666667
B7: 4 | C7: 246.8 | D7: 197.44 | E7: 0 | F7: 9.773333333 | G7: 76.26666667
B8: 5 | C8: 117 | D8: 93.6 | E8: 15.7 | F8: 14.73225806 | G8: 75.48387097
B9: 6 | C9: 85.6 | D9: 68.48 | E9: 24.5 | F9: 15.96333333 | G9: 75.73333333
B10: 7 | C10: 84.3 | D10: 67.44 | E10: 2.8 | F10: 15.37096774 | G10: 83.58064516
B11: 8 | C11: 30.3 | D11: 24.24 | E11: 16.1 | F11: 17.54193548 | G11: 80.90322581
B12: 9 | C12: 67.4 | D12: 53.92 | E12: 0.4 | F12: 15.76666667 | G12: 86.26666667
B13: 10 | C13: 200.4 | D13: 200.4 | E13: 0 | F13: 11.53548387 | G13: 89.22580645
B14: 11 | C14: 307.7 | D14: 338.47 | E14: 0 | F14: 7.743333333 | G14: 89.2
B15: 12 | C15: 408.3 | D15: 449.13 | E15: 0 | F15: 5.240625 | G15: 87.75
B16: Totaal | C16: 2659.2 | D16: 2682.12 | E16: 59.5
B17: 2001 | C17: Ongewogen graaddagen | D17: Gewogen graaddagen | E17: Koeldagen | F17: Gem. etm. temperatuur | G17: Gem. relatieve vochtigheid
B18: maand | C18: K.d | D18: K.d | E18: K.d | F18: °C | G18: %
B19: 1 | C19: 477.2 | D19: 524.92 | E19: 0 | F19: 2.606451613 | G19: 90.16129032
B20: 2 | C20: 378.9 | D20: 416.79 | E20: 0 | F20: 4.467857143 | G20: 88
B21: 3 | C21: 404.7 | D21: 404.7 | E21: 0 | F21: 4.94516129 | G21: 85.5483871
B22: 4 | C22: 291.5 | D22: 233.2 | E22: 0 | F22: 8.283333333 | G22: 78.93333333
B23: 5 | C23: 122.7 | D23: 98.16 | E23: 3.1 | F23: 14.14193548 | G23: 71.64516129
B24: 6 | C24: 95.8 | D24: 76.64 | E24: 10.5 | F24: 15.15666667 | G24: 72.63333333
B25: 7 | C25: 31.5 | D25: 25.2 | E25: 48 | F25: 18.53225806 | G25: 78.32258065
B26: 8 | C26: 28 | D26: 22.4 | E26: 43 | F26: 18.48387097 | G26: 80.90322581
B27: 9 | C27: 137 | D27: 109.6 | E27: 0 | F27: 13.43333333 | G27: 87.13333333
B28: 10 | C28: 117.2 | D28: 117.2 | E28: 0 | F28: 14.21935484 | G28: 86.67741935
B29: 11 | C29: 326.4 | D29: 359.04 | E29: 0 | F29: 7.12 | G29: 90.4
B30: 12 | C30: 469.4 | D30: 516.34 | E30: 0 | F30: 2.858064516 | G30: 91.22580645
B31: Totaal | C31: 2880.3 | D31: 2904.19 | E31: 104.6
B32: 2002 | C32: Ongewogen graaddagen | D32: Gewogen graaddagen | E32: Koeldagen | F32: Gem. etm. temperatuur | G32: Gem. relatieve vochtigheid
B33: maand | C33: K.d | D33: K.d | E33: K.d | F33: °C | G33: %
B34: 1 | C34: 421 | D34: 463.1 | E34: 0 | F34: 4.419354839 | G34: 90.19354839
B35: 2 | C35: 304.8 | D35: 335.28 | E35: 0 | F35: 7.114285714 | G35: 79.21428571
B36: 3 | C36: 334.1 | D36: 334.1 | E36: 0 | F36: 7.222580645 | G36: 77.41935484
B37: 4 | C37: 260.1 | D37: 208.08 | E37: 0 | F37: 9.33 | G37: 73.86666667
B38: 5 | C38: 145.2 | D38: 116.16 | E38: 1.7 | F38: 13.37096774 | G38: 79.48387097
B39: 6 | C39: 57.5 | D39: 46 | E39: 12.6 | F39: 16.50333333 | G39: 76.9
B40: 7 | C40: 45.2 | D40: 36.16 | E40: 31.3 | F40: 17.5516129 | G40: 81.03225806
B41: 8 | C41: 11.9 | D41: 9.52 | E41: 30.4 | F41: 18.59677419 | G41: 84.64516129
B42: 9 | C42: 103.5 | D42: 82.8 | E42: 0.1 | F42: 14.55333333 | G42: 82.96666667
B43: 10 | C43: 264.7 | D43: 264.7 | E43: 0 | F43: 9.461290323 | G43: 85.29032258
B44: 11 | C44: 304 | D44: 334.4 | E44: 0 | F44: 7.866666667 | G44: 91.83333333
B45: 12 | C45: 468.4 | D45: 515.24 | E45: 0 | F45: 2.890322581 | G45: 88.83870968
B46: Totaal | C46: 2720.4 | D46: 2745.54 | E46: 76.1
B47: 2003 | C47: Ongewogen graaddagen | D47: Gewogen graaddagen | E47: Koeldagen | F47: Gem. etm. temperatuur | G47: Gem. relatieve vochtigheid
B48: maand | C48: K.d | D48: K.d | E48: K.d | F48: °C | G48: %
B49: 1 | C49: 480.7 | D49: 528.77 | E49: 0 | F49: 2.493548387 | G49: 87.09677419
B50: 2 | C50: 453.2 | D50: 498.52 | E50: 0 | F50: 1.814285714 | G50: 79.53571429
B51: 3 | C51: 331.2 | D51: 331.2 | E51: 0 | F51: 7.316129032 | G51: 77.64516129
B52: 4 | C52: 242.1 | D52: 193.68 | E52: 0 | F52: 9.93 | G52: 67.16666667
B53: 5 | C53: 154.4 | D53: 123.52 | E53: 5 | F53: 13.18064516 | G53: 78.80645161
B54: 6 | C54: 24.1 | D54: 19.28 | E54: 19.3 | F54: 17.84 | G54: 72.86666667
B55: 7 | C55: 18.4 | D55: 14.72 | E55: 44.3 | F55: 18.83548387 | G55: 73.29032258
B56: 8 | C56: 23.8 | D56: 19.04 | E56: 62.7 | F56: 19.25483871 | G56: 74.35483871
B57: 9 | C57: 124.5 | D57: 99.6 | E57: 2.1 | F57: 13.92 | G57: 81.46666667
B58: 10 | C58: 326.6 | D58: 326.6 | E58: 0 | F58: 7.464516129 | G58: 84.80645161
B59: 11 | C59: 300.1 | D59: 330.11 | E59: 0 | F59: 7.996666667 | G59: 89.53333333
B60: 12 | C60: 434 | D60: 477.4 | E60: 0 | F60: 4 | G60: 88.19354839
B61: Totaal | C61: 2913.1 | D61: 2962.44 | E61: 133.4
B62: 2004 | C62: Ongewogen graaddagen | D62: Gewogen graaddagen | E62: Koeldagen | F62: Gem. etm. temperatuur | G62: Gem. relatieve vochtigheid
B63: maand | C63: K.d | D63: K.d | E63: K.d | F63: °C | G63: %
B64: 1 | C64: 446.8 | D64: 491.48 | E64: 0 | F64: 3.587096774 | G64: 88.12903226
B65: 2 | C65: 382.2 | D65: 420.42 | E65: 0 | F65: 4.820689655 | G65: 83.55172414
B66: 3 | C66: 368.4 | D66: 368.4 | E66: 0 | F66: 5.72 | G66: 79
B67: 4 | C67: 234.7 | D67: 187.76 | E67: 0 | F67: 10.17666667 | G67: 73.1
B68: 5 | C68: 173.6 | D68: 138.88 | E68: 0 | F68: 12.4 | G68: 74.12903226
B69: 6 | C69: 85.7 | D69: 68.56 | E69: 7.1 | F69: 15.38 | G69: 77.56666667
B70: 7 | C70: 50.8 | D70: 40.64 | E70: 9.4 | F70: 16.66451613 | G70: 79.90322581
B71: 8 | C71: 27.4 | D71: 21.92 | E71: 59 | F71: 19.01935484 | G71: 79.5483871
B72: 9 | C72: 88.1 | D72: 70.48 | E72: 5.6 | F72: 15.25 | G72: 80.1
B73: 10 | C73: 205.9 | D73: 205.9 | E73: 0 | F73: 11.35806452 | G73: 84.25806452
B74: 11 | C74: 345.9 | D74: 380.49 | E74: 0 | F74: 6.47 | G74: 90.96666667
B75: 12 | C75: 470.7 | D75: 517.77 | E75: 0 | F75: 3.290625 | G75: 93.0625
B76: Totaal | C76: 2880.2 | D76: 2912.7 | E76: 81.1
B77: 2005 | C77: Ongewogen graaddagen | D77: Gewogen graaddagen | E77: Koeldagen | F77: Gem. etm. temperatuur | G77: Gem. relatieve vochtigheid
B78: maand | C78: K.d | D78: K.d | E78: K.d | F78: °C | G78: %
B79: 1 | C79: 395.1 | D79: 434.61 | E79: 0 | F79: 5.25483871 | G79: 85.5483871
B80: 2 | C80: 437.1 | D80: 480.81 | E80: 0 | F80: 2.389285714 | G80: 84.25
B81: 3 | C81: 355.2 | D81: 355.2 | E81: 0 | F81: 6.541935484 | G81: 83.48387097
B82: 4 | C82: 228.4 | D82: 182.72 | E82: 0 | F82: 10.38666667 | G82: 76.33333333
B83: 5 | C83: 178.7 | D83: 142.96 | E83: 10.5 | F83: 12.57419355 | G83: 74.90322581
B84: 6 | C84: 71.2 | D84: 56.96 | E84: 34 | F84: 16.76 | G84: 71.03333333
B85: 7 | C85: 36.8 | D85: 29.44 | E85: 26.1 | F85: 17.65483871 | G85: 80.35483871
B86: 8 | C86: 64.7 | D86: 51.76 | E86: 8.7 | F86: 16.19354839 | G86: 80.51612903
B87: 9 | C87: 84.3 | D87: 67.44 | E87: 15.8 | F87: 15.71666667 | G87: 82.9
B88: 10 | C88: 144.4 | D88: 144.4 | E88: 0 | F88: 13.34193548 | G88: 85.03225806
B89: 11 | C89: 334.5 | D89: 367.95 | E89: 0 | F89: 6.85 | G89: 90.03333333
B90: 12 | C90: 434.7 | D90: 478.17 | E90: 0 | F90: 3.977419355 | G90: 89.87096774
B91: Totaal | C91: 2765.1 | D91: 2792.42 | E91: 95.1
B92: 2006 | C92: Ongewogen graaddagen | D92: Gewogen graaddagen | E92: Koeldagen | F92: Gem. etm. temperatuur | G92: Gem. relatieve vochtigheid
B93: maand | C93: K.d | D93: K.d | E93: K.d | F93: °C | G93: %
B94: 1 | C94: 512.6 | D94: 563.86 | E94: 0 | F94: 1.464516129 | G94: 86.48387097
B95: 2 | C95: 423.1 | D95: 465.41 | E95: 0 | F95: 2.889285714 | G95: 87.82142857
B96: 3 | C96: 436.1 | D96: 436.1 | E96: 0 | F96: 3.932258065 | G96: 81.38709677
B97: 4 | C97: 270.5 | D97: 216.4 | E97: 0 | F97: 8.983333333 | G97: 77.9
B98: 5 | C98: 114.9 | D98: 91.92 | E98: 6.3 | F98: 14.49677419 | G98: 71.70967742
B99: 6 | C99: 68 | D99: 54.4 | E99: 28.3 | F99: 16.67666667 | G99: 70.23333333
B100: 7 | C100: 0.4 | D100: 0.32 | E100: 134 | F100: 22.30967742 | G100: 66.58064516
B101: 8 | C101: 59.1 | D101: 47.28 | E101: 8.1 | F101: 16.35483871 | G101: 86.96774194
B102: 9 | C102: 27.1 | D102: 21.68 | E102: 24.6 | F102: 17.91666667 | G102: 81.76666667
B103: 10 | C103: 137.1 | D103: 137.1 | E103: 0 | F103: 13.57741935 | G103: 87.22580645
B104: 11 | C104: 265.3 | D104: 291.83 | E104: 0 | F104: 9.156666667 | G104: 86.83333333
B105: 12 | C105: 356.3 | D105: 391.93 | E105: 0 | F105: 6.506451613 | G105: 87.93548387
B106: Totaal | C106: 2670.5 | D106: 2718.23 | E106: 201.3
B107: 2007 | C107: Ongewogen graaddagen | D107: Gewogen graaddagen | E107: Koeldagen | F107: Gem. etm. temperatuur | G107: Gem. relatieve vochtigheid
B108: maand | C108: K.d | D108: K.d | E108: K.d | F108: °C | G108: %
B109: 1 | C109: 338.1 | D109: 371.91 | E109: 0 | F109: 7.093548387 | G109: 84.22580645
B110: 2 | C110: 335 | D110: 368.5 | E110: 0 | F110: 6.035714286 | G110: 87.57142857
B111: 3 | C111: 311.1 | D111: 311.1 | E111: 0 | F111: 7.964516129 | G111: 77.48387097
B112: 4 | C112: 151.8 | D112: 121.44 | E112: 3.5 | F112: 13.05666667 | G112: 66.66666667
B113: 5 | C113: 121.5 | D113: 97.2 | E113: 1.3 | F113: 14.12258065 | G113: 77.03225806
B114: 6 | C114: 33.9 | D114: 27.12 | E114: 18.2 | F114: 17.47666667 | G114: 82.06666667
B115: 7 | C115: 46.1 | D115: 36.88 | E115: 15.4 | F115: 17.00967742 | G115: 81.48387097
B116: 8 | C116: 41.7 | D116: 33.36 | E116: 14.1 | F116: 17.10967742 | G116: 80.29032258
B117: 9 | C117: 126.4 | D117: 101.12 | E117: 0 | F117: 13.78666667 | G117: 86.83333333
B118: 10 | C118: 245.9 | D118: 245.9 | E118: 0 | F118: 10.06774194 | G118: 88.25806452
B119: 11 | C119: 332.7 | D119: 365.97 | E119: 0 | F119: 6.91 | G119: 86.6
B120: 12 | C120: 440.9 | D120: 484.99 | E120: 0 | F120: 3.777419355 | G120: 89
B121: Totaal | C121: 2525.1 | D121: 2565.49 | E121: 52.5
B122: 2008 | C122: Ongewogen graaddagen | D122: Gewogen graaddagen | E122: Koeldagen | F122: Gem. etm. temperatuur | G122: Gem. relatieve vochtigheid
B123: maand | C123: K.d | D123: K.d | E123: K.d | F123: °C | G123: %
B124: 1 | C124: 356.4 | D124: 392.04 | E124: 0 | F124: 6.503225806 | G124: 85.58064516
B125: 2 | C125: 373 | D125: 410.3 | E125: 0 | F125: 5.064285714 | G125: 80.42857143
B126: 3 | C126: 366.2 | D126: 366.2 | E126: 0 | F126: 5.838709677 | G126: 81.58064516
B127: 4 | C127: 275.6 | D127: 220.48 | E127: 0 | F127: 8.813333333 | G127: 75.63333333
B128: 5 | C128: 87.3 | D128: 69.84 | E128: 12.7 | F128: 15.59354839 | G128: 66.09677419
B129: 6 | C129: 60.7 | D129: 48.56 | E129: 13.2 | F129: 16.41666667 | G129: 75.13333333
B130: 7 | C130: 38.1 | D130: 30.48 | E130: 32.7 | F130: 17.82580645 | G130: 79.03225806
B131: 8 | C131: 31.8 | D131: 25.44 | E131: 16.4 | F131: 17.50322581 | G131: 82.06451613
B132: 9 | C132: 128.2 | D132: 102.56 | E132: 4.8 | F132: 13.88666667 | G132: 82.83333333
B133: 10 | C133: 238 | D133: 238 | E133: 0 | F133: 10.32258065 | G133: 86.41935484
B134: 11 | C134: 330 | D134: 363 | E134: 0 | F134: 7 | G134: 89.33333333
B135: 12 | C135: 499.6 | D135: 549.56 | E135: 0 | F135: 2.3875 | G135: 89.4375
B136: Totaal | C136: 2784.9 | D136: 2816.46 | E136: 79.8
B137: 2009 | C137: Ongewogen graaddagen | D137: Gewogen graaddagen | E137: Koeldagen | F137: Gem. etm. temperatuur | G137: Gem. relatieve vochtigheid
B138: maand | C138: K.d | D138: K.d | E138: K.d | F138: °C | G138: %
B139: 1 | C139: 533.3 | D139: 586.63 | E139: 0 | F139: 0.7967741935 | G139: 86.25806452
B140: 2 | C140: 411.4 | D140: 452.54 | E140: 0 | F140: 3.307142857 | G140: 87.5
B141: 3 | C141: 361.9 | D141: 361.9 | E141: 0 | F141: 6.325806452 | G141: 80.67741935
B142: 4 | C142: 174.7 | D142: 139.76 | E142: 0 | F142: 12.17666667 | G142: 75.03333333
B143: 5 | C143: 129.8 | D143: 103.84 | E143: 1.3 | F143: 13.85483871 | G143: 72.25806452
B144: 6 | C144: 85.3 | D144: 68.24 | E144: 14.6 | F144: 15.64333333 | G144: 74.73333333
B145: 7 | C145: 26.4 | D145: 21.12 | E145: 28.9 | F145: 18.08064516 | G145: 75.48387097
B146: 8 | C146: 18.3 | D146: 14.64 | E146: 32.4 | F146: 18.45483871 | G146: 75.29032258
B147: 9 | C147: 91.6 | D147: 73.28 | E147: 0.5 | F147: 14.96333333 | G147: 82.03333333
B148: 10 | C148: 226.5 | D148: 226.5 | E148: 0 | F148: 10.69354839 | G148: 84.51612903
B149: 11 | C149: 255.8 | D149: 281.38 | E149: 0 | F149: 9.473333333 | G149: 86.6
B150: 12 | C150: 489 | D150: 537.9 | E150: 0 | F150: 2.225806452 | G150: 87.06451613
B151: Totaal | C151: 2804 | D151: 2867.73 | E151: 77.7
B152: 2010 | C152: Ongewogen graaddagen | D152: Gewogen graaddagen | E152: Koeldagen | F152: Gem. etm. temperatuur | G152: Gem. relatieve vochtigheid
B153: maand | C153: K.d | D153: K.d | E153: K.d | F153: °C | G153: %
B154: 1 | C154: 572.1 | D154: 629.31 | E154: 0 | F154: -0.4548387097 | G154: 87.19354839
B155: 2 | C155: 459.2 | D155: 505.12 | E155: 0 | F155: 1.6 | G155: 84.71428571
B156: 3 | C156: 358.5 | D156: 358.5 | E156: 0 | F156: 6.435483871 | G156: 76.25806452
B157: 4 | C157: 248.3 | D157: 198.64 | E157: 0 | F157: 9.723333333 | G157: 68.36666667
B158: 5 | C158: 232.7 | D158: 186.16 | E158: 0 | F158: 10.49354839 | G158: 75.67741935
B159: 6 | C159: 63.2 | D159: 50.56 | E159: 16.4 | F159: 16.44 | G159: 70.73333333
B160: 7 | C160: 9.4 | D160: 7.52 | E160: 67.5 | F160: 19.87419355 | G160: 70.32258065
B161: 8 | C161: 48.4 | D161: 38.72 | E161: 10.8 | F161: 16.78709677 | G161: 80.22580645
B162: 9 | C162: 133.8 | D162: 107.04 | E162: 0.4 | F162: 13.55333333 | G162: 84.13333333
B163: 10 | C163: 235.7 | D163: 235.7 | E163: 0.2 | F163: 10.4 | G163: 85.8
B164: 11 | C164: 365.8 | D164: 402.4 | E164: 0 | F164: 5.8 | G164: 89.8
B165: 12 | C165: 593.5 | D165: 652.9 | E165: 0 | F165: -1.1 | G165: 90
B166: Totaal | C166: =SUM(C154:C165) -> 3320.6 | D166: =SUM(D154:D165) -> 3372.57 | E166: =SUM(E154:E165) -> 95.3
B167: 2011 | C167: Ongewogen graaddagen | D167: Gewogen graaddagen | E167: Koeldagen | F167: Gem. etm. temperatuur | G167: Gem. relatieve vochtigheid
B168: maand | C168: K.d | D168: K.d | E168: K.d | F168: °C | G168: %
B169: 1 | C169: 448.9 | D169: 493.8 | E169: 0 | F169: 3.5 | G169: 90.1
B170: 2 | C170: 375.8 | D170: 413.38 | E170: 0 | F170: 4.578571429 | G170: 86.46428571
B171: 3 | C171: 370.5 | D171: 370.5 | E171: 0 | F171: 6.048387097 | G171: 80
B172: 4 | C172: 147.6 | D172: 118.08 | E172: 1.1 | F172: 13.11666667 | G172: 69.93333333
B173: 5 | C173: 131.5 | D173: 105.2 | E173: 6.7 | F173: 13.97419355 | G173: 68.35483871
B174: 6 | C174: 74.4 | D174: 59.52 | E174: 17.9 | F174: 16.11666667 | G174: 75.7
B175: 7 | C175: 66.4 | D175: 53.12 | E175: 1 | F175: 15.89032258 | G175: 78
B176: 8 | C176: 45 | D176: 36 | E176: 10.5 | F176: 16.88709677 | G176: 82.25806452
B177: 9 | C177: 76.8 | D177: 61.44 | E177: 6 | F177: 15.64 | G177: 83.23333333
B178: 10 | C178: 204.1 | D178: 204.1 | E178: 0.1 | F178: 11.41935484 | G178: 83.70967742
B179: 11 | C179: 324.3 | D179: 356.73 | E179: 0 | F179: 7.19 | G179: 90.56666667
B180: 12 | C180: 357.1 | D180: 392.81 | E180: 0 | F180: 6.480645161 | G180: 83.35483871
B181: Totaal | C181: =SUM(C169:C180) -> 2622.4 | D181: =SUM(D169:D180) -> 2664.68 | E181: =SUM(E169:E180) -> 43.3
B182: 2012 | C182: Ongewogen graaddagen | D182: Gewogen graaddagen | E182: Koeldagen | F182: Gem. etm. temperatuur | G182: Gem. relatieve vochtigheid
B183: maand | C183: K.d | D183: K.d | E183: K.d | F183: °C | G183: %
B184: 1 | C184: 406.7 | D184: 447.37 | E184: 0 | F184: 4.880645161 | G184: 84.38709677
B185: 2 | C185: 498.8 | D185: 548.68 | E185: 0 | F185: 0.8 | G185: 81.48275862
B186: 3 | C186: 300.9 | D186: 300.9 | E186: 0 | F186: 8.293548387 | G186: 81.77419355
B187: 4 | C187: 288.5 | D187: 230.8 | E187: 0 | F187: 8.383333333 | G187: 78.6
B188: 5 | C188: 129.2 | D188: 103.36 | E188: 19.2 | F188: 14.4516129 | G188: 75.51612903
B189: 6 | C189: 100.5 | D189: 80.4 | E189: 6.5 | F189: 14.86666667 | G189: 75.73333333
B190: 7 | C190: 47.7 | D190: 38.16 | E190: 24.6 | F190: 17.25483871 | G190: 76.48387097
B191: 8 | C191: 21 | D191: 16.8 | E191: 35.2 | F191: 18.45806452 | G191: 77.64516129
B192: 9 | C192: 116.5 | D192: 93.2 | E192: 1.1 | F192: 14.15333333 | G192: 80.6
B193: 10 | C193: 232.4 | D193: 232.4 | E193: 0 | F193: 10.50322581 | G193: 85
B194: 11 | C194: 334.8 | D194: 368.28 | E194: 0 | F194: 6.84 | G194: 89.13333333
B195: 12 | C195: 401.8 | D195: 441.98 | E195: 0 | F195: 5.038709677 | G195: 89.38709677
B196: Totaal | C196: =SUM(C184:C195) -> 2878.8 | D196: =SUM(D184:D195) -> 2902.33 | E196: =SUM(E184:E195) -> 86.6
B197: 2013 | C197: Ongewogen graaddagen | D197: Gewogen graaddagen | E197: Koeldagen | F197: Gem. etm. temperatuur | G197: Gem. relatieve vochtigheid
B198: maand | C198: K.d | D198: K.d | E198: K.d | F198: °C | G198: %
B199: 1 | C199: 495.5 | D199: 545.05 | E199: 0 | F199: 2.016129032 | G199: 84.90322581
B200: 2 | C200: 457.5 | D200: 503.25 | E200: 0 | F200: 1.660714286 | G200: 82.07142857
B201: 3 | C201: 481.9 | D201: 481.9 | E201: 0 | F201: 2.45483871 | G201: 68.83870968
... 85 more rows

Sheet De Kooy 2000-2018
B2: 2000 | C2: Ongewogen graaddagen | D2: Gewogen graaddagen | E2: Koeldagen | F2: Gem. etm. temperatuur | G2: Gem. relatieve vochtigheid
B3: maand | C3: K.d | D3: K.d | E3: K.d | F3: °C | G3: %
B4: 1 | C4: 400.3 | D4: 440.33 | E4: 0 | F4: 5.087096774 | G4: 91.4516129
B5: 2 | C5: 353.2 | D5: 388.52 | E5: 0 | F5: 5.820689655 | G5: 85.86206897
B6: 3 | C6: 344.7 | D6: 344.7 | E6: 0 | F6: 6.51 | G6: 86
B7: 4 | C7: 278.7 | D7: 222.96 | E7: 0 | F7: 8.71 | G7: 80.96666667
B8: 5 | C8: 144.1 | D8: 115.28 | E8: 4.9 | F8: 13.50967742 | G8: 80.5483871
B9: 6 | C9: 108.7 | D9: 86.96 | E9: 13.9 | F9: 14.84 | G9: 77.2
B10: 7 | C10: 101.2 | D10: 80.96 | E10: 0 | F10: 14.73548387 | G10: 82.35483871
B11: 8 | C11: 29.6 | D11: 23.68 | E11: 9.6 | F11: 17.35483871 | G11: 79.32258065
B12: 9 | C12: 67.3 | D12: 53.84 | E12: 0.4 | F12: 15.77 | G12: 86.46666667
B13: 10 | C13: 187.9 | D13: 187.9 | E13: 0 | F13: 11.93870968 | G13: 87.80645161
B14: 11 | C14: 294.9 | D14: 324.39 | E14: 0 | F14: 8.17 | G14: 89.7
B15: 12 | C15: 395.9 | D15: 435.49 | E15: 0 | F15: 5.628125 | G15: 88.34375
B16: Totaal | C16: 2706.5 | D16: 2705.01 | E16: 28.8
B17: 2001 | C17: Ongewogen graaddagen | D17: Gewogen graaddagen | E17: Koeldagen | F17: Gem. etm. temperatuur | G17: Gem. relatieve vochtigheid
B18: maand | C18: K.d | D18: K.d | E18: K.d | F18: °C | G18: %
B19: 1 | C19: 463.8 | D19: 510.18 | E19: 0 | F19: 3.038709677 | G19: 93.77419355
B20: 2 | C20: 389.9 | D20: 428.89 | E20: 0 | F20: 4.075 | G20: 91.32142857
B21: 3 | C21: 424.8 | D21: 424.8 | E21: 0 | F21: 4.296774194 | G21: 89.09677419
B22: 4 | C22: 308.1 | D22: 246.48 | E22: 0 | F22: 7.73 | G22: 81.56666667
B23: 5 | C23: 169.2 | D23: 135.36 | E23: 0 | F23: 12.54193548 | G23: 80.29032258
B24: 6 | C24: 112.8 | D24: 90.24 | E24: 2.6 | F24: 14.32666667 | G24: 75.83333333
B25: 7 | C25: 28.4 | D25: 22.72 | E25: 33.5 | F25: 18.16451613 | G25: 76.64516129
B26: 8 | C26: 21.6 | D26: 17.28 | E26: 32.6 | F26: 18.35483871 | G26: 79.06451613
B27: 9 | C27: 118.5 | D27: 94.8 | E27: 0 | F27: 14.05 | G27: 82.13333333
B28: 10 | C28: 105.2 | D28: 105.2 | E28: 0 | F28: 14.60645161 | G28: 85.4516129
B29: 11 | C29: 273.4 | D29: 300.74 | E29: 0 | F29: 8.886666667 | G29: 83.26666667
B30: 12 | C30: 417.2 | D30: 458.92 | E30: 0 | F30: 4.541935484 | G30: 87.22580645
B31: Totaal | C31: 2832.9 | D31: 2835.61 | E31: 68.7
B32: 2002 | C32: Ongewogen graaddagen | D32: Gewogen graaddagen | E32: Koeldagen | F32: Gem. etm. temperatuur | G32: Gem. relatieve vochtigheid
B33: maand | C33: K.d | D33: K.d | E33: K.d | F33: °C | G33: %
B34: 1 | C34: 409.1 | D34: 450.01 | E34: 0 | F34: 4.803225806 | G34: 90.74193548
B35: 2 | C35: 312 | D35: 343.2 | E35: 0 | F35: 6.857142857 | G35: 83
B36: 3 | C36: 337.8 | D36: 337.8 | E36: 0 | F36: 7.103225806 | G36: 81.83870968
B37: 4 | C37: 265.5 | D37: 212.4 | E37: 0 | F37: 9.15 | G37: 80.3
B38: 5 | C38: 165.6 | D38: 132.48 | E38: 0.1 | F38: 12.66129032 | G38: 83.22580645
B39: 6 | C39: 70.6 | D39: 56.48 | E39: 7.3 | F39: 15.89 | G39: 77.43333333
B40: 7 | C40: 49.9 | D40: 39.92 | E40: 20.4 | F40: 17.0483871 | G40: 80.41935484
B41: 8 | C41: 6.8 | D41: 5.44 | E41: 39.9 | F41: 19.06774194 | G41: 84.29032258
B42: 9 | C42: 66 | D42: 52.8 | E42: 2.6 | F42: 15.88666667 | G42: 79.9
B43: 10 | C43: 247.9 | D43: 247.9 | E43: 0 | F43: 10.00322581 | G43: 82.93548387
B44: 11 | C44: 297.8 | D44: 327.58 | E44: 0 | F44: 8.073333333 | G44: 92.4
B45: 12 | C45: 487 | D45: 535.7 | E45: 0 | F45: 2.290322581 | G45: 92.03225806
B46: Totaal | C46: 2716 | D46: 2741.71 | E46: 70.3
B47: 2003 | C47: Ongewogen graaddagen | D47: Gewogen graaddagen | E47: Koeldagen | F47: Gem. etm. temperatuur | G47: Gem. relatieve vochtigheid
B48: maand | C48: K.d | D48: K.d | E48: K.d | F48: °C | G48: %
B49: 1 | C49: 453.3 | D49: 498.63 | E49: 0 | F49: 3.377419355 | G49: 89.4516129
B50: 2 | C50: 445.2 | D50: 489.72 | E50: 0 | F50: 2.1 | G50: 83.64285714
B51: 3 | C51: 351.7 | D51: 351.7 | E51: 0 | F51: 6.65483871 | G51: 83.19354839
B52: 4 | C52: 257.6 | D52: 206.08 | E52: 0 | F52: 9.413333333 | G52: 73.2
B53: 5 | C53: 165.5 | D53: 132.4 | E53: 0 | F53: 12.66129032 | G53: 80.06451613
B54: 6 | C54: 41.5 | D54: 33.2 | E54: 10.4 | F54: 16.96333333 | G54: 76.7
B55: 7 | C55: 20.3 | D55: 16.24 | E55: 31.2 | F55: 18.3516129 | G55: 78.25806452
B56: 8 | C56: 13.2 | D56: 10.56 | E56: 46.6 | F56: 19.07741935 | G56: 74.90322581
B57: 9 | C57: 81.3 | D57: 65.04 | E57: 0.5 | F57: 15.30666667 | G57: 76.16666667
B58: 10 | C58: 278.1 | D58: 278.1 | E58: 0 | F58: 9.029032258 | G58: 78.61290323
B59: 11 | C59: 295.1 | D59: 324.61 | E59: 0 | F59: 8.163333333 | G59: 90.93333333
B60: 12 | C60: 394.7 | D60: 434.17 | E60: 0 | F60: 5.267741935 | G60: 86.80645161
B61: Totaal | C61: 2797.5 | D61: 2840.45 | E61: 88.7
B62: 2004 | C62: Ongewogen graaddagen | D62: Gewogen graaddagen | E62: Koeldagen | F62: Gem. etm. temperatuur | G62: Gem. relatieve vochtigheid
B63: maand | C63: K.d | D63: K.d | E63: K.d | F63: °C | G63: %
B64: 1 | C64: 423.3 | D64: 465.63 | E64: 0 | F64: 4.34516129 | G64: 89.09677419
B65: 2 | C65: 382.9 | D65: 421.19 | E65: 0 | F65: 4.796551724 | G65: 87.27586207
B66: 3 | C66: 368.9 | D66: 368.9 | E66: 0 | F66: 5.703333333 | G66: 82.96666667
B67: 4 | C67: 240.5 | D67: 192.4 | E67: 0 | F67: 9.983333333 | G67: 77.2
B68: 5 | C68: 194.6 | D68: 155.68 | E68: 0 | F68: 11.72258065 | G68: 77.4516129
B69: 6 | C69: 98.9 | D69: 79.12 | E69: 2.5 | F69: 14.78666667 | G69: 79.3
B70: 7 | C70: 54 | D70: 43.2 | E70: 7.7 | F70: 16.50645161 | G70: 79.64516129
B71: 8 | C71: 21.6 | D71: 17.28 | E71: 47.5 | F71: 18.83548387 | G71: 79.29032258
B72: 9 | C72: 69.9 | D72: 55.92 | E72: 2 | F72: 15.73666667 | G72: 76.06666667
B73: 10 | C73: 191.6 | D73: 191.6 | E73: 0 | F73: 11.81935484 | G73: 81.80645161
B74: 11 | C74: 300.3 | D74: 330.33 | E74: 0 | F74: 7.99 | G74: 84.06666667
B75: 12 | C75: 417 | D75: 458.7 | E75: 0 | F75: 4.96875 | G75: 89.40625
B76: Totaal | C76: 2763.5 | D76: 2779.95 | E76: 59.7
B77: 2005 | C77: Ongewogen graaddagen | D77: Gewogen graaddagen | E77: Koeldagen | F77: Gem. etm. temperatuur | G77: Gem. relatieve vochtigheid
B78: maand | C78: K.d | D78: K.d | E78: K.d | F78: °C | G78: %
B79: 1 | C79: 375.3 | D79: 412.83 | E79: 0 | F79: 5.893548387 | G79: 83.64516129
B80: 2 | C80: 418.5 | D80: 460.35 | E80: 0 | F80: 3.053571429 | G80: 84.60714286
B81: 3 | C81: 382.9 | D81: 382.9 | E81: 0 | F81: 5.648387097 | G81: 86.29032258
B82: 4 | C82: 259.4 | D82: 207.52 | E82: 0 | F82: 9.353333333 | G82: 81.93333333
B83: 5 | C83: 203.2 | D83: 162.56 | E83: 2.4 | F83: 11.52258065 | G83: 79.4516129
B84: 6 | C84: 98.6 | D84: 78.88 | E84: 19.2 | F84: 15.35333333 | G84: 75.5
B85: 7 | C85: 44.5 | D85: 35.6 | E85: 6.9 | F85: 16.78709677 | G85: 81.93548387
B86: 8 | C86: 63.6 | D86: 50.88 | E86: 7.8 | F86: 16.2 | G86: 81.16129032
B87: 9 | C87: 62.7 | D87: 50.16 | E87: 13.1 | F87: 16.34666667 | G87: 83.03333333
B88: 10 | C88: 132.5 | D88: 132.5 | E88: 0 | F88: 13.72580645 | G88: 86.4516129
B89: 11 | C89: 286.5 | D89: 315.15 | E89: 0 | F89: 8.45 | G89: 85.3
B90: 12 | C90: 394.3 | D90: 433.73 | E90: 0 | F90: 5.280645161 | G90: 87.35483871
B91: Totaal | C91: 2722 | D91: 2723.06 | E91: 49.4
B92: 2006 | C92: Ongewogen graaddagen | D92: Gewogen graaddagen | E92: Koeldagen | F92: Gem. etm. temperatuur | G92: Gem. relatieve vochtigheid
B93: maand | C93: K.d | D93: K.d | E93: K.d | F93: °C | G93: %
B94: 1 | C94: 495.1 | D94: 544.61 | E94: 0 | F94: 2.029032258 | G94: 88.16129032
B95: 2 | C95: 413.7 | D95: 455.07 | E95: 0 | F95: 3.225 | G95: 88.67857143
B96: 3 | C96: 452.3 | D96: 452.3 | E96: 0 | F96: 3.409677419 | G96: 82.5483871
B97: 4 | C97: 305.3 | D97: 244.24 | E97: 0 | F97: 7.823333333 | G97: 81.9
B98: 5 | C98: 142 | D98: 113.6 | E98: 1.2 | F98: 13.45806452 | G98: 74.58064516
B99: 6 | C99: 92.8 | D99: 74.24 | E99: 18.9 | F99: 15.53666667 | G99: 73.66666667
B100: 7 | C100: 2.1 | D100: 1.68 | E100: 91.2 | F100: 20.87419355 | G100: 74.96774194
B101: 8 | C101: 35 | D101: 28 | E101: 6.2 | F101: 17.07096774 | G101: 80.41935484
B102: 9 | C102: 18 | D102: 14.4 | E102: 23.7 | F102: 18.19 | G102: 79.83333333
B103: 10 | C103: 118 | D103: 118 | E103: 0 | F103: 14.19354839 | G103: 82.25806452
B104: 11 | C104: 232.4 | D104: 255.64 | E104: 0 | F104: 10.25333333 | G104: 82.96666667
B105: 12 | C105: 318.9 | D105: 350.79 | E105: 0 | F105: 7.712903226 | G105: 86.93548387
B106: Totaal | C106: 2625.6 | D106: 2652.57 | E106: 141.2
B107: 2007 | C107: Ongewogen graaddagen | D107: Gewogen graaddagen | E107: Koeldagen | F107: Gem. etm. temperatuur | G107: Gem. relatieve vochtigheid
B108: maand | C108: K.d | D108: K.d | E108: K.d | F108: °C | G108: %
B109: 1 | C109: 322.6 | D109: 354.86 | E109: 0 | F109: 7.593548387 | G109: 85.64516129
B110: 2 | C110: 335 | D110: 368.5 | E110: 0 | F110: 6.035714286 | G110: 89.71428571
B111: 3 | C111: 312.3 | D111: 312.3 | E111: 0 | F111: 7.925806452 | G111: 83.96774194
B112: 4 | C112: 190.6 | D112: 152.48 | E112: 0.2 | F112: 11.65333333 | G112: 79
B113: 5 | C113: 160.5 | D113: 128.4 | E113: 0 | F113: 12.82258065 | G113: 83.32258065
B114: 6 | C114: 55.6 | D114: 44.48 | E114: 2.8 | F114: 16.24 | G114: 85.53333333
B115: 7 | C115: 48.3 | D115: 38.64 | E115: 2.7 | F115: 16.52903226 | G115: 82.32258065
B116: 8 | C116: 34.8 | D116: 27.84 | E116: 9.9 | F116: 17.19677419 | G116: 79.12903226
B117: 9 | C117: 96 | D117: 76.8 | E117: 0 | F117: 14.8 | G117: 79.76666667
B118: 10 | C118: 217.2 | D118: 217.2 | E118: 0 | F118: 10.99354839 | G118: 82.77419355
B119: 11 | C119: 300.1 | D119: 330.11 | E119: 0 | F119: 7.996666667 | G119: 81.93333333
B120: 12 | C120: 413.1 | D120: 454.41 | E120: 0 | F120: 4.674193548 | G120: 88.25806452
B121: Totaal | C121: 2486.1 | D121: 2506.02 | E121: 15.6
B122: 2008 | C122: Ongewogen graaddagen | D122: Gewogen graaddagen | E122: Koeldagen | F122: Gem. etm. temperatuur | G122: Gem. relatieve vochtigheid
B123: maand | C123: K.d | D123: K.d | E123: K.d | F123: °C | G123: %
B124: 1 | C124: 364.8 | D124: 401.28 | E124: 0 | F124: 6.232258065 | G124: 87.51612903
B125: 2 | C125: 371.8 | D125: 408.98 | E125: 0 | F125: 5.15 | G125: 83.78571429
B126: 3 | C126: 368.8 | D126: 368.8 | E126: 0 | F126: 5.716129032 | G126: 81.09677419
B127: 4 | C127: 294.9 | D127: 235.92 | E127: 0 | F127: 8.17 | G127: 79.3
B128: 5 | C128: 119 | D128: 95.2 | E128: 2.7 | F128: 14.2483871 | G128: 74.22580645
B129: 6 | C129: 78.8 | D129: 63.04 | E129: 5.3 | F129: 15.55 | G129: 77.3
B130: 7 | C130: 38.3 | D130: 30.64 | E130: 24 | F130: 17.53870968 | G130: 78.03225806
B131: 8 | C131: 26.6 | D131: 21.28 | E131: 10.1 | F131: 17.46774194 | G131: 80.19354839
B132: 9 | C132: 99.8 | D132: 79.84 | E132: 3.7 | F132: 14.79666667 | G132: 78.73333333
B133: 10 | C133: 213 | D133: 213 | E133: 0 | F133: 11.12903226 | G133: 81.5483871
B134: 11 | C134: 307.4 | D134: 338.14 | E134: 0 | F134: 7.753333333 | G134: 85.06666667
B135: 12 | C135: 465.9 | D135: 512.49 | E135: 0 | F135: 3.440625 | G135: 87.5
B136: Totaal | C136: 2749.1 | D136: 2768.61 | E136: 45.8
B137: 2009 | C137: Ongewogen graaddagen | D137: Gewogen graaddagen | E137: Koeldagen | F137: Gem. etm. temperatuur | G137: Gem. relatieve vochtigheid
B138: maand | C138: K.d | D138: K.d | E138: K.d | F138: °C | G138: %
B139: 1 | C139: 499.8 | D139: 549.78 | E139: 0 | F139: 1.877419355 | G139: 87.74193548
B140: 2 | C140: 418.1 | D140: 459.91 | E140: 0 | F140: 3.067857143 | G140: 90.21428571
B141: 3 | C141: 377.3 | D141: 377.3 | E141: 0 | F141: 5.829032258 | G141: 86.06451613
B142: 4 | C142: 217.9 | D142: 174.32 | E142: 0 | F142: 10.73666667 | G142: 82.56666667
B143: 5 | C143: 167.7 | D143: 134.16 | E143: 0 | F143: 12.59032258 | G143: 78.96774194
B144: 6 | C144: 95.5 | D144: 76.4 | E144: 7.8 | F144: 15.07666667 | G144: 74.56666667
B145: 7 | C145: 23.5 | D145: 18.8 | E145: 14.3 | F145: 17.70322581 | G145: 75.74193548
B146: 8 | C146: 11.2 | D146: 8.96 | E146: 35.3 | F146: 18.77741935 | G146: 71.80645161
B147: 9 | C147: 66.3 | D147: 53.04 | E147: 1.9 | F147: 15.85333333 | G147: 76.33333333
B148: 10 | C148: 206.5 | D148: 206.5 | E148: 0 | F148: 11.33870968 | G148: 78.4516129
B149: 11 | C149: 251 | D149: 276.1 | E149: 0 | F149: 9.633333333 | G149: 85.1
B150: 12 | C150: 451.9 | D150: 497.09 | E150: 0 | F150: 3.422580645 | G150: 85.83870968
B151: Totaal | C151: 2786.7 | D151: 2832.36 | E151: 59.3
B152: 2010 | C152: Ongewogen graaddagen | D152: Gewogen graaddagen | E152: Koeldagen | F152: Gem. etm. temperatuur | G152: Gem. relatieve vochtigheid
B153: maand | C153: K.d | D153: K.d | E153: K.d | F153: °C | G153: %
B154: 1 | C154: 567.6 | D154: 624.36 | E154: 0 | F154: -0.3096774194 | G154: 88.35483871
B155: 2 | C155: 469.9 | D155: 516.89 | E155: 0 | F155: 1.217857143 | G155: 87
B156: 3 | C156: 383.9 | D156: 383.9 | E156: 0 | F156: 5.616129032 | G156: 82.22580645
B157: 4 | C157: 283.2 | D157: 226.56 | E157: 0 | F157: 8.56 | G157: 77.76666667
B158: 5 | C158: 255 | D158: 204 | E158: 0 | F158: 9.774193548 | G158: 78.4516129
B159: 6 | C159: 96.4 | D159: 77.12 | E159: 4.5 | F159: 14.93666667 | G159: 78.9
B160: 7 | C160: 19 | D160: 15.2 | E160: 29.8 | F160: 18.3483871 | G160: 76.48387097
B161: 8 | C161: 46.3 | D161: 37.04 | E161: 5.5 | F161: 16.68387097 | G161: 80.77419355
B162: 9 | C162: 114.8 | D162: 91.84 | E162: 0 | F162: 14.17333333 | G162: 82.5
B163: 10 | C163: 195.2 | D163: 195.2 | E163: 0 | F163: 11.70322581 | G163: 81.74193548
B164: 11 | C164: 352.1 | D164: 387.31 | E164: 0 | F164: 6.263333333 | G164: 86.13333333
B165: 12 | C165: 556.3 | D165: 611.93 | E165: 0 | F165: 0.05483870968 | G165: 86.22580645
B166: Totaal | C166: =SUM(C154:C165) -> 3339.7 | D166: =SUM(D154:D165) -> 3371.35 | E166: =SUM(E154:E165) -> 39.8
B167: 2011 | C167: Ongewogen graaddagen | D167: Gewogen graaddagen | E167: Koeldagen | F167: Gem. etm. temperatuur | G167: Gem. relatieve vochtigheid
B168: maand | C168: K.d | D168: K.d | E168: K.d | F168: °C | G168: %
B169: 1 | C169: 444 | D169: 488.4 | E169: 0 | F169: 3.7 | G169: 89.1
B170: 2 | C170: 391 | D170: 430.1 | E170: 0 | F170: 4.035714286 | G170: 88.03571429
B171: 3 | C171: 397.3 | D171: 397.3 | E171: 0 | F171: 5.183870968 | G171: 83.38709677
B172: 4 | C172: 192.5 | D172: 154 | E172: 0 | F172: 11.58333333 | G172: 78.66666667
B173: 5 | C173: 146.8 | D173: 117.44 | E173: 2.3 | F173: 13.33870968 | G173: 71.35483871
B174: 6 | C174: 86.9 | D174: 69.52 | E174: 12.4 | F174: 15.51666667 | G174: 77.06666667
B175: 7 | C175: 72.9 | D175: 58.32 | E175: 0 | F175: 15.6483871 | G175: 79.74193548
B176: 8 | C176: 47.1 | D176: 37.68 | E176: 4.3 | F176: 16.61935484 | G176: 82.06451613
B177: 9 | C177: 72.7 | D177: 58.16 | E177: 4.5 | F177: 15.72666667 | G177: 82.43333333
B178: 10 | C178: 189.3 | D178: 189.3 | E178: 0.5 | F178: 11.90967742 | G178: 81.22580645
B179: 11 | C179: 307.7 | D179: 338.47 | E179: 0 | F179: 7.743333333 | G179: 90.33333333
B180: 12 | C180: 341.8 | D180: 375.98 | E180: 0 | F180: 6.974193548 | G180: 81.35483871
B181: Totaal | C181: =SUM(C169:C180) -> 2690 | D181: =SUM(D169:D180) -> 2714.67 | E181: =SUM(E169:E180) -> 24
B182: 2012 | C182: Ongewogen graaddagen | D182: Gewogen graaddagen | E182: Koeldagen | F182: Gem. etm. temperatuur | G182: Gem. relatieve vochtigheid
B183: maand | C183: K.d | D183: K.d | E183: K.d | F183: °C | G183: %
B184: 1 | C184: 400.8 | D184: 440.88 | E184: 0 | F184: 5.070967742 | G184: 85
B185: 2 | C185: 492.5 | D185: 541.75 | E185: 0 | F185: 1.017241379 | G185: 84.48275862
B186: 3 | C186: 337 | D186: 337 | E186: 0 | F186: 7.129032258 | G186: 87.90322581
B187: 4 | C187: 308.1 | D187: 246.48 | E187: 0 | F187: 7.73 | G187: 81.2
B188: 5 | C188: 167.9 | D188: 134.32 | E188: 4 | F188: 12.71290323 | G188: 80.48387097
B189: 6 | C189: 115.2 | D189: 92.16 | E189: 3.2 | F189: 14.26666667 | G189: 77.26666667
B190: 7 | C190: 50.9 | D190: 40.72 | E190: 16.3 | F190: 16.88387097 | G190: 77.67741935
B191: 8 | C191: 20.8 | D191: 16.64 | E191: 25.9 | F191: 18.16451613 | G191: 78.09677419
B192: 9 | C192: 91.5 | D192: 73.2 | E192: 2.7 | F192: 15.04 | G192: 74.86666667
B193: 10 | C193: 219.5 | D193: 219.5 | E193: 0 | F193: 10.91935484 | G193: 82.70967742
B194: 11 | C194: 316.6 | D194: 348.26 | E194: 0 | F194: 7.446666667 | G194: 87.46666667
B195: 12 | C195: 395.1 | D195: 434.61 | E195: 0 | F195: 5.25483871 | G195: 87.5483871
B196: Totaal | C196: =SUM(C184:C195) -> 2915.9 | D196: =SUM(D184:D195) -> 2925.52 | E196: =SUM(E184:E195) -> 52.1
B197: 2013 | C197: Ongewogen graaddagen | D197: Gewogen graaddagen | E197: Koeldagen | F197: Gem. etm. temperatuur | G197: Gem. relatieve vochtigheid
B198: maand | C198: K.d | D198: K.d | E198: K.d | F198: °C | G198: %
B199: 1 | C199: 481.7 | D199: 529.87 | E199: 0 | F199: 2.461290323 | G199: 86.64516129
B200: 2 | C200: 447 | D200: 491.7 | E200: 0 | F200: 2.035714286 | G200: 83.92857143
B201: 3 | C201: 495.7 | D201: 495.7 | E201: 0 | F201: 2.009677419 | G201: 76.06451613
... 85 more rows

Sheet Deelen 2000-2018
B2: 2000 | C2: Ongewogen graaddagen | D2: Gewogen graaddagen | E2: Koeldagen | F2: Gem. etm. temperatuur | G2: Gem. relatieve vochtigheid
B3: maand | C3: K.d | D3: K.d | E3: K.d | F3: °C | G3: %
B4: 1 | C4: 441.6 | D4: 485.76 | E4: 0 | F4: 3.75483871 | G4: 92.64516129
B5: 2 | C5: 372.3 | D5: 409.53 | E5: 0 | F5: 5.162068966 | G5: 88.4137931
B6: 3 | C6: 350.9 | D6: 350.9 | E6: 0 | F6: 6.303333333 | G6: 90.03333333
B7: 4 | C7: 246.5 | D7: 197.2 | E7: 0 | F7: 9.783333333 | G7: 76.53333333
B8: 5 | C8: 116.2 | D8: 92.96 | E8: 16.4 | F8: 14.78064516 | G8: 75.29032258
B9: 6 | C9: 88.6 | D9: 70.88 | E9: 26.6 | F9: 15.93333333 | G9: 73.53333333
B10: 7 | C10: 90.5 | D10: 72.4 | E10: 2.7 | F10: 15.16774194 | G10: 83.41935484
B11: 8 | C11: 32.5 | D11: 26 | E11: 15.3 | F11: 17.44516129 | G11: 77.87096774
B12: 9 | C12: 78.2 | D12: 62.56 | E12: 0.2 | F12: 15.4 | G12: 86.26666667
B13: 10 | C13: 210.9 | D13: 210.9 | E13: 0 | F13: 11.19677419 | G13: 88.09677419
B14: 11 | C14: 318.2 | D14: 350.02 | E14: 0 | F14: 7.393333333 | G14: 88.83333333
B15: 12 | C15: 425.1 | D15: 467.61 | E15: 0 | F15: 4.715625 | G15: 87.90625
B16: Totaal | C16: 2771.5 | D16: 2796.72 | E16: 61.2
B17: 2001 | C17: Ongewogen graaddagen | D17: Gewogen graaddagen | E17: Koeldagen | F17: Gem. etm. temperatuur | G17: Gem. relatieve vochtigheid
B18: maand | C18: K.d | D18: K.d | E18: K.d | F18: °C | G18: %
B19: 1 | C19: 487 | D19: 535.7 | E19: 0 | F19: 2.290322581 | G19: 91.19354839
B20: 2 | C20: 391.3 | D20: 430.43 | E20: 0 | F20: 4.025 | G20: 87.14285714
B21: 3 | C21: 416.7 | D21: 416.7 | E21: 0 | F21: 4.558064516 | G21: 86.38709677
B22: 4 | C22: 302.7 | D22: 242.16 | E22: 0 | F22: 7.91 | G22: 79.3
B23: 5 | C23: 117.1 | D23: 93.68 | E23: 4.6 | F23: 14.37096774 | G23: 68.32258065
B24: 6 | C24: 100.9 | D24: 80.72 | E24: 10.1 | F24: 14.97333333 | G24: 71.56666667
B25: 7 | C25: 34.8 | D25: 27.84 | E25: 48.8 | F25: 18.4516129 | G25: 76.06451613
B26: 8 | C26: 31.6 | D26: 25.28 | E26: 48.1 | F26: 18.53225806 | G26: 78.38709677
B27: 9 | C27: 149.9 | D27: 119.92 | E27: 0 | F27: 13.00333333 | G27: 88.5
B28: 10 | C28: 121.8 | D28: 121.8 | E28: 0 | F28: 14.07096774 | G28: 86.74193548
B29: 11 | C29: 351.3 | D29: 386.43 | E29: 0 | F29: 6.29 | G29: 93.46666667
B30: 12 | C30: 489.7 | D30: 538.67 | E30: 0 | F30: 2.203225806 | G30: 94.03225806
B31: Totaal | C31: 2994.8 | D31: 3019.33 | E31: 111.6
B32: 2002 | C32: Ongewogen graaddagen | D32: Gewogen graaddagen | E32: Koeldagen | F32: Gem. etm. temperatuur | G32: Gem. relatieve vochtigheid
B33: maand | C33: K.d | D33: K.d | E33: K.d | F33: °C | G33: %
B34: 1 | C34: 440.7 | D34: 484.77 | E34: 0 | F34: 3.783870968 | G34: 90.80645161
B35: 2 | C35: 319.5 | D35: 351.45 | E35: 0 | F35: 6.589285714 | G35: 81.10714286
B36: 3 | C36: 352.2 | D36: 352.2 | E36: 0 | F36: 6.638709677 | G36: 77
B37: 4 | C37: 273.2 | D37: 218.56 | E37: 0 | F37: 8.893333333 | G37: 71.8
B38: 5 | C38: 144.3 | D38: 115.44 | E38: 1.3 | F38: 13.38709677 | G38: 78.03225806
B39: 6 | C39: 57.3 | D39: 45.84 | E39: 15.8 | F39: 16.61666667 | G39: 74.66666667
B40: 7 | C40: 49.1 | D40: 39.28 | E40: 33.6 | F40: 17.5 | G40: 79.58064516
B41: 8 | C41: 14 | D41: 11.2 | E41: 34.7 | F41: 18.66774194 | G41: 84.32258065
B42: 9 | C42: 111.7 | D42: 89.36 | E42: 2.8 | F42: 14.37 | G42: 82.33333333
B43: 10 | C43: 277.7 | D43: 277.7 | E43: 0 | F43: 9.041935484 | G43: 87.22580645
B44: 11 | C44: 316 | D44: 347.6 | E44: 0 | F44: 7.466666667 | G44: 93.96666667
B45: 12 | C45: 485.7 | D45: 534.27 | E45: 0 | F45: 2.332258065 | G45: 91.19354839
B46: Totaal | C46: 2841.4 | D46: 2867.67 | E46: 88.2
B47: 2003 | C47: Ongewogen graaddagen | D47: Gewogen graaddagen | E47: Koeldagen | F47: Gem. etm. temperatuur | G47: Gem. relatieve vochtigheid
B48: maand | C48: K.d | D48: K.d | E48: K.d | F48: °C | G48: %
B49: 1 | C49: 500.9 | D49: 550.99 | E49: 0 | F49: 1.841935484 | G49: 89.5483871
B50: 2 | C50: 461.8 | D50: 507.98 | E50: 0 | F50: 1.507142857 | G50: 78.42857143
B51: 3 | C51: 333.5 | D51: 333.5 | E51: 0 | F51: 7.241935484 | G51: 74.61290323
B52: 4 | C52: 246.8 | D52: 197.44 | E52: 0 | F52: 9.773333333 | G52: 64.96666667
B53: 5 | C53: 150.8 | D53: 120.64 | E53: 7.7 | F53: 13.38387097 | G53: 76.70967742
B54: 6 | C54: 20.9 | D54: 16.72 | E54: 25.8 | F54: 18.16333333 | G54: 71.6
B55: 7 | C55: 21 | D55: 16.8 | E55: 44.8 | F55: 18.76774194 | G55: 73.74193548
B56: 8 | C56: 28.3 | D56: 22.64 | E56: 75.3 | F56: 19.51612903 | G56: 71.96774194
B57: 9 | C57: 116.2 | D57: 92.96 | E57: 7.7 | F57: 14.38333333 | G57: 76.7
B58: 10 | C58: 341.7 | D58: 341.7 | E58: 0 | F58: 6.977419355 | G58: 85.87096774
B59: 11 | C59: 307.6 | D59: 338.36 | E59: 0 | F59: 7.746666667 | G59: 89.7
B60: 12 | C60: 445.6 | D60: 490.16 | E60: 0 | F60: 3.625806452 | G60: 88.51612903
B61: Totaal | C61: 2975.1 | D61: 3029.89 | E61: 161.3
B62: 2004 | C62: Ongewogen graaddagen | D62: Gewogen graaddagen | E62: Koeldagen | F62: Gem. etm. temperatuur | G62: Gem. relatieve vochtigheid
B63: maand | C63: K.d | D63: K.d | E63: K.d | F63: °C | G63: %
B64: 1 | C64: 468.2 | D64: 515.02 | E64: 0 | F64: 2.896774194 | G64: 89.90322581
B65: 2 | C65: 405.3 | D65: 445.83 | E65: 0 | F65: 4.024137931 | G65: 86.65517241
B66: 3 | C66: 383.4 | D66: 383.4 | E66: 0 | F66: 5.22 | G66: 80.7
B67: 4 | C67: 233.5 | D67: 186.8 | E67: 0 | F67: 10.21666667 | G67: 70.56666667
B68: 5 | C68: 184.4 | D68: 147.52 | E68: 0 | F68: 12.0516129 | G68: 73.22580645
B69: 6 | C69: 93.9 | D69: 75.12 | E69: 8.4 | F69: 15.15 | G69: 76.86666667
B70: 7 | C70: 56.5 | D70: 45.2 | E70: 13.9 | F70: 16.62580645 | G70: 78.41935484
B71: 8 | C71: 30.2 | D71: 24.16 | E71: 63.9 | F71: 19.08709677 | G71: 76.67741935
B72: 9 | C72: 94.6 | D72: 75.68 | E72: 8.7 | F72: 15.13666667 | G72: 78.23333333
B73: 10 | C73: 214.5 | D73: 214.5 | E73: 0 | F73: 11.08064516 | G73: 83.32258065
B74: 11 | C74: 371.2 | D74: 408.32 | E74: 0 | F74: 5.626666667 | G74: 92.4
B75: 12 | C75: 491.5 | D75: 540.65 | E75: 0 | F75: 2.640625 | G75: 92.5625
B76: Totaal | C76: 3027.2 | D76: 3062.2 | E76: 94.9
B77: 2005 | C77: Ongewogen graaddagen | D77: Gewogen graaddagen | E77: Koeldagen | F77: Gem. etm. temperatuur | G77: Gem. relatieve vochtigheid
B78: maand | C78: K.d | D78: K.d | E78: K.d | F78: °C | G78: %
B79: 1 | C79: 420.4 | D79: 462.44 | E79: 0 | F79: 4.438709677 | G79: 85.77419355
B80: 2 | C80: 455.4 | D80: 500.94 | E80: 0 | F80: 1.735714286 | G80: 83.14285714
B81: 3 | C81: 368.5 | D81: 368.5 | E81: 0 | F81: 6.112903226 | G81: 80.83870968
B82: 4 | C82: 234.1 | D82: 187.28 | E82: 0 | F82: 10.19666667 | G82: 72.93333333
B83: 5 | C83: 183.7 | D83: 146.96 | E83: 14 | F83: 12.52580645 | G83: 73.80645161
B84: 6 | C84: 76.1 | D84: 60.88 | E84: 35.9 | F84: 16.66 | G84: 69.33333333
B85: 7 | C85: 43.3 | D85: 34.64 | E85: 31.1 | F85: 17.60645161 | G85: 76.83870968
B86: 8 | C86: 81.3 | D86: 65.04 | E86: 10.2 | F86: 15.70645161 | G86: 77.77419355
B87: 9 | C87: 89.4 | D87: 71.52 | E87: 17.1 | F87: 15.59 | G87: 79.76666667
B88: 10 | C88: 152.4 | D88: 152.4 | E88: 0 | F88: 13.08387097 | G88: 84.48387097
B89: 11 | C89: 359.6 | D89: 395.56 | E89: 0 | F89: 6.013333333 | G89: 92
B90: 12 | C90: 456.5 | D90: 502.15 | E90: 0 | F90: 3.274193548 | G90: 92.16129032
B91: Totaal | C91: 2920.7 | D91: 2948.31 | E91: 108.3
B92: 2006 | C92: Ongewogen graaddagen | D92: Gewogen graaddagen | E92: Koeldagen | F92: Gem. etm. temperatuur | G92: Gem. relatieve vochtigheid
B93: maand | C93: K.d | D93: K.d | E93: K.d | F93: °C | G93: %
B94: 1 | C94: 533.4 | D94: 586.74 | E94: 0 | F94: 0.7935483871 | G94: 86.51612903
B95: 2 | C95: 447.8 | D95: 492.58 | E95: 0 | F95: 2.007142857 | G95: 89.57142857
B96: 3 | C96: 456.3 | D96: 456.3 | E96: 0 | F96: 3.280645161 | G96: 82.38709677
B97: 4 | C97: 291 | D97: 232.8 | E97: 0 | F97: 8.3 | G97: 75.96666667
B98: 5 | C98: 122.5 | D98: 98 | E98: 7.3 | F98: 14.28387097 | G98: 68.61290323
B99: 6 | C99: 72.8 | D99: 58.24 | E99: 32.5 | F99: 16.65666667 | G99: 67.7
B100: 7 | C100: 0.5 | D100: 0.4 | E100: 140.6 | F100: 22.51935484 | G100: 62.80645161
B101: 8 | C101: 76.1 | D101: 60.88 | E101: 5 | F101: 15.70645161 | G101: 85.5483871
B102: 9 | C102: 33 | D102: 26.4 | E102: 27.6 | F102: 17.82 | G102: 78.83333333
B103: 10 | C103: 142.5 | D103: 142.5 | E103: 0 | F103: 13.40322581 | G103: 86.35483871
B104: 11 | C104: 287 | D104: 315.7 | E104: 0 | F104: 8.433333333 | G104: 88.8
B105: 12 | C105: 377.2 | D105: 414.92 | E105: 0 | F105: 5.832258065 | G105: 90.35483871
B106: Totaal | C106: 2840.1 | D106: 2885.46 | E106: 213
B107: 2007 | C107: Ongewogen graaddagen | D107: Gewogen graaddagen | E107: Koeldagen | F107: Gem. etm. temperatuur | G107: Gem. relatieve vochtigheid
B108: maand | C108: K.d | D108: K.d | E108: K.d | F108: °C | G108: %
B109: 1 | C109: 367.7 | D109: 404.47 | E109: 0 | F109: 6.138709677 | G109: 87.5483871
B110: 2 | C110: 352.3 | D110: 387.53 | E110: 0 | F110: 5.417857143 | G110: 90.21428571
B111: 3 | C111: 333.6 | D111: 333.6 | E111: 0 | F111: 7.238709677 | G111: 79.80645161
B112: 4 | C112: 166.2 | D112: 132.96 | E112: 9.9 | F112: 12.79 | G112: 62.83333333
B113: 5 | C113: 130.1 | D113: 104.08 | E113: 1.8 | F113: 13.86129032 | G113: 75.67741935
B114: 6 | C114: 41.2 | D114: 32.96 | E114: 19.8 | F114: 17.28666667 | G114: 81.13333333
B115: 7 | C115: 59 | D115: 47.2 | E115: 16 | F115: 16.61290323 | G115: 81.83870968
B116: 8 | C116: 54 | D116: 43.2 | E116: 14.5 | F116: 16.72580645 | G116: 80.03225806
B117: 9 | C117: 144.6 | D117: 115.68 | E117: 0 | F117: 13.18 | G117: 86.76666667
B118: 10 | C118: 265.7 | D118: 265.7 | E118: 0 | F118: 9.429032258 | G118: 88.19354839
B119: 11 | C119: 363.8 | D119: 400.18 | E119: 0 | F119: 5.873333333 | G119: 90.56666667
B120: 12 | C120: 464.8 | D120: 511.28 | E120: 0 | F120: 3.006451613 | G120: 93.06451613
B121: Totaal | C121: 2743 | D121: 2778.84 | E121: 62
B122: 2008 | C122: Ongewogen graaddagen | D122: Gewogen graaddagen | E122: Koeldagen | F122: Gem. etm. temperatuur | G122: Gem. relatieve vochtigheid
B123: maand | C123: K.d | D123: K.d | E123: K.d | F123: °C | G123: %
B124: 1 | C124: 381.3 | D124: 419.43 | E124: 0 | F124: 5.7 | G124: 90.64516129
B125: 2 | C125: 383.9 | D125: 422.29 | E125: 0 | F125: 4.7 | G125: 82.03571429
B126: 3 | C126: 389.1 | D126: 389.1 | E126: 0 | F126: 5.077419355 | G126: 85.77419355
B127: 4 | C127: 293.2 | D127: 234.56 | E127: 0 | F127: 8.226666667 | G127: 76.76666667
B128: 5 | C128: 95.2 | D128: 76.16 | E128: 11 | F128: 15.28387097 | G128: 66.5483871
B129: 6 | C129: 70.7 | D129: 56.56 | E129: 13.4 | F129: 16.09 | G129: 75.3
B130: 7 | C130: 52.9 | D130: 42.32 | E130: 35.5 | F130: 17.43870968 | G130: 78.06451613
B131: 8 | C131: 41.9 | D131: 33.52 | E131: 16.1 | F131: 17.16774194 | G131: 79.74193548
B132: 9 | C132: 134.4 | D132: 107.52 | E132: 5.6 | F132: 13.70666667 | G132: 79.93333333
B133: 10 | C133: 258.8 | D133: 258.8 | E133: 0 | F133: 9.651612903 | G133: 88.03225806
B134: 11 | C134: 356.6 | D134: 392.26 | E134: 0 | F134: 6.113333333 | G134: 91.8
B135: 12 | C135: 521 | D135: 573.1 | E135: 0 | F135: 1.71875 | G135: 92.5625
B136: Totaal | C136: 2979 | D136: 3005.62 | E136: 81.6
B137: 2009 | C137: Ongewogen graaddagen | D137: Gewogen graaddagen | E137: Koeldagen | F137: Gem. etm. temperatuur | G137: Gem. relatieve vochtigheid
B138: maand | C138: K.d | D138: K.d | E138: K.d | F138: °C | G138: %
B139: 1 | C139: 557.2 | D139: 612.92 | E139: 0 | F139: 0.02580645161 | G139: 86.80645161
B140: 2 | C140: 429.3 | D140: 472.23 | E140: 0 | F140: 2.667857143 | G140: 89.60714286
B141: 3 | C141: 388.7 | D141: 388.7 | E141: 0 | F141: 5.461290323 | G141: 83.03225806
B142: 4 | C142: 161.7 | D142: 129.36 | E142: 0 | F142: 12.61 | G142: 71.73333333
B143: 5 | C143: 128.4 | D143: 102.72 | E143: 1.2 | F143: 13.89677419 | G143: 70.4516129
B144: 6 | C144: 95 | D144: 76 | E144: 15.1 | F144: 15.33666667 | G144: 74.86666667
B145: 7 | C145: 36.7 | D145: 29.36 | E145: 30.8 | F145: 17.80967742 | G145: 75.58064516
B146: 8 | C146: 25.2 | D146: 20.16 | E146: 38.5 | F146: 18.42903226 | G146: 71.77419355
B147: 9 | C147: 103.8 | D147: 83.04 | E147: 1.1 | F147: 14.57666667 | G147: 81.43333333
B148: 10 | C148: 252 | D148: 252 | E148: 0 | F148: 9.870967742 | G148: 85.51612903
B149: 11 | C149: 268.1 | D149: 294.91 | E149: 0 | F149: 9.063333333 | G149: 87.63333333
B150: 12 | C150: 509.1 | D150: 560.01 | E150: 0 | F150: 1.577419355 | G150: 91.67741935
B151: Totaal | C151: 2955.2 | D151: 3021.41 | E151: 86.7
B152: 2010 | C152: Ongewogen graaddagen | D152: Gewogen graaddagen | E152: Koeldagen | F152: Gem. etm. temperatuur | G152: Gem. relatieve vochtigheid
B153: maand | C153: K.d | D153: K.d | E153: K.d | F153: °C | G153: %
B154: 1 | C154: 597.4 | D154: 657.14 | E154: 0 | F154: -1.270967742 | G154: 91.03225806
B155: 2 | C155: 478.3 | D155: 526.13 | E155: 0 | F155: 0.9178571429 | G155: 87.96428571
B156: 3 | C156: 378.2 | D156: 378.2 | E156: 0 | F156: 5.8 | G156: 79.22580645
B157: 4 | C157: 259.6 | D157: 207.68 | E157: 0.9 | F157: 9.376666667 | G157: 69.1
B158: 5 | C158: 245.8 | D158: 196.64 | E158: 0 | F158: 10.07096774 | G158: 78.77419355
B159: 6 | C159: 62.8 | D159: 50.24 | E159: 21.1 | F159: 16.61 | G159: 71.4
B160: 7 | C160: 13.9 | D160: 11.12 | E160: 83.1 | F160: 20.23225806 | G160: 69.25806452
B161: 8 | C161: 60.1 | D161: 48.08 | E161: 7.9 | F161: 16.31612903 | G161: 82.93548387
B162: 9 | C162: 150.3 | D162: 120.24 | E162: 0 | F162: 12.99 | G162: 85.16666667
B163: 10 | C163: 253.8 | D163: 253.8 | E163: 0 | F163: 9.812903226 | G163: 84.77419355
B164: 11 | C164: 380.4 | D164: 418.44 | E164: 0 | F164: 5.32 | G164: 89.23333333
B165: 12 | C165: 626.2 | D165: 688.82 | E165: 0 | F165: -2.2 | G165: 89.67741935
B166: Totaal | C166: =SUM(C154:C165) -> 3506.8 | D166: =SUM(D154:D165) -> 3556.53 | E166: =SUM(E154:E165) -> 113
B167: 2011 | C167: Ongewogen graaddagen | D167: Gewogen graaddagen | E167: Koeldagen | F167: Gem. etm. temperatuur | G167: Gem. relatieve vochtigheid
B168: maand | C168: K.d | D168: K.d | E168: K.d | F168: °C | G168: %
B169: 1 | C169: 476.7 | D169: 524.4 | E169: 0 | F169: 2.6 | G169: 91.3
B170: 2 | C170: 396.1 | D170: 435.71 | E170: 0 | F170: 3.853571429 | G170: 86.39285714
B171: 3 | C171: 386.9 | D171: 386.9 | E171: 0 | F171: 5.519354839 | G171: 78.19354839
B172: 4 | C172: 157.1 | D172: 125.68 | E172: 4.9 | F172: 12.92666667 | G172: 65.83333333
B173: 5 | C173: 131.2 | D173: 104.96 | E173: 8.9 | F173: 14.05483871 | G173: 64.83870968
B174: 6 | C174: 76.9 | D174: 61.52 | E174: 21.8 | F174: 16.16333333 | G174: 76.66666667
B175: 7 | C175: 75.9 | D175: 60.72 | E175: 0.9 | F175: 15.58064516 | G175: 79.4516129
B176: 8 | C176: 52.3 | D176: 41.84 | E176: 14.7 | F176: 16.78709677 | G176: 83.29032258
B177: 9 | C177: 81.1 | D177: 64.88 | E177: 8.8 | F177: 15.59 | G177: 82.7
B178: 10 | C178: 216.5 | D178: 216.5 | E178: 0.3 | F178: 11.02580645 | G178: 84.61290323
B179: 11 | C179: 341.1 | D179: 375.21 | E179: 0 | F179: 6.63 | G179: 91.26666667
B180: 12 | C180: 389.2 | D180: 428.12 | E180: 0 | F180: 5.44516129 | G180: 88.70967742
B181: Totaal | C181: =SUM(C169:C180) -> 2781 | D181: =SUM(D169:D180) -> 2826.44 | E181: =SUM(E169:E180) -> 60.3
B182: 2012 | C182: Ongewogen graaddagen | D182: Gewogen graaddagen | E182: Koeldagen | F182: Gem. etm. temperatuur | G182: Gem. relatieve vochtigheid
B183: maand | C183: K.d | D183: K.d | E183: K.d | F183: °C | G183: %
B184: 1 | C184: 434.7 | D184: 478.17 | E184: 0 | F184: 3.977419355 | G184: 87.29032258
B185: 2 | C185: 522.8 | D185: 575.08 | E185: 0 | F185: -0.0275862069 | G185: 82
B186: 3 | C186: 314.3 | D186: 314.3 | E186: 0 | F186: 7.861290323 | G186: 80.22580645
B187: 4 | C187: 300.9 | D187: 240.72 | E187: 0 | F187: 7.97 | G187: 77.43333333
B188: 5 | C188: 131.5 | D188: 105.2 | E188: 18.5 | F188: 14.35483871 | G188: 72.70967742
B189: 6 | C189: 111.5 | D189: 89.2 | E189: 6.6 | F189: 14.50333333 | G189: 76.43333333
B190: 7 | C190: 60.8 | D190: 48.64 | E190: 28.4 | F190: 16.95483871 | G190: 76.87096774
B191: 8 | C191: 29.4 | D191: 23.52 | E191: 39 | F191: 18.30967742 | G191: 75.77419355
B192: 9 | C192: 137.3 | D192: 109.84 | E192: 2.3 | F192: 13.5 | G192: 80.3
B193: 10 | C193: 251.4 | D193: 251.4 | E193: 0 | F193: 9.890322581 | G193: 84.80645161
B194: 11 | C194: 350.8 | D194: 385.88 | E194: 0 | F194: 6.306666667 | G194: 89.7
B195: 12 | C195: 430.8 | D195: 473.88 | E195: 0 | F195: 4.103225806 | G195: 91.58064516
B196: Totaal | C196: =SUM(C184:C195) -> 3076.2 | D196: =SUM(D184:D195) -> 3095.83 | E196: =SUM(E184:E195) -> 94.8
B197: 2013 | C197: Ongewogen graaddagen | D197: Gewogen graaddagen | E197: Koeldagen | F197: Gem. etm. temperatuur | G197: Gem. relatieve vochtigheid
B198: maand | C198: K.d | D198: K.d | E198: K.d | F198: °C | G198: %
B199: 1 | C199: 513 | D199: 564.3 | E199: 0 | F199: 1.451612903 | G199: 89.09677419
B200: 2 | C200: 480.1 | D200: 528.11 | E200: 0 | F200: 0.8535714286 | G200: 85.85714286
B201: 3 | C201: 507.2 | D201: 507.2 | E201: 0 | F201: 1.638709677 | G201: 70.96774194
... 85 more rows

Sheet Eelde 2000-2018
B2: 2000 | C2: Ongewogen graaddagen | D2: Gewogen graaddagen | E2: Koeldagen | F2: Gem. etm. temperatuur | G2: Gem. relatieve vochtigheid
B3: maand | C3: K.d | D3: K.d | E3: K.d | F3: °C | G3: %
B4: 1 | C4: 433 | D4: 476.3 | E4: 0 | F4: 4.032258065 | G4: 90.70967742
B5: 2 | C5: 367.9 | D5: 404.69 | E5: 0 | F5: 5.313793103 | G5: 87.06896552
B6: 3 | C6: 351.9 | D6: 351.9 | E6: 0 | F6: 6.27 | G6: 87.2
B7: 4 | C7: 263.2 | D7: 210.56 | E7: 0.7 | F7: 9.25 | G7: 79.33333333
B8: 5 | C8: 139.6 | D8: 111.68 | E8: 7 | F8: 13.72258065 | G8: 78.09677419
B9: 6 | C9: 108.9 | D9: 87.12 | E9: 20.8 | F9: 15.06333333 | G9: 78.56666667
B10: 7 | C10: 101.6 | D10: 81.28 | E10: 0 | F10: 14.72258065 | G10: 85.06451613
B11: 8 | C11: 50.1 | D11: 40.08 | E11: 9.6 | F11: 16.69354839 | G11: 82
B12: 9 | C12: 99.7 | D12: 79.76 | E12: 0 | F12: 14.67666667 | G12: 87.56666667
B13: 10 | C13: 211.7 | D13: 211.7 | E13: 0 | F13: 11.17096774 | G13: 89.25806452
B14: 11 | C14: 321.2 | D14: 353.32 | E14: 0 | F14: 7.293333333 | G14: 89.46666667
B15: 12 | C15: 433.8 | D15: 477.18 | E15: 0 | F15: 4.44375 | G15: 89.21875
B16: Totaal | C16: 2882.6 | D16: 2885.57 | E16: 38.1
B17: 2001 | C17: Ongewogen graaddagen | D17: Gewogen graaddagen | E17: Koeldagen | F17: Gem. etm. temperatuur | G17: Gem. relatieve vochtigheid
B18: maand | C18: K.d | D18: K.d | E18: K.d | F18: °C | G18: %
B19: 1 | C19: 494.1 | D19: 543.51 | E19: 0 | F19: 2.061290323 | G19: 93.4516129
B20: 2 | C20: 413 | D20: 454.3 | E20: 0 | F20: 3.25 | G20: 89.71428571
B21: 3 | C21: 442.9 | D21: 442.9 | E21: 0 | F21: 3.712903226 | G21: 86.67741935
B22: 4 | C22: 317.2 | D22: 253.76 | E22: 0 | F22: 7.426666667 | G22: 81.66666667
B23: 5 | C23: 164.6 | D23: 131.68 | E23: 0 | F23: 12.69032258 | G23: 76.93548387
B24: 6 | C24: 129.3 | D24: 103.44 | E24: 3.5 | F24: 13.80666667 | G24: 79.96666667
B25: 7 | C25: 39.6 | D25: 31.68 | E25: 32.3 | F25: 17.76451613 | G25: 81.12903226
B26: 8 | C26: 38.4 | D26: 30.72 | E26: 36 | F26: 17.92258065 | G26: 82.67741935
B27: 9 | C27: 153.7 | D27: 122.96 | E27: 0 | F27: 12.87666667 | G27: 90.6
B28: 10 | C28: 133.7 | D28: 133.7 | E28: 0 | F28: 13.68709677 | G28: 89.93548387
B29: 11 | C29: 329.2 | D29: 362.12 | E29: 0 | F29: 7.026666667 | G29: 91.93333333
B30: 12 | C30: 476.8 | D30: 524.48 | E30: 0 | F30: 2.619354839 | G30: 94.12903226
B31: Totaal | C31: 3132.5 | D31: 3135.25 | E31: 71.8
B32: 2002 | C32: Ongewogen graaddagen | D32: Gewogen graaddagen | E32: Koeldagen | F32: Gem. etm. temperatuur | G32: Gem. relatieve vochtigheid
B33: maand | C33: K.d | D33: K.d | E33: K.d | F33: °C | G33: %
B34: 1 | C34: 432.2 | D34: 475.42 | E34: 0 | F34: 4.058064516 | G34: 90.87096774
B35: 2 | C35: 328.8 | D35: 361.68 | E35: 0 | F35: 6.257142857 | G35: 83.35714286
B36: 3 | C36: 359.2 | D36: 359.2 | E36: 0 | F36: 6.412903226 | G36: 80.77419355
B37: 4 | C37: 276.2 | D37: 220.96 | E37: 0 | F37: 8.793333333 | G37: 79.33333333
B38: 5 | C38: 153.1 | D38: 122.48 | E38: 1.6 | F38: 13.11290323 | G38: 83.06451613
B39: 6 | C39: 66 | D39: 52.8 | E39: 14.1 | F39: 16.27 | G39: 81.06666667
B40: 7 | C40: 53.3 | D40: 42.64 | E40: 31 | F40: 17.28064516 | G40: 81.5483871
B41: 8 | C41: 8.2 | D41: 6.56 | E41: 37.5 | F41: 18.94516129 | G41: 85.77419355
B42: 9 | C42: 105.2 | D42: 84.16 | E42: 2 | F42: 14.56 | G42: 83.53333333
B43: 10 | C43: 300.8 | D43: 300.8 | E43: 0 | F43: 8.296774194 | G43: 86.83870968
B44: 11 | C44: 355.3 | D44: 390.83 | E44: 0 | F44: 6.156666667 | G44: 94.3
B45: 12 | C45: 531.5 | D45: 584.65 | E45: 0 | F45: 0.8548387097 | G45: 89.29032258
B46: Totaal | C46: 2969.8 | D46: 3002.18 | E46: 86.2
B47: 2003 | C47: Ongewogen graaddagen | D47: Gewogen graaddagen | E47: Koeldagen | F47: Gem. etm. temperatuur | G47: Gem. relatieve vochtigheid
B48: maand | C48: K.d | D48: K.d | E48: K.d | F48: °C | G48: %
B49: 1 | C49: 501.1 | D49: 551.21 | E49: 0 | F49: 1.835483871 | G49: 87.32258065
B50: 2 | C50: 493.5 | D50: 542.85 | E50: 0 | F50: 0.375 | G50: 85
B51: 3 | C51: 363.4 | D51: 363.4 | E51: 0 | F51: 6.277419355 | G51: 80.06451613
B52: 4 | C52: 264.9 | D52: 211.92 | E52: 0 | F52: 9.17 | G52: 68.26666667
B53: 5 | C53: 168.9 | D53: 135.12 | E53: 1.1 | F53: 12.58709677 | G53: 80.93548387
B54: 6 | C54: 43.4 | D54: 34.72 | E54: 16.6 | F54: 17.10666667 | G54: 77.5
B55: 7 | C55: 27.5 | D55: 22 | E55: 38.4 | F55: 18.3516129 | G55: 78.51612903
B56: 8 | C56: 32.1 | D56: 25.68 | E56: 59 | F56: 18.86774194 | G56: 75.19354839
B57: 9 | C57: 127.6 | D57: 102.08 | E57: 1.2 | F57: 13.78666667 | G57: 83.23333333
B58: 10 | C58: 356.4 | D58: 356.4 | E58: 0 | F58: 6.503225806 | G58: 85.64516129
B59: 11 | C59: 322.9 | D59: 355.19 | E59: 0 | F59: 7.236666667 | G59: 90.56666667
B60: 12 | C60: 444.8 | D60: 489.28 | E60: 0 | F60: 3.651612903 | G60: 88.09677419
B61: Totaal | C61: 3146.5 | D61: 3189.85 | E61: 116.3
B62: 2004 | C62: Ongewogen graaddagen | D62: Gewogen graaddagen | E62: Koeldagen | F62: Gem. etm. temperatuur | G62: Gem. relatieve vochtigheid
B63: maand | C63: K.d | D63: K.d | E63: K.d | F63: °C | G63: %
B64: 1 | C64: 469.4 | D64: 516.34 | E64: 0 | F64: 2.858064516 | G64: 89.25806452
B65: 2 | C65: 401.5 | D65: 441.65 | E65: 0 | F65: 4.155172414 | G65: 84.82758621
B66: 3 | C66: 386 | D66: 386 | E66: 0 | F66: 5.133333333 | G66: 80.5
B67: 4 | C67: 246 | D67: 196.8 | E67: 0 | F67: 9.8 | G67: 74.43333333
B68: 5 | C68: 186.2 | D68: 148.96 | E68: 0 | F68: 11.99354839 | G68: 74.32258065
B69: 6 | C69: 97.9 | D69: 78.32 | E69: 4.9 | F69: 14.9 | G69: 78.9
B70: 7 | C70: 74.7 | D70: 59.76 | E70: 7.7 | F70: 15.83870968 | G70: 81.87096774
B71: 8 | C71: 36.3 | D71: 29.04 | E71: 54 | F71: 18.57096774 | G71: 78.96774194
B72: 9 | C72: 102 | D72: 81.6 | E72: 1.2 | F72: 14.64 | G72: 80.7
B73: 10 | C73: 228.2 | D73: 228.2 | E73: 0 | F73: 10.63870968 | G73: 86.16129032
B74: 11 | C74: 352.6 | D74: 387.86 | E74: 0 | F74: 6.246666667 | G74: 90.8
B75: 12 | C75: 483.4 | D75: 531.74 | E75: 0 | F75: 2.89375 | G75: 94.25
B76: Totaal | C76: 3064.2 | D76: 3086.27 | E76: 67.8
B77: 2005 | C77: Ongewogen graaddagen | D77: Gewogen graaddagen | E77: Koeldagen | F77: Gem. etm. temperatuur | G77: Gem. relatieve vochtigheid
B78: maand | C78: K.d | D78: K.d | E78: K.d | F78: °C | G78: %
B79: 1 | C79: 416 | D79: 457.6 | E79: 0 | F79: 4.580645161 | G79: 87.58064516
B80: 2 | C80: 454.7 | D80: 500.17 | E80: 0 | F80: 1.760714286 | G80: 86.89285714
B81: 3 | C81: 405.1 | D81: 405.1 | E81: 0 | F81: 4.932258065 | G81: 84.87096774
B82: 4 | C82: 247.6 | D82: 198.08 | E82: 0 | F82: 9.746666667 | G82: 74.6
B83: 5 | C83: 202.8 | D83: 162.24 | E83: 9.2 | F83: 11.75483871 | G83: 78.58064516
B84: 6 | C84: 100.8 | D84: 80.64 | E84: 21.7 | F84: 15.36333333 | G84: 74.1
B85: 7 | C85: 47.2 | D85: 37.76 | E85: 18.9 | F85: 17.08709677 | G85: 83.09677419
B86: 8 | C86: 82.2 | D86: 65.76 | E86: 6.6 | F86: 15.56129032 | G86: 83.48387097
B87: 9 | C87: 98.5 | D87: 78.8 | E87: 8.4 | F87: 14.99666667 | G87: 83.36666667
B88: 10 | C88: 167.3 | D88: 167.3 | E88: 0 | F88: 12.60322581 | G88: 86.41935484
B89: 11 | C89: 341.6 | D89: 375.76 | E89: 0 | F89: 6.613333333 | G89: 92
B90: 12 | C90: 442.3 | D90: 486.53 | E90: 0 | F90: 3.732258065 | G90: 91.90322581
B91: Totaal | C91: 3006.1 | D91: 3015.74 | E91: 64.8
B92: 2006 | C92: Ongewogen graaddagen | D92: Gewogen graaddagen | E92: Koeldagen | F92: Gem. etm. temperatuur | G92: Gem. relatieve vochtigheid
B93: maand | C93: K.d | D93: K.d | E93: K.d | F93: °C | G93: %
B94: 1 | C94: 533.2 | D94: 586.52 | E94: 0 | F94: 0.8 | G94: 89.32258065
B95: 2 | C95: 444 | D95: 488.4 | E95: 0 | F95: 2.142857143 | G95: 89.92857143
B96: 3 | C96: 478.9 | D96: 478.9 | E96: 0 | F96: 2.551612903 | G96: 84.83870968
B97: 4 | C97: 298.7 | D97: 238.96 | E97: 0 | F97: 8.043333333 | G97: 81.13333333
B98: 5 | C98: 141.2 | D98: 112.96 | E98: 2.4 | F98: 13.52258065 | G98: 71.74193548
B99: 6 | C99: 90.8 | D99: 72.64 | E99: 22.3 | F99: 15.71666667 | G99: 74.23333333
B100: 7 | C100: 2.9 | D100: 2.32 | E100: 107.9 | F100: 21.38709677 | G100: 68.87096774
B101: 8 | C101: 65.5 | D101: 52.4 | E101: 4.8 | F101: 16.04193548 | G101: 86.5483871
B102: 9 | C102: 35.9 | D102: 28.72 | E102: 17.4 | F102: 17.38333333 | G102: 81.3
B103: 10 | C103: 146.9 | D103: 146.9 | E103: 0 | F103: 13.26129032 | G103: 87.06451613
B104: 11 | C104: 274.4 | D104: 301.84 | E104: 0 | F104: 8.853333333 | G104: 86.76666667
B105: 12 | C105: 351.2 | D105: 386.32 | E105: 0 | F105: 6.670967742 | G105: 90.22580645
B106: Totaal | C106: 2863.6 | D106: 2896.88 | E106: 154.8
B107: 2007 | C107: Ongewogen graaddagen | D107: Gewogen graaddagen | E107: Koeldagen | F107: Gem. etm. temperatuur | G107: Gem. relatieve vochtigheid
B108: maand | C108: K.d | D108: K.d | E108: K.d | F108: °C | G108: %
B109: 1 | C109: 359.9 | D109: 395.89 | E109: 0 | F109: 6.390322581 | G109: 87.29032258
B110: 2 | C110: 363.7 | D110: 400.07 | E110: 0 | F110: 5.010714286 | G110: 91.64285714
B111: 3 | C111: 323.2 | D111: 323.2 | E111: 0 | F111: 7.574193548 | G111: 79.77419355
B112: 4 | C112: 189.5 | D112: 151.6 | E112: 3 | F112: 11.78333333 | G112: 71.76666667
B113: 5 | C113: 153.5 | D113: 122.8 | E113: 0 | F113: 13.0483871 | G113: 78.70967742
B114: 6 | C114: 49 | D114: 39.2 | E114: 18.3 | F114: 16.97666667 | G114: 82.43333333
B115: 7 | C115: 59.5 | D115: 47.6 | E115: 7.8 | F115: 16.33225806 | G115: 83.90322581
B116: 8 | C116: 53.5 | D116: 42.8 | E116: 11.8 | F116: 16.65483871 | G116: 82.58064516
B117: 9 | C117: 135.3 | D117: 108.24 | E117: 0 | F117: 13.49 | G117: 86.8
B118: 10 | C118: 266.4 | D118: 266.4 | E118: 0 | F118: 9.406451613 | G118: 88.03225806
B119: 11 | C119: 343.4 | D119: 377.74 | E119: 0 | F119: 6.553333333 | G119: 88.86666667
B120: 12 | C120: 442.3 | D120: 486.53 | E120: 0 | F120: 3.732258065 | G120: 91.77419355
B121: Totaal | C121: 2739.2 | D121: 2762.07 | E121: 40.9
B122: 2008 | C122: Ongewogen graaddagen | D122: Gewogen graaddagen | E122: Koeldagen | F122: Gem. etm. temperatuur | G122: Gem. relatieve vochtigheid
B123: maand | C123: K.d | D123: K.d | E123: K.d | F123: °C | G123: %
B124: 1 | C124: 380.5 | D124: 418.55 | E124: 0 | F124: 5.725806452 | G124: 88.64516129
B125: 2 | C125: 385.5 | D125: 424.05 | E125: 0 | F125: 4.675 | G125: 83.39285714
B126: 3 | C126: 387.1 | D126: 387.1 | E126: 0 | F126: 5.112903226 | G126: 81.64516129
B127: 4 | C127: 296.5 | D127: 237.2 | E127: 0 | F127: 8.116666667 | G127: 76.43333333
B128: 5 | C128: 119.9 | D128: 95.92 | E128: 6.6 | F128: 14.34516129 | G128: 68.83870968
B129: 6 | C129: 67.7 | D129: 54.16 | E129: 14.4 | F129: 16.22333333 | G129: 73.56666667
B130: 7 | C130: 43.7 | D130: 34.96 | E130: 36.1 | F130: 17.75483871 | G130: 79.93548387
B131: 8 | C131: 42 | D131: 33.6 | E131: 11.7 | F131: 17.02258065 | G131: 84.5483871
B132: 9 | C132: 128.4 | D132: 102.72 | E132: 3.9 | F132: 13.85 | G132: 83.56666667
B133: 10 | C133: 250.2 | D133: 250.2 | E133: 0 | F133: 9.929032258 | G133: 90.96774194
B134: 11 | C134: 339.8 | D134: 373.78 | E134: 0 | F134: 6.673333333 | G134: 93.56666667
B135: 12 | C135: 513.2 | D135: 564.52 | E135: 0 | F135: 1.9625 | G135: 94.75
B136: Totaal | C136: 2954.5 | D136: 2976.76 | E136: 72.7
B137: 2009 | C137: Ongewogen graaddagen | D137: Gewogen graaddagen | E137: Koeldagen | F137: Gem. etm. temperatuur | G137: Gem. relatieve vochtigheid
B138: maand | C138: K.d | D138: K.d | E138: K.d | F138: °C | G138: %
B139: 1 | C139: 530.9 | D139: 583.99 | E139: 0 | F139: 0.8741935484 | G139: 92.09677419
B140: 2 | C140: 427.8 | D140: 470.58 | E140: 0 | F140: 2.721428571 | G140: 93.10714286
B141: 3 | C141: 389.4 | D141: 389.4 | E141: 0 | F141: 5.438709677 | G141: 87.03225806
B142: 4 | C142: 190.1 | D142: 152.08 | E142: 0 | F142: 11.66333333 | G142: 77.46666667
B143: 5 | C143: 166.1 | D143: 132.88 | E143: 0 | F143: 12.64193548 | G143: 77.90322581
B144: 6 | C144: 107.1 | D144: 85.68 | E144: 9.1 | F144: 14.73333333 | G144: 77.6
B145: 7 | C145: 40.9 | D145: 32.72 | E145: 19 | F145: 17.29354839 | G145: 82.12903226
B146: 8 | C146: 28.9 | D146: 23.12 | E146: 24.6 | F146: 17.86129032 | G146: 78.4516129
B147: 9 | C147: 107 | D147: 85.6 | E147: 1 | F147: 14.46666667 | G147: 83.2
B148: 10 | C148: 269.9 | D148: 269.9 | E148: 0 | F148: 9.293548387 | G148: 86.38709677
B149: 11 | C149: 278.9 | D149: 306.79 | E149: 0 | F149: 8.703333333 | G149: 90.16666667
B150: 12 | C150: 516.5 | D150: 568.15 | E150: 0 | F150: 1.338709677 | G150: 91.67741935
B151: Totaal | C151: 3053.5 | D151: 3100.89 | E151: 53.7
B152: 2010 | C152: Ongewogen graaddagen | D152: Gewogen graaddagen | E152: Koeldagen | F152: Gem. etm. temperatuur | G152: Gem. relatieve vochtigheid
B153: maand | C153: K.d | D153: K.d | E153: K.d | F153: °C | G153: %
B154: 1 | C154: 619.5 | D154: 681.45 | E154: 0 | F154: -1.983870968 | G154: 90.93548387
B155: 2 | C155: 502.8 | D155: 553.08 | E155: 0 | F155: 0.04285714286 | G155: 89.14285714
B156: 3 | C156: 391.9 | D156: 391.9 | E156: 0 | F156: 5.358064516 | G156: 81.67741935
B157: 4 | C157: 276.5 | D157: 221.2 | E157: 0 | F157: 8.783333333 | G157: 72.16666667
B158: 5 | C158: 264.3 | D158: 211.44 | E158: 0 | F158: 9.474193548 | G158: 78.90322581
B159: 6 | C159: 93.1 | D159: 74.48 | E159: 7.5 | F159: 15.14666667 | G159: 75.73333333
B160: 7 | C160: 19.9 | D160: 15.92 | E160: 63.4 | F160: 19.40322581 | G160: 72.83870968
B161: 8 | C161: 68.5 | D161: 54.8 | E161: 5.7 | F161: 15.97419355 | G161: 83.64516129
B162: 9 | C162: 152.7 | D162: 122.16 | E162: 0 | F162: 12.91 | G162: 85.46666667
B163: 10 | C163: 247.9 | D163: 247.9 | E163: 0 | F163: 10 | G163: 87.6
B164: 11 | C164: 396 | D164: 435.6 | E164: 0 | F164: 4.8 | G164: 92.5
B165: 12 | C165: 630.9 | D165: 694 | E165: 0 | F165: -2.4 | G165: 92.3
B166: Totaal | C166: =SUM(C154:C165) -> 3664 | D166: =SUM(D154:D165) -> 3703.93 | E166: =SUM(E154:E165) -> 76.6
B167: 2011 | C167: Ongewogen graaddagen | D167: Gewogen graaddagen | E167: Koeldagen | F167: Gem. etm. temperatuur | G167: Gem. relatieve vochtigheid
B168: maand | C168: K.d | D168: K.d | E168: K.d | F168: °C | G168: %
B169: 1 | C169: 479.6 | D169: 527.6 | E169: 0 | F169: 2.5 | G169: 93.4
B170: 2 | C170: 415.1 | D170: 456.61 | E170: 0 | F170: 3.175 | G170: 87.28571429
B171: 3 | C171: 409.6 | D171: 409.6 | E171: 0 | F171: 4.787096774 | G171: 81.41935484
B172: 4 | C172: 181.3 | D172: 145.04 | E172: 0 | F172: 11.95666667 | G172: 72
B173: 5 | C173: 157.6 | D173: 126.08 | E173: 5.6 | F173: 13.09677419 | G173: 71.29032258
B174: 6 | C174: 86.8 | D174: 69.44 | E174: 13.8 | F174: 15.56666667 | G174: 78.4
B175: 7 | C175: 84.5 | D175: 67.6 | E175: 0 | F175: 15.27419355 | G175: 82.58064516
B176: 8 | C176: 62 | D176: 49.6 | E176: 10.5 | F176: 16.33870968 | G176: 84.5483871
B177: 9 | C177: 102.6 | D177: 82.08 | E177: 5.1 | F177: 14.75 | G177: 85.03333333
B178: 10 | C178: 231.9 | D178: 231.9 | E178: 0.3 | F178: 10.52903226 | G178: 85
B179: 11 | C179: 364.3 | D179: 400.73 | E179: 0 | F179: 5.856666667 | G179: 92.46666667
B180: 12 | C180: 387.7 | D180: 426.47 | E180: 0 | F180: 5.493548387 | G180: 89.16129032
B181: Totaal | C181: =SUM(C169:C180) -> 2963 | D181: =SUM(D169:D180) -> 2992.75 | E181: =SUM(E169:E180) -> 35.3
B182: 2012 | C182: Ongewogen graaddagen | D182: Gewogen graaddagen | E182: Koeldagen | F182: Gem. etm. temperatuur | G182: Gem. relatieve vochtigheid
B183: maand | C183: K.d | D183: K.d | E183: K.d | F183: °C | G183: %
B184: 1 | C184: 442.4 | D184: 486.64 | E184: 0 | F184: 3.729032258 | G184: 87.29032258
B185: 2 | C185: 514.5 | D185: 565.95 | E185: 0 | F185: 0.2586206897 | G185: 85.44827586
B186: 3 | C186: 333.1 | D186: 333.1 | E186: 0 | F186: 7.25483871 | G186: 84.93548387
B187: 4 | C187: 313.4 | D187: 250.72 | E187: 0 | F187: 7.553333333 | G187: 80.23333333
B188: 5 | C188: 148.1 | D188: 118.48 | E188: 10.6 | F188: 13.56451613 | G188: 75.96774194
B189: 6 | C189: 119.4 | D189: 95.52 | E189: 4.9 | F189: 14.18333333 | G189: 78.36666667
B190: 7 | C190: 65.3 | D190: 52.24 | E190: 18.4 | F190: 16.48709677 | G190: 79.51612903
B191: 8 | C191: 33.4 | D191: 26.72 | E191: 27.6 | F191: 17.81290323 | G191: 77.64516129
B192: 9 | C192: 134.8 | D192: 107.84 | E192: 1.4 | F192: 13.55333333 | G192: 81.73333333
B193: 10 | C193: 256.5 | D193: 256.5 | E193: 0 | F193: 9.725806452 | G193: 86.64516129
B194: 11 | C194: 352.3 | D194: 387.53 | E194: 0 | F194: 6.256666667 | G194: 89.63333333
B195: 12 | C195: 444.3 | D195: 488.73 | E195: 0 | F195: 3.667741935 | G195: 90.93548387
B196: Totaal | C196: =SUM(C184:C195) -> 3157.5 | D196: =SUM(D184:D195) -> 3169.97 | E196: =SUM(E184:E195) -> 62.9
B197: 2013 | C197: Ongewogen graaddagen | D197: Gewogen graaddagen | E197: Koeldagen | F197: Gem. etm. temperatuur | G197: Gem. relatieve vochtigheid
B198: maand | C198: K.d | D198: K.d | E198: K.d | F198: °C | G198: %
B199: 1 | C199: 513.9 | D199: 565.29 | E199: 0 | F199: 1.422580645 | G199: 87.83870968
B200: 2 | C200: 471.6 | D200: 518.76 | E200: 0 | F200: 1.157142857 | G200: 84.71428571
B201: 3 | C201: 527.5 | D201: 527.5 | E201: 0 | F201: 0.9838709677 | G201: 75.06451613
... 85 more rows

Sheet Eindhoven 2000-2018
B2: 2000 | C2: Ongewogen graaddagen | D2: Gewogen graaddagen | E2: Koeldagen | F2: Gem. etm. temperatuur | G2: Gem. relatieve vochtigheid
B3: maand | C3: K.d | D3: K.d | E3: K.d | F3: °C | G3: %
B4: 1 | C4: 434.3 | D4: 477.73 | E4: 0 | F4: 3.990322581 | G4: 87.90322581
B5: 2 | C5: 357.3 | D5: 393.03 | E5: 0 | F5: 5.679310345 | G5: 81.5862069
B6: 3 | C6: 332.2 | D6: 332.2 | E6: 0 | F6: 6.926666667 | G6: 83.8
B7: 4 | C7: 232 | D7: 185.6 | E7: 0 | F7: 10.26666667 | G7: 72.83333333
B8: 5 | C8: 102.5 | D8: 82 | E8: 18.4 | F8: 15.28709677 | G8: 73.5483871
B9: 6 | C9: 71.7 | D9: 57.36 | E9: 29.6 | F9: 16.59666667 | G9: 71.33333333
B10: 7 | C10: 86.2 | D10: 68.96 | E10: 2 | F10: 15.28387097 | G10: 83.77419355
B11: 8 | C11: 23.8 | D11: 19.04 | E11: 19.6 | F11: 17.86451613 | G11: 78.19354839
B12: 9 | C12: 66 | D12: 52.8 | E12: 2.8 | F12: 15.89333333 | G12: 84.3
B13: 10 | C13: 205.4 | D13: 205.4 | E13: 0 | F13: 11.37419355 | G13: 87
B14: 11 | C14: 309.9 | D14: 340.89 | E14: 0 | F14: 7.67 | G14: 86.36666667
B15: 12 | C15: 411.3 | D15: 452.43 | E15: 0 | F15: 5.146875 | G15: 85.8125
B16: Totaal | C16: 2632.6 | D16: 2667.44 | E16: 72.4
B17: 2001 | C17: Ongewogen graaddagen | D17: Gewogen graaddagen | E17: Koeldagen | F17: Gem. etm. temperatuur | G17: Gem. relatieve vochtigheid
B18: maand | C18: K.d | D18: K.d | E18: K.d | F18: °C | G18: %
B19: 1 | C19: 473 | D19: 520.3 | E19: 0 | F19: 2.741935484 | G19: 88.38709677
B20: 2 | C20: 377.6 | D20: 415.36 | E20: 0 | F20: 4.514285714 | G20: 86.25
B21: 3 | C21: 381.6 | D21: 381.6 | E21: 0 | F21: 5.690322581 | G21: 84.96774194
B22: 4 | C22: 288 | D22: 230.4 | E22: 0 | F22: 8.4 | G22: 77.8
B23: 5 | C23: 102.5 | D23: 82 | E23: 8.1 | F23: 14.95483871 | G23: 67.77419355
B24: 6 | C24: 94.3 | D24: 75.44 | E24: 15 | F24: 15.35666667 | G24: 70.7
B25: 7 | C25: 28.4 | D25: 22.72 | E25: 57.5 | F25: 18.93870968 | G25: 74.74193548
B26: 8 | C26: 23.6 | D26: 18.88 | E26: 54.4 | F26: 18.99354839 | G26: 75.93548387
B27: 9 | C27: 145.3 | D27: 116.24 | E27: 0 | F27: 13.15666667 | G27: 87.76666667
B28: 10 | C28: 119 | D28: 119 | E28: 0 | F28: 14.16129032 | G28: 85.96774194
B29: 11 | C29: 353.7 | D29: 389.07 | E29: 0 | F29: 6.21 | G29: 91.46666667
B30: 12 | C30: 486.2 | D30: 534.82 | E30: 0 | F30: 2.316129032 | G30: 91.67741935
B31: Totaal | C31: 2873.2 | D31: 2905.83 | E31: 135
B32: 2002 | C32: Ongewogen graaddagen | D32: Gewogen graaddagen | E32: Koeldagen | F32: Gem. etm. temperatuur | G32: Gem. relatieve vochtigheid
B33: maand | C33: K.d | D33: K.d | E33: K.d | F33: °C | G33: %
B34: 1 | C34: 426.6 | D34: 469.26 | E34: 0 | F34: 4.238709677 | G34: 87.25806452
B35: 2 | C35: 307 | D35: 337.7 | E35: 0 | F35: 7.035714286 | G35: 80.71428571
B36: 3 | C36: 334.6 | D36: 334.6 | E36: 0 | F36: 7.206451613 | G36: 77.25806452
B37: 4 | C37: 256.3 | D37: 205.04 | E37: 0 | F37: 9.456666667 | G37: 71.56666667
B38: 5 | C38: 137.8 | D38: 110.24 | E38: 2.3 | F38: 13.62903226 | G38: 78.4516129
B39: 6 | C39: 48.2 | D39: 38.56 | E39: 21.8 | F39: 17.12 | G39: 73.23333333
B40: 7 | C40: 40.4 | D40: 32.32 | E40: 34.7 | F40: 17.81612903 | G40: 78.80645161
B41: 8 | C41: 16.6 | D41: 13.28 | E41: 37.3 | F41: 18.66774194 | G41: 83.48387097
B42: 9 | C42: 102.3 | D42: 81.84 | E42: 0.8 | F42: 14.61666667 | G42: 80.76666667
B43: 10 | C43: 249.1 | D43: 249.1 | E43: 0 | F43: 9.964516129 | G43: 84.67741935
B44: 11 | C44: 301.8 | D44: 331.98 | E44: 0 | F44: 7.94 | G44: 92
B45: 12 | C45: 445.9 | D45: 490.49 | E45: 0 | F45: 3.616129032 | G45: 88.4516129
B46: Totaal | C46: 2666.6 | D46: 2694.41 | E46: 96.9
B47: 2003 | C47: Ongewogen graaddagen | D47: Gewogen graaddagen | E47: Koeldagen | F47: Gem. etm. temperatuur | G47: Gem. relatieve vochtigheid
B48: maand | C48: K.d | D48: K.d | E48: K.d | F48: °C | G48: %
B49: 1 | C49: 485.7 | D49: 534.27 | E49: 0 | F49: 2.332258065 | G49: 85.96774194
B50: 2 | C50: 447.5 | D50: 492.25 | E50: 0 | F50: 2.017857143 | G50: 77.17857143
B51: 3 | C51: 312 | D51: 312 | E51: 0 | F51: 7.935483871 | G51: 73.29032258
B52: 4 | C52: 230.8 | D52: 184.64 | E52: 0.6 | F52: 10.32666667 | G52: 63
B53: 5 | C53: 139.2 | D53: 111.36 | E53: 8.7 | F53: 13.79032258 | G53: 76.12903226
B54: 6 | C54: 9.8 | D54: 7.84 | E54: 38.5 | F54: 18.95666667 | G54: 70.26666667
B55: 7 | C55: 16.3 | D55: 13.04 | E55: 56.3 | F55: 19.29032258 | G55: 71.93548387
B56: 8 | C56: 25.1 | D56: 20.08 | E56: 73 | F56: 19.54516129 | G56: 73.64516129
B57: 9 | C57: 106.9 | D57: 85.52 | E57: 7.4 | F57: 14.68333333 | G57: 77
B58: 10 | C58: 321.4 | D58: 321.4 | E58: 0 | F58: 7.632258065 | G58: 84.77419355
B59: 11 | C59: 296.7 | D59: 326.37 | E59: 0 | F59: 8.11 | G59: 88.9
B60: 12 | C60: 435.5 | D60: 479.05 | E60: 0 | F60: 3.951612903 | G60: 88.12903226
B61: Totaal | C61: 2826.9 | D61: 2887.82 | E61: 184.5
B62: 2004 | C62: Ongewogen graaddagen | D62: Gewogen graaddagen | E62: Koeldagen | F62: Gem. etm. temperatuur | G62: Gem. relatieve vochtigheid
B63: maand | C63: K.d | D63: K.d | E63: K.d | F63: °C | G63: %
B64: 1 | C64: 455.6 | D64: 501.16 | E64: 0 | F64: 3.303225806 | G64: 88.29032258
B65: 2 | C65: 387.6 | D65: 426.36 | E65: 0 | F65: 4.634482759 | G65: 84.03448276
B66: 3 | C66: 370.5 | D66: 370.5 | E66: 0 | F66: 5.65 | G66: 78.43333333
B67: 4 | C67: 218.7 | D67: 174.96 | E67: 0 | F67: 10.71 | G67: 70.53333333
B68: 5 | C68: 168.3 | D68: 134.64 | E68: 0 | F68: 12.57096774 | G68: 71.38709677
B69: 6 | C69: 77.9 | D69: 62.32 | E69: 10.8 | F69: 15.76333333 | G69: 76.23333333
B70: 7 | C70: 50.2 | D70: 40.16 | E70: 18.4 | F70: 16.97419355 | G70: 77.93548387
B71: 8 | C71: 23.7 | D71: 18.96 | E71: 61.9 | F71: 19.23225806 | G71: 77.77419355
B72: 9 | C72: 86.1 | D72: 68.88 | E72: 11.3 | F72: 15.50666667 | G72: 78.23333333
B73: 10 | C73: 200.6 | D73: 200.6 | E73: 0 | F73: 11.52903226 | G73: 81.96774194
B74: 11 | C74: 360.3 | D74: 396.33 | E74: 0 | F74: 5.99 | G74: 91
B75: 12 | C75: 490.1 | D75: 539.11 | E75: 0 | F75: 2.684375 | G75: 92.21875
B76: Totaal | C76: 2889.6 | D76: 2933.98 | E76: 102.4
B77: 2005 | C77: Ongewogen graaddagen | D77: Gewogen graaddagen | E77: Koeldagen | F77: Gem. etm. temperatuur | G77: Gem. relatieve vochtigheid
B78: maand | C78: K.d | D78: K.d | E78: K.d | F78: °C | G78: %
B79: 1 | C79: 412.3 | D79: 453.53 | E79: 0 | F79: 4.7 | G79: 85.16129032
B80: 2 | C80: 445.2 | D80: 489.72 | E80: 0 | F80: 2.1 | G80: 82.71428571
B81: 3 | C81: 342.2 | D81: 342.2 | E81: 0 | F81: 6.961290323 | G81: 80.51612903
B82: 4 | C82: 221 | D82: 176.8 | E82: 0 | F82: 10.63333333 | G82: 74.8
B83: 5 | C83: 169.5 | D83: 135.6 | E83: 15.8 | F83: 13.04193548 | G83: 73.19354839
B84: 6 | C84: 62.9 | D84: 50.32 | E84: 52.6 | F84: 17.65666667 | G84: 68
B85: 7 | C85: 31.5 | D85: 25.2 | E85: 39.4 | F85: 18.25483871 | G85: 78.90322581
B86: 8 | C86: 65.5 | D86: 52.4 | E86: 12 | F86: 16.27419355 | G86: 81.22580645
B87: 9 | C87: 80.8 | D87: 64.64 | E87: 21.3 | F87: 16.01666667 | G87: 81.26666667
B88: 10 | C88: 138.4 | D88: 138.4 | E88: 0 | F88: 13.53548387 | G88: 84.32258065
B89: 11 | C89: 351.7 | D89: 386.87 | E89: 0 | F89: 6.276666667 | G89: 91.33333333
B90: 12 | C90: 450.7 | D90: 495.77 | E90: 0 | F90: 3.461290323 | G90: 91.64516129
B91: Totaal | C91: 2771.7 | D91: 2811.45 | E91: 141.1
B92: 2006 | C92: Ongewogen graaddagen | D92: Gewogen graaddagen | E92: Koeldagen | F92: Gem. etm. temperatuur | G92: Gem. relatieve vochtigheid
B93: maand | C93: K.d | D93: K.d | E93: K.d | F93: °C | G93: %
B94: 1 | C94: 522.5 | D94: 574.75 | E94: 0 | F94: 1.14516129 | G94: 84.67741935
B95: 2 | C95: 437 | D95: 480.7 | E95: 0 | F95: 2.392857143 | G95: 88.35714286
B96: 3 | C96: 427.8 | D96: 427.8 | E96: 0 | F96: 4.2 | G96: 78.77419355
B97: 4 | C97: 272.3 | D97: 217.84 | E97: 0 | F97: 8.923333333 | G97: 75.53333333
B98: 5 | C98: 107.2 | D98: 85.76 | E98: 7.5 | F98: 14.78387097 | G98: 69.16129032
B99: 6 | C99: 61.8 | D99: 49.44 | E99: 38.4 | F99: 17.22 | G99: 67.56666667
B100: 7 | C100: 0 | D100: 0 | E100: 155.2 | F100: 23.00645161 | G100: 61.48387097
B101: 8 | C101: 67.4 | D101: 53.92 | E101: 7.4 | F101: 16.06451613 | G101: 85.35483871
B102: 9 | C102: 28.5 | D102: 22.8 | E102: 29.2 | F102: 18.02333333 | G102: 80
B103: 10 | C103: 127 | D103: 127 | E103: 0.5 | F103: 13.91935484 | G103: 84.96774194
B104: 11 | C104: 273.2 | D104: 300.52 | E104: 0 | F104: 8.893333333 | G104: 86.96666667
B105: 12 | C105: 371.3 | D105: 408.43 | E105: 0 | F105: 6.022580645 | G105: 87.67741935
B106: Totaal | C106: 2696 | D106: 2748.96 | E106: 238.2
B107: 2007 | C107: Ongewogen graaddagen | D107: Gewogen graaddagen | E107: Koeldagen | F107: Gem. etm. temperatuur | G107: Gem. relatieve vochtigheid
B108: maand | C108: K.d | D108: K.d | E108: K.d | F108: °C | G108: %
B109: 1 | C109: 349.5 | D109: 384.45 | E109: 0 | F109: 6.725806452 | G109: 84.87096774
B110: 2 | C110: 334.4 | D110: 367.84 | E110: 0 | F110: 6.057142857 | G110: 87.28571429
B111: 3 | C111: 315.3 | D111: 315.3 | E111: 0 | F111: 7.829032258 | G111: 77
B112: 4 | C112: 147.9 | D112: 118.32 | E112: 10.7 | F112: 13.42666667 | G112: 62.5
B113: 5 | C113: 110.6 | D113: 88.48 | E113: 2.4 | F113: 14.50967742 | G113: 74.67741935
B114: 6 | C114: 31.9 | D114: 25.52 | E114: 22.4 | F114: 17.68333333 | G114: 78.66666667
B115: 7 | C115: 49.5 | D115: 39.6 | E115: 21.8 | F115: 17.10645161 | G115: 77.61290323
B116: 8 | C116: 46.4 | D116: 37.12 | E116: 16.8 | F116: 17.04516129 | G116: 78.25806452
B117: 9 | C117: 125.6 | D117: 100.48 | E117: 0 | F117: 13.81333333 | G117: 82.56666667
B118: 10 | C118: 248.8 | D118: 248.8 | E118: 0 | F118: 9.974193548 | G118: 86.32258065
B119: 11 | C119: 347.8 | D119: 382.58 | E119: 0 | F119: 6.406666667 | G119: 88.33333333
B120: 12 | C120: 442.8 | D120: 487.08 | E120: 0 | F120: 3.716129032 | G120: 88.80645161
B121: Totaal | C121: 2550.5 | D121: 2595.57 | E121: 74.1
B122: 2008 | C122: Ongewogen graaddagen | D122: Gewogen graaddagen | E122: Koeldagen | F122: Gem. etm. temperatuur | G122: Gem. relatieve vochtigheid
B123: maand | C123: K.d | D123: K.d | E123: K.d | F123: °C | G123: %
B124: 1 | C124: 360.5 | D124: 396.55 | E124: 0 | F124: 6.370967742 | G124: 84.70967742
B125: 2 | C125: 371.2 | D125: 408.32 | E125: 0 | F125: 5.1 | G125: 79.07142857
B126: 3 | C126: 361.9 | D126: 361.9 | E126: 0 | F126: 6.003225806 | G126: 80.58064516
B127: 4 | C127: 270.6 | D127: 216.48 | E127: 0 | F127: 8.98 | G127: 73.2
B128: 5 | C128: 70.8 | D128: 56.64 | E128: 17.2 | F128: 16.27096774 | G128: 63.67741935
B129: 6 | C129: 59.4 | D129: 47.52 | E129: 13.3 | F129: 16.46333333 | G129: 75.46666667
B130: 7 | C130: 42 | D130: 33.6 | E130: 33.8 | F130: 17.73548387 | G130: 79.41935484
B131: 8 | C131: 29.6 | D131: 23.68 | E131: 20 | F131: 17.69032258 | G131: 79.87096774
B132: 9 | C132: 134.7 | D132: 107.76 | E132: 6.3 | F132: 13.72 | G132: 81.26666667
B133: 10 | C133: 245.7 | D133: 245.7 | E133: 0 | F133: 10.07419355 | G133: 86.25806452
B134: 11 | C134: 339.7 | D134: 373.67 | E134: 0 | F134: 6.676666667 | G134: 89.4
B135: 12 | C135: 505.4 | D135: 555.94 | E135: 0 | F135: 2.20625 | G135: 90.46875
B136: Totaal | C136: 2791.5 | D136: 2827.76 | E136: 90.6
B137: 2009 | C137: Ongewogen graaddagen | D137: Gewogen graaddagen | E137: Koeldagen | F137: Gem. etm. temperatuur | G137: Gem. relatieve vochtigheid
B138: maand | C138: K.d | D138: K.d | E138: K.d | F138: °C | G138: %
B139: 1 | C139: 557.6 | D139: 613.36 | E139: 0 | F139: 0.01290322581 | G139: 85.61290323
B140: 2 | C140: 414.6 | D140: 456.06 | E140: 0 | F140: 3.192857143 | G140: 87.60714286
B141: 3 | C141: 367 | D141: 367 | E141: 0 | F141: 6.161290323 | G141: 79.32258065
B142: 4 | C142: 159.7 | D142: 127.76 | E142: 0 | F142: 12.67666667 | G142: 73.06666667
B143: 5 | C143: 117.1 | D143: 93.68 | E143: 3 | F143: 14.31935484 | G143: 70.80645161
B144: 6 | C144: 78.6 | D144: 62.88 | E144: 20.3 | F144: 16.05666667 | G144: 71.43333333
B145: 7 | C145: 28.6 | D145: 22.88 | E145: 40.4 | F145: 18.38064516 | G145: 73.64516129
B146: 8 | C146: 19.1 | D146: 15.28 | E146: 45.8 | F146: 18.86129032 | G146: 70.4516129
B147: 9 | C147: 89.2 | D147: 71.36 | E147: 1.8 | F147: 15.08666667 | G147: 79.26666667
B148: 10 | C148: 227.9 | D148: 227.9 | E148: 0 | F148: 10.6483871 | G148: 82.93548387
B149: 11 | C149: 253 | D149: 278.3 | E149: 0 | F149: 9.566666667 | G149: 85.46666667
B150: 12 | C150: 488.9 | D150: 537.79 | E150: 0 | F150: 2.229032258 | G150: 89.35483871
B151: Totaal | C151: 2801.3 | D151: 2874.25 | E151: 111.3
B152: 2010 | C152: Ongewogen graaddagen | D152: Gewogen graaddagen | E152: Koeldagen | F152: Gem. etm. temperatuur | G152: Gem. relatieve vochtigheid
B153: maand | C153: K.d | D153: K.d | E153: K.d | F153: °C | G153: %
B154: 1 | C154: 570.5 | D154: 627.55 | E154: 0 | F154: -0.4032258065 | G154: 89.35483871
B155: 2 | C155: 454 | D155: 499.4 | E155: 0 | F155: 1.785714286 | G155: 84.60714286
B156: 3 | C156: 358.2 | D156: 358.2 | E156: 0 | F156: 6.44516129 | G156: 74.19354839
B157: 4 | C157: 247.9 | D157: 198.32 | E157: 1.9 | F157: 9.8 | G157: 65.96666667
B158: 5 | C158: 219.8 | D158: 175.84 | E158: 1 | F158: 10.94193548 | G158: 74.96774194
B159: 6 | C159: 46.6 | D159: 37.28 | E159: 30.9 | F159: 17.47666667 | G159: 65.76666667
B160: 7 | C160: 9.4 | D160: 7.52 | E160: 90.8 | F160: 20.62580645 | G160: 66.61290323
B161: 8 | C161: 42.1 | D161: 33.68 | E161: 14.8 | F161: 17.11935484 | G161: 80.22580645
B162: 9 | C162: 127.3 | D162: 101.84 | E162: 0.2 | F162: 13.76333333 | G162: 83.73333333
B163: 10 | C163: 238.7 | D163: 238.7 | E163: 0.3 | F163: 10.3 | G163: 83.8
B164: 11 | C164: 360.1 | D164: 396.1 | E164: 0 | F164: 6 | G164: 89
B165: 12 | C165: 600.1 | D165: 660.1 | E165: 0 | F165: -1.4 | G165: 89.1
B166: Totaal | C166: =SUM(C154:C165) -> 3274.7 | D166: =SUM(D154:D165) -> 3334.53 | E166: =SUM(E154:E165) -> 139.9
B167: 2011 | C167: Ongewogen graaddagen | D167: Gewogen graaddagen | E167: Koeldagen | F167: Gem. etm. temperatuur | G167: Gem. relatieve vochtigheid
B168: maand | C168: K.d | D168: K.d | E168: K.d | F168: °C | G168: %
B169: 1 | C169: 453.9 | D169: 499.3 | E169: 0 | F169: 3.4 | G169: 88.6
B170: 2 | C170: 363.1 | D170: 399.41 | E170: 0 | F170: 5.032142857 | G170: 83.21428571
B171: 3 | C171: 350.3 | D171: 350.3 | E171: 0 | F171: 6.7 | G171: 75.12903226
B172: 4 | C172: 135.4 | D172: 108.32 | E172: 2.3 | F172: 13.56333333 | G172: 64.5
B173: 5 | C173: 112 | D173: 89.6 | E173: 10.4 | F173: 14.72258065 | G173: 64.29032258
B174: 6 | C174: 64 | D174: 51.2 | E174: 28.7 | F174: 16.82333333 | G174: 73.5
B175: 7 | C175: 61.9 | D175: 49.52 | E175: 6.8 | F175: 16.22258065 | G175: 77.32258065
B176: 8 | C176: 38.4 | D176: 30.72 | E176: 19.1 | F176: 17.37741935 | G176: 81.4516129
B177: 9 | C177: 69 | D177: 55.2 | E177: 11.9 | F177: 16.09666667 | G177: 81.46666667
B178: 10 | C178: 202.3 | D178: 202.3 | E178: 0.1 | F178: 11.47741935 | G178: 82.35483871
B179: 11 | C179: 311.5 | D179: 342.65 | E179: 0 | F179: 7.616666667 | G179: 88.23333333
B180: 12 | C180: 371.4 | D180: 408.54 | E180: 0 | F180: 6.019354839 | G180: 87.4516129
B181: Totaal | C181: =SUM(C169:C180) -> 2533.2 | D181: =SUM(D169:D180) -> 2587.06 | E181: =SUM(E169:E180) -> 79.3
B182: 2012 | C182: Ongewogen graaddagen | D182: Gewogen graaddagen | E182: Koeldagen | F182: Gem. etm. temperatuur | G182: Gem. relatieve vochtigheid
B183: maand | C183: K.d | D183: K.d | E183: K.d | F183: °C | G183: %
B184: 1 | C184: 409.5 | D184: 450.45 | E184: 0 | F184: 4.790322581 | G184: 86.96774194
B185: 2 | C185: 513.2 | D185: 564.52 | E185: 0 | F185: 0.3034482759 | G185: 81.31034483
B186: 3 | C186: 294.2 | D186: 294.2 | E186: 0 | F186: 8.509677419 | G186: 80
B187: 4 | C187: 283.1 | D187: 226.48 | E187: 0 | F187: 8.563333333 | G187: 77.06666667
B188: 5 | C188: 118 | D188: 94.4 | E188: 19.4 | F188: 14.81935484 | G188: 72.61290323
B189: 6 | C189: 85.4 | D189: 68.32 | E189: 10.7 | F189: 15.51 | G189: 74.56666667
B190: 7 | C190: 47.8 | D190: 38.24 | E190: 31.8 | F190: 17.48387097 | G190: 75.77419355
B191: 8 | C191: 20 | D191: 16 | E191: 49.8 | F191: 18.96129032 | G191: 73.19354839
B192: 9 | C192: 123.7 | D192: 98.96 | E192: 2.3 | F192: 13.95333333 | G192: 79.8
B193: 10 | C193: 231.7 | D193: 231.7 | E193: 0 | F193: 10.52580645 | G193: 85.12903226
B194: 11 | C194: 334.4 | D194: 367.84 | E194: 0 | F194: 6.853333333 | G194: 89.63333333
B195: 12 | C195: 405.2 | D195: 445.72 | E195: 0 | F195: 4.929032258 | G195: 91.5483871
B196: Totaal | C196: =SUM(C184:C195) -> 2866.2 | D196: =SUM(D184:D195) -> 2896.83 | E196: =SUM(E184:E195) -> 114
B197: 2013 | C197: Ongewogen graaddagen | D197: Gewogen graaddagen | E197: Koeldagen | F197: Gem. etm. temperatuur | G197: Gem. relatieve vochtigheid
B198: maand | C198: K.d | D198: K.d | E198: K.d | F198: °C | G198: %
B199: 1 | C199: 497.4 | D199: 547.14 | E199: 0 | F199: 1.95483871 | G199: 89.12903226
B200: 2 | C200: 465.4 | D200: 511.94 | E200: 0 | F200: 1.378571429 | G200: 85
B201: 3 | C201: 475.6 | D201: 475.6 | E201: 0 | F201: 2.658064516 | G201: 71.70967742
... 85 more rows

Sheet Maastricht 2000-2018
B2: 2000 | C2: Ongewogen graaddagen | D2: Gewogen graaddagen | E2: Koeldagen | F2: Gem. etm. temperatuur | G2: Gem. relatieve vochtigheid
B3: maand | C3: K.d | D3: K.d | E3: K.d | F3: °C | G3: %
B4: 1 | C4: 444 | D4: 488.4 | E4: 0 | F4: 3.677419355 | G4: 88.32258065
B5: 2 | C5: 356.9 | D5: 392.59 | E5: 0 | F5: 5.693103448 | G5: 82.75862069
B6: 3 | C6: 340.5 | D6: 340.5 | E6: 0 | F6: 6.65 | G6: 85.86666667
B7: 4 | C7: 229.7 | D7: 183.76 | E7: 0 | F7: 10.34333333 | G7: 74.2
B8: 5 | C8: 104.3 | D8: 83.44 | E8: 16.9 | F8: 15.18064516 | G8: 77.06451613
B9: 6 | C9: 64.8 | D9: 51.84 | E9: 36.6 | F9: 17.06 | G9: 69.13333333
B10: 7 | C10: 91.2 | D10: 72.96 | E10: 2.8 | F10: 15.1483871 | G10: 84.70967742
B11: 8 | C11: 15.9 | D11: 12.72 | E11: 31.1 | F11: 18.49032258 | G11: 75.61290323
B12: 9 | C12: 62.5 | D12: 50 | E12: 7.3 | F12: 16.16 | G12: 80.96666667
B13: 10 | C13: 200.6 | D13: 200.6 | E13: 0 | F13: 11.52903226 | G13: 84.12903226
B14: 11 | C14: 303.1 | D14: 333.41 | E14: 0 | F14: 7.896666667 | G14: 82.86666667
B15: 12 | C15: 398 | D15: 437.8 | E15: 0 | F15: 5.5625 | G15: 84.65625
B16: Totaal | C16: 2611.5 | D16: 2648.02 | E16: 94.7
B17: 2001 | C17: Ongewogen graaddagen | D17: Gewogen graaddagen | E17: Koeldagen | F17: Gem. etm. temperatuur | G17: Gem. relatieve vochtigheid
B18: maand | C18: K.d | D18: K.d | E18: K.d | F18: °C | G18: %
B19: 1 | C19: 458.3 | D19: 504.13 | E19: 0 | F19: 3.216129032 | G19: 87.29032258
B20: 2 | C20: 376.3 | D20: 413.93 | E20: 0 | F20: 4.560714286 | G20: 85.71428571
B21: 3 | C21: 366.2 | D21: 366.2 | E21: 0 | F21: 6.187096774 | G21: 85.83870968
B22: 4 | C22: 291.4 | D22: 233.12 | E22: 0 | F22: 8.286666667 | G22: 78.93333333
B23: 5 | C23: 101.1 | D23: 80.88 | E23: 8.6 | F23: 15.01612903 | G23: 68.74193548
B24: 6 | C24: 88.8 | D24: 71.04 | E24: 18.4 | F24: 15.65333333 | G24: 69.56666667
B25: 7 | C25: 27.3 | D25: 21.84 | E25: 60.4 | F25: 19.06774194 | G25: 73.16129032
B26: 8 | C26: 20.9 | D26: 16.72 | E26: 66 | F26: 19.45483871 | G26: 71.93548387
B27: 9 | C27: 153.6 | D27: 122.88 | E27: 0 | F27: 12.88 | G27: 87.83333333
B28: 10 | C28: 112.8 | D28: 112.8 | E28: 0.2 | F28: 14.36774194 | G28: 83.93548387
B29: 11 | C29: 369.8 | D29: 406.78 | E29: 0 | F29: 5.673333333 | G29: 91.5
B30: 12 | C30: 494.9 | D30: 544.39 | E30: 0 | F30: 2.035483871 | G30: 91.48387097
B31: Totaal | C31: 2861.4 | D31: 2894.71 | E31: 153.6
B32: 2002 | C32: Ongewogen graaddagen | D32: Gewogen graaddagen | E32: Koeldagen | F32: Gem. etm. temperatuur | G32: Gem. relatieve vochtigheid
B33: maand | C33: K.d | D33: K.d | E33: K.d | F33: °C | G33: %
B34: 1 | C34: 427.4 | D34: 470.14 | E34: 0 | F34: 4.212903226 | G34: 85.51612903
B35: 2 | C35: 309.4 | D35: 340.34 | E35: 0 | F35: 6.95 | G35: 78.82142857
B36: 3 | C36: 327.9 | D36: 327.9 | E36: 0 | F36: 7.422580645 | G36: 74.35483871
B37: 4 | C37: 255.1 | D37: 204.08 | E37: 0 | F37: 9.496666667 | G37: 69.03333333
B38: 5 | C38: 132.5 | D38: 106 | E38: 1.9 | F38: 13.78709677 | G38: 75.29032258
B39: 6 | C39: 41.3 | D39: 33.04 | E39: 25.4 | F39: 17.47 | G39: 70.63333333
B40: 7 | C40: 37.1 | D40: 29.68 | E40: 34.3 | F40: 17.90967742 | G40: 75.51612903
B41: 8 | C41: 16 | D41: 12.8 | E41: 32.9 | F41: 18.54516129 | G41: 81.80645161
B42: 9 | C42: 111.4 | D42: 89.12 | E42: 0.9 | F42: 14.31666667 | G42: 78.53333333
B43: 10 | C43: 237.5 | D43: 237.5 | E43: 0 | F43: 10.33870968 | G43: 83.25806452
B44: 11 | C44: 286.8 | D44: 315.48 | E44: 0 | F44: 8.44 | G44: 88.7
B45: 12 | C45: 434 | D45: 477.4 | E45: 0 | F45: 4 | G45: 87.61290323
B46: Totaal | C46: 2616.4 | D46: 2643.48 | E46: 95.4
B47: 2003 | C47: Ongewogen graaddagen | D47: Gewogen graaddagen | E47: Koeldagen | F47: Gem. etm. temperatuur | G47: Gem. relatieve vochtigheid
B48: maand | C48: K.d | D48: K.d | E48: K.d | F48: °C | G48: %
B49: 1 | C49: 497.2 | D49: 546.92 | E49: 0 | F49: 1.961290323 | G49: 84.90322581
B50: 2 | C50: 453.4 | D50: 498.74 | E50: 0 | F50: 1.807142857 | G50: 76.60714286
B51: 3 | C51: 298.6 | D51: 298.6 | E51: 0 | F51: 8.367741935 | G51: 72.80645161
B52: 4 | C52: 233.4 | D52: 186.72 | E52: 0 | F52: 10.22 | G52: 64.66666667
B53: 5 | C53: 133.4 | D53: 106.72 | E53: 8.3 | F53: 13.96451613 | G53: 76.93548387
B54: 6 | C54: 6 | D54: 4.8 | E54: 48 | F54: 19.4 | G54: 71.66666667
B55: 7 | C55: 14.7 | D55: 11.76 | E55: 65.7 | F55: 19.64516129 | G55: 71.22580645
B56: 8 | C56: 18.1 | D56: 14.48 | E56: 98.6 | F56: 20.59677419 | G56: 69.16129032
B57: 9 | C57: 93.4 | D57: 74.72 | E57: 16.5 | F57: 15.43666667 | G57: 70.13333333
B58: 10 | C58: 322.2 | D58: 322.2 | E58: 0 | F58: 7.606451613 | G58: 83.41935484
B59: 11 | C59: 295.2 | D59: 324.72 | E59: 0 | F59: 8.16 | G59: 85.7
B60: 12 | C60: 433.1 | D60: 476.41 | E60: 0 | F60: 4.029032258 | G60: 85.93548387
B61: Totaal | C61: 2798.7 | D61: 2866.79 | E61: 237.1
B62: 2004 | C62: Ongewogen graaddagen | D62: Gewogen graaddagen | E62: Koeldagen | F62: Gem. etm. temperatuur | G62: Gem. relatieve vochtigheid
B63: maand | C63: K.d | D63: K.d | E63: K.d | F63: °C | G63: %
B64: 1 | C64: 470.4 | D64: 517.44 | E64: 0 | F64: 2.825806452 | G64: 86.87096774
B65: 2 | C65: 395.4 | D65: 434.94 | E65: 0 | F65: 4.365517241 | G65: 82.75862069
B66: 3 | C66: 366.3 | D66: 366.3 | E66: 0 | F66: 5.79 | G66: 76.56666667
B67: 4 | C67: 229 | D67: 183.2 | E67: 0 | F67: 10.36666667 | G67: 72.06666667
B68: 5 | C68: 168 | D68: 134.4 | E68: 0 | F68: 12.58064516 | G68: 72.25806452
B69: 6 | C69: 77 | D69: 61.6 | E69: 15.1 | F69: 15.93666667 | G69: 75.16666667
B70: 7 | C70: 49.3 | D70: 39.44 | E70: 25.9 | F70: 17.24516129 | G70: 75.93548387
B71: 8 | C71: 22.7 | D71: 18.16 | E71: 63.9 | F71: 19.32903226 | G71: 75.61290323
B72: 9 | C72: 82.8 | D72: 66.24 | E72: 15 | F72: 15.74 | G72: 76.16666667
B73: 10 | C73: 194.4 | D73: 194.4 | E73: 0 | F73: 11.72903226 | G73: 80.29032258
B74: 11 | C74: 359.6 | D74: 395.56 | E74: 0 | F74: 6.013333333 | G74: 90.1
B75: 12 | C75: 500.3 | D75: 550.33 | E75: 0 | F75: 2.365625 | G75: 90.3125
B76: Totaal | C76: 2915.2 | D76: 2962.01 | E76: 119.9
B77: 2005 | C77: Ongewogen graaddagen | D77: Gewogen graaddagen | E77: Koeldagen | F77: Gem. etm. temperatuur | G77: Gem. relatieve vochtigheid
B78: maand | C78: K.d | D78: K.d | E78: K.d | F78: °C | G78: %
B79: 1 | C79: 423.3 | D79: 465.63 | E79: 0 | F79: 4.34516129 | G79: 83.4516129
B80: 2 | C80: 459 | D80: 504.9 | E80: 0 | F80: 1.607142857 | G80: 82.21428571
B81: 3 | C81: 345.4 | D81: 345.4 | E81: 0 | F81: 6.858064516 | G81: 79.64516129
B82: 4 | C82: 225.8 | D82: 180.64 | E82: 0 | F82: 10.47333333 | G82: 74.43333333
B83: 5 | C83: 162 | D83: 129.6 | E83: 21.6 | F83: 13.47096774 | G83: 69.16129032
B84: 6 | C84: 58.6 | D84: 46.88 | E84: 61.3 | F84: 18.09 | G84: 62.86666667
B85: 7 | C85: 30.6 | D85: 24.48 | E85: 48.2 | F85: 18.56774194 | G85: 73.90322581
B86: 8 | C86: 64.3 | D86: 51.44 | E86: 13.9 | F86: 16.37419355 | G86: 77.67741935
B87: 9 | C87: 74 | D87: 59.2 | E87: 25.1 | F87: 16.37 | G87: 75.6
B88: 10 | C88: 130.2 | D88: 130.2 | E88: 0 | F88: 13.8 | G88: 79.5483871
B89: 11 | C89: 359.1 | D89: 395.01 | E89: 0 | F89: 6.03 | G89: 88.73333333
B90: 12 | C90: 462.1 | D90: 508.31 | E90: 0 | F90: 3.093548387 | G90: 90
B91: Totaal | C91: 2794.4 | D91: 2841.69 | E91: 170.1
B92: 2006 | C92: Ongewogen graaddagen | D92: Gewogen graaddagen | E92: Koeldagen | F92: Gem. etm. temperatuur | G92: Gem. relatieve vochtigheid
B93: maand | C93: K.d | D93: K.d | E93: K.d | F93: °C | G93: %
B94: 1 | C94: 536.1 | D94: 589.71 | E94: 0 | F94: 0.7064516129 | G94: 83.35483871
B95: 2 | C95: 452 | D95: 497.2 | E95: 0 | F95: 1.857142857 | G95: 87.5
B96: 3 | C96: 437.5 | D96: 437.5 | E96: 0 | F96: 3.887096774 | G96: 78.32258065
B97: 4 | C97: 268 | D97: 214.4 | E97: 0 | F97: 9.066666667 | G97: 72.6
B98: 5 | C98: 117.8 | D98: 94.24 | E98: 3 | F98: 14.29677419 | G98: 73.09677419
B99: 6 | C99: 59.9 | D99: 47.92 | E99: 41.4 | F99: 17.38333333 | G99: 69
B100: 7 | C100: 0 | D100: 0 | E100: 152.3 | F100: 22.91290323 | G100: 62.29032258
B101: 8 | C101: 68.3 | D101: 54.64 | E101: 4.6 | F101: 15.94516129 | G101: 83.87096774
B102: 9 | C102: 27.2 | D102: 21.76 | E102: 35.8 | F102: 18.28666667 | G102: 77.4
B103: 10 | C103: 123.4 | D103: 123.4 | E103: 0.9 | F103: 14.0483871 | G103: 81.87096774
B104: 11 | C104: 269.9 | D104: 296.89 | E104: 0 | F104: 9.003333333 | G104: 84.66666667
B105: 12 | C105: 373.8 | D105: 411.18 | E105: 0 | F105: 5.941935484 | G105: 86.67741935
B106: Totaal | C106: 2733.9 | D106: 2788.84 | E106: 238
B107: 2007 | C107: Ongewogen graaddagen | D107: Gewogen graaddagen | E107: Koeldagen | F107: Gem. etm. temperatuur | G107: Gem. relatieve vochtigheid
B108: maand | C108: K.d | D108: K.d | E108: K.d | F108: °C | G108: %
B109: 1 | C109: 354 | D109: 389.4 | E109: 0 | F109: 6.580645161 | G109: 84.06451613
B110: 2 | C110: 327.4 | D110: 360.14 | E110: 0 | F110: 6.307142857 | G110: 84.64285714
B111: 3 | C111: 317.5 | D111: 317.5 | E111: 0 | F111: 7.758064516 | G111: 75.32258065
B112: 4 | C112: 146 | D112: 116.8 | E112: 13.1 | F112: 13.57 | G112: 60.33333333
B113: 5 | C113: 105.5 | D113: 84.4 | E113: 3.8 | F113: 14.71935484 | G113: 73.77419355
B114: 6 | C114: 31.3 | D114: 25.04 | E114: 21.1 | F114: 17.66 | G114: 79.56666667
B115: 7 | C115: 52 | D115: 41.6 | E115: 29.3 | F115: 17.26774194 | G115: 76.93548387
B116: 8 | C116: 48.8 | D116: 39.04 | E116: 16.4 | F116: 16.95483871 | G116: 80.29032258
B117: 9 | C117: 130.3 | D117: 104.24 | E117: 0 | F117: 13.65666667 | G117: 83.4
B118: 10 | C118: 252.3 | D118: 252.3 | E118: 0 | F118: 9.861290323 | G118: 87.64516129
B119: 11 | C119: 355.6 | D119: 391.16 | E119: 0 | F119: 6.146666667 | G119: 89.06666667
B120: 12 | C120: 449.6 | D120: 494.56 | E120: 0 | F120: 3.496774194 | G120: 88.4516129
B121: Totaal | C121: 2570.3 | D121: 2616.18 | E121: 83.7
B122: 2008 | C122: Ongewogen graaddagen | D122: Gewogen graaddagen | E122: Koeldagen | F122: Gem. etm. temperatuur | G122: Gem. relatieve vochtigheid
B123: maand | C123: K.d | D123: K.d | E123: K.d | F123: °C | G123: %
B124: 1 | C124: 370.2 | D124: 407.22 | E124: 0 | F124: 6.058064516 | G124: 84.51612903
B125: 2 | C125: 367.7 | D125: 404.47 | E125: 0 | F125: 5.221428571 | G125: 78.39285714
B126: 3 | C126: 366.5 | D126: 366.5 | E126: 0 | F126: 5.858064516 | G126: 81.03225806
B127: 4 | C127: 277.3 | D127: 221.84 | E127: 0 | F127: 8.756666667 | G127: 75.5
B128: 5 | C128: 73.1 | D128: 58.48 | E128: 10 | F128: 15.96451613 | G128: 66.41935484
B129: 6 | C129: 60.3 | D129: 48.24 | E129: 14.2 | F129: 16.46333333 | G129: 75.9
B130: 7 | C130: 46.7 | D130: 37.36 | E130: 30.8 | F130: 17.48709677 | G130: 78.83870968
B131: 8 | C131: 28.5 | D131: 22.8 | E131: 20.1 | F131: 17.72903226 | G131: 78.03225806
B132: 9 | C132: 137.2 | D132: 109.76 | E132: 7.9 | F132: 13.69 | G132: 79.76666667
B133: 10 | C133: 239.7 | D133: 239.7 | E133: 0 | F133: 10.26774194 | G133: 86.5483871
B134: 11 | C134: 341 | D134: 375.1 | E134: 0 | F134: 6.633333333 | G134: 89.63333333
B135: 12 | C135: 506.1 | D135: 556.71 | E135: 0 | F135: 2.184375 | G135: 91.78125
B136: Totaal | C136: 2814.3 | D136: 2848.18 | E136: 83
B137: 2009 | C137: Ongewogen graaddagen | D137: Gewogen graaddagen | E137: Koeldagen | F137: Gem. etm. temperatuur | G137: Gem. relatieve vochtigheid
B138: maand | C138: K.d | D138: K.d | E138: K.d | F138: °C | G138: %
B139: 1 | C139: 567.4 | D139: 624.14 | E139: 0 | F139: -0.3032258065 | G139: 85.09677419
B140: 2 | C140: 419.2 | D140: 461.12 | E140: 0 | F140: 3.028571429 | G140: 88.25
B141: 3 | C141: 368.8 | D141: 368.8 | E141: 0 | F141: 6.103225806 | G141: 77.4516129
B142: 4 | C142: 166.9 | D142: 133.52 | E142: 0.4 | F142: 12.45 | G142: 73.7
B143: 5 | C143: 116.1 | D143: 92.88 | E143: 3.9 | F143: 14.38064516 | G143: 72.41935484
B144: 6 | C144: 82.1 | D144: 65.68 | E144: 17.9 | F144: 15.86 | G144: 73.13333333
B145: 7 | C145: 26.5 | D145: 21.2 | E145: 44 | F145: 18.56451613 | G145: 72.58064516
B146: 8 | C146: 13.8 | D146: 11.04 | E146: 50.3 | F146: 19.17741935 | G146: 68.70967742
B147: 9 | C147: 89.5 | D147: 71.6 | E147: 4.4 | F147: 15.16333333 | G147: 79.5
B148: 10 | C148: 233.6 | D148: 233.6 | E148: 0.4 | F148: 10.47741935 | G148: 82.74193548
B149: 11 | C149: 253.4 | D149: 278.74 | E149: 0 | F149: 9.553333333 | G149: 82.06666667
B150: 12 | C150: 484.9 | D150: 533.39 | E150: 0 | F150: 2.358064516 | G150: 86.06451613
B151: Totaal | C151: 2822.2 | D151: 2895.71 | E151: 121.3
B152: 2010 | C152: Ongewogen graaddagen | D152: Gewogen graaddagen | E152: Koeldagen | F152: Gem. etm. temperatuur | G152: Gem. relatieve vochtigheid
B153: maand | C153: K.d | D153: K.d | E153: K.d | F153: °C | G153: %
B154: 1 | C154: 580.2 | D154: 638.22 | E154: 0 | F154: -0.7161290323 | G154: 89.19354839
B155: 2 | C155: 449.6 | D155: 494.56 | E155: 0 | F155: 1.942857143 | G155: 84.92857143
B156: 3 | C156: 368.4 | D156: 368.4 | E156: 0 | F156: 6.116129032 | G156: 74.74193548
B157: 4 | C157: 251 | D157: 200.8 | E157: 2.5 | F157: 9.716666667 | G157: 68.06666667
B158: 5 | C158: 224.4 | D158: 179.52 | E158: 1.5 | F158: 10.80967742 | G158: 76.80645161
B159: 6 | C159: 50.2 | D159: 40.16 | E159: 31.7 | F159: 17.38333333 | G159: 66.73333333
B160: 7 | C160: 10.1 | D160: 8.08 | E160: 100.2 | F160: 20.90645161 | G160: 64.87096774
B161: 8 | C161: 47.4 | D161: 37.92 | E161: 18 | F161: 17.0516129 | G161: 78.22580645
B162: 9 | C162: 130.1 | D162: 104.08 | E162: 0.3 | F162: 13.67333333 | G162: 82.13333333
B163: 10 | C163: 249.4 | D163: 249.4 | E163: 1.2 | F163: 10 | G163: 82.7
B164: 11 | C164: 365 | D164: 401.5 | E164: 0 | F164: 5.8 | G164: 90.5
B165: 12 | C165: 605.9 | D165: 666.5 | E165: 0 | F165: -1.5 | G165: 92.9
B166: Totaal | C166: =SUM(C154:C165) -> 3331.7 | D166: =SUM(D154:D165) -> 3389.14 | E166: =SUM(E154:E165) -> 155.4
B167: 2011 | C167: Ongewogen graaddagen | D167: Gewogen graaddagen | E167: Koeldagen | F167: Gem. etm. temperatuur | G167: Gem. relatieve vochtigheid
B168: maand | C168: K.d | D168: K.d | E168: K.d | F168: °C | G168: %
B169: 1 | C169: 460.2 | D169: 506.2 | E169: 0 | F169: 3.2 | G169: 91
B170: 2 | C170: 368.1 | D170: 404.91 | E170: 0 | F170: 4.853571429 | G170: 83.46428571
B171: 3 | C171: 347.4 | D171: 347.4 | E171: 0 | F171: 6.793548387 | G171: 72.74193548
B172: 4 | C172: 139.9 | D172: 111.92 | E172: 0 | F172: 13.33666667 | G172: 62.73333333
B173: 5 | C173: 105.3 | D173: 84.24 | E173: 11.6 | F173: 14.97741935 | G173: 59.80645161
B174: 6 | C174: 69.2 | D174: 55.36 | E174: 27 | F174: 16.59333333 | G174: 72.36666667
B175: 7 | C175: 73.3 | D175: 58.64 | E175: 5.9 | F175: 15.82580645 | G175: 76.09677419
B176: 8 | C176: 41 | D176: 32.8 | E176: 24.1 | F176: 17.45483871 | G176: 77.58064516
B177: 9 | C177: 65.6 | D177: 52.48 | E177: 15.5 | F177: 16.33 | G177: 77.83333333
B178: 10 | C178: 205.3 | D178: 205.3 | E178: 0 | F178: 11.37741935 | G178: 79.06451613
B179: 11 | C179: 309.3 | D179: 340.23 | E179: 0 | F179: 7.69 | G179: 85.53333333
B180: 12 | C180: 383.8 | D180: 422.18 | E180: 0 | F180: 5.619354839 | G180: 86.93548387
B181: Totaal | C181: =SUM(C169:C180) -> 2568.4 | D181: =SUM(D169:D180) -> 2621.66 | E181: =SUM(E169:E180) -> 84.1
B182: 2012 | C182: Ongewogen graaddagen | D182: Gewogen graaddagen | E182: Koeldagen | F182: Gem. etm. temperatuur | G182: Gem. relatieve vochtigheid
B183: maand | C183: K.d | D183: K.d | E183: K.d | F183: °C | G183: %
B184: 1 | C184: 421 | D184: 463.1 | E184: 0 | F184: 4.419354839 | G184: 84.64516129
B185: 2 | C185: 533.3 | D185: 586.63 | E185: 0 | F185: -0.3896551724 | G185: 81.72413793
B186: 3 | C186: 289.9 | D186: 289.9 | E186: 0 | F186: 8.648387097 | G186: 77.61290323
B187: 4 | C187: 285.6 | D187: 228.48 | E187: 0 | F187: 8.48 | G187: 76.3
B188: 5 | C188: 116.7 | D188: 93.36 | E188: 12.3 | F188: 14.63225806 | G188: 73.16129032
B189: 6 | C189: 85.8 | D189: 68.64 | E189: 10 | F189: 15.47333333 | G189: 76.5
B190: 7 | C190: 51.2 | D190: 40.96 | E190: 29.1 | F190: 17.28709677 | G190: 75.5483871
B191: 8 | C191: 21 | D191: 16.8 | E191: 57.3 | F191: 19.17096774 | G191: 69.74193548
B192: 9 | C192: 126.2 | D192: 100.96 | E192: 5 | F192: 13.96 | G192: 76.66666667
B193: 10 | C193: 235 | D193: 235 | E193: 0.7 | F193: 10.44193548 | G193: 83.83870968
B194: 11 | C194: 335.8 | D194: 369.38 | E194: 0 | F194: 6.806666667 | G194: 86.76666667
B195: 12 | C195: 412.6 | D195: 453.86 | E195: 0 | F195: 4.690322581 | G195: 88.83870968
B196: Totaal | C196: =SUM(C184:C195) -> 2914.1 | D196: =SUM(D184:D195) -> 2947.07 | E196: =SUM(E184:E195) -> 114.4
B197: 2013 | C197: Ongewogen graaddagen | D197: Gewogen graaddagen | E197: Koeldagen | F197: Gem. etm. temperatuur | G197: Gem. relatieve vochtigheid
B198: maand | C198: K.d | D198: K.d | E198: K.d | F198: °C | G198: %
B199: 1 | C199: 500.9 | D199: 550.99 | E199: 0 | F199: 1.841935484 | G199: 87.77419355
B200: 2 | C200: 480.9 | D200: 528.99 | E200: 0 | F200: 0.825 | G200: 84.21428571
B201: 3 | C201: 483.1 | D201: 483.1 | E201: 0 | F201: 2.416129032 | G201: 71.25806452
... 85 more rows

Sheet Twente 2000-2018
B2: 2000 | C2: Ongewogen graaddagen | D2: Gewogen graaddagen | E2: Koeldagen | F2: Gem. etm. temperatuur | G2: Gem. relatieve vochtigheid
B3: maand | C3: K.d | D3: K.d | E3: K.d | F3: °C | G3: %
B4: 1 | C4: 444.3 | D4: 488.73 | E4: 0 | F4: 3.667741935 | G4: 88.06451613
B5: 2 | C5: 369.8 | D5: 406.78 | E5: 0 | F5: 5.248275862 | G5: 83
B6: 3 | C6: 350.8 | D6: 350.8 | E6: 0 | F6: 6.306666667 | G6: 85.83333333
B7: 4 | C7: 242.8 | D7: 194.24 | E7: 0.6 | F7: 9.926666667 | G7: 73.96666667
B8: 5 | C8: 116.9 | D8: 93.52 | E8: 10.5 | F8: 14.56774194 | G8: 74.5483871
B9: 6 | C9: 87.2 | D9: 69.76 | E9: 25.7 | F9: 15.95 | G9: 75.03333333
B10: 7 | C10: 92.5 | D10: 74 | E10: 1.8 | F10: 15.07419355 | G10: 84.74193548
B11: 8 | C11: 42.7 | D11: 34.16 | E11: 13.4 | F11: 17.05483871 | G11: 80.29032258
B12: 9 | C12: 92.4 | D12: 73.92 | E12: 1.1 | F12: 14.95666667 | G12: 87.73333333
B13: 10 | C13: 208.2 | D13: 208.2 | E13: 0 | F13: 11.28387097 | G13: 87.67741935
B14: 11 | C14: 309.1 | D14: 340.01 | E14: 0 | F14: 7.696666667 | G14: 85.7
B15: 12 | C15: 422.4 | D15: 464.64 | E15: 0 | F15: 4.8 | G15: 87.375
B16: Totaal | C16: 2779.1 | D16: 2798.76 | E16: 53.1
B17: 2001 | C17: Ongewogen graaddagen | D17: Gewogen graaddagen | E17: Koeldagen | F17: Gem. etm. temperatuur | G17: Gem. relatieve vochtigheid
B18: maand | C18: K.d | D18: K.d | E18: K.d | F18: °C | G18: %
B19: 1 | C19: 490.5 | D19: 539.55 | E19: 0 | F19: 2.177419355 | G19: 91.5483871
B20: 2 | C20: 399.5 | D20: 439.45 | E20: 0 | F20: 3.732142857 | G20: 86.53571429
B21: 3 | C21: 427.3 | D21: 427.3 | E21: 0 | F21: 4.216129032 | G21: 86.51612903
B22: 4 | C22: 303.5 | D22: 242.8 | E22: 0 | F22: 7.883333333 | G22: 79.16666667
B23: 5 | C23: 125.2 | D23: 100.16 | E23: 0 | F23: 13.96129032 | G23: 71.41935484
B24: a | C24: 106.8 | D24: 85.44 | E24: 7.1 | F24: 14.67666667 | G24: 75.03333333
B25: 7 | C25: 34.1 | D25: 27.28 | E25: 43 | F25: 18.28709677 | G25: 78.19354839
B26: 8 | C26: 33.9 | D26: 27.12 | E26: 42.9 | F26: 18.29032258 | G26: 80.35483871
B27: 9 | C27: 156.9 | D27: 125.52 | E27: 0 | F27: 12.77 | G27: 88.76666667
B28: 10 | C28: 125.5 | D28: 125.5 | E28: 0 | F28: 13.9516129 | G28: 85.03225806
B29: 11 | C29: 357.3 | D29: 393.03 | E29: 0 | F29: 6.09 | G29: 91.26666667
B30: 12 | C30: 491.5 | D30: 540.65 | E30: 0 | F30: 2.14516129 | G30: 91.96774194
B31: Totaal | C31: 3052 | D31: 3073.8 | E31: 93
B32: 2002 | C32: Ongewogen graaddagen | D32: Gewogen graaddagen | E32: Koeldagen | F32: Gem. etm. temperatuur | G32: Gem. relatieve vochtigheid
B33: maand | C33: K.d | D33: K.d | E33: K.d | F33: °C | G33: %
B34: 1 | C34: 436.1 | D34: 479.71 | E34: 0 | F34: 3.932258065 | G34: 86.25806452
B35: 2 | C35: 322.2 | D35: 354.42 | E35: 0 | F35: 6.492857143 | G35: 79.46428571
B36: 3 | C36: 361 | D36: 361 | E36: 0 | F36: 6.35483871 | G36: 76.58064516
B37: 4 | C37: 273.5 | D37: 218.8 | E37: 0 | F37: 8.883333333 | G37: 72.53333333
B38: 5 | C38: 140.5 | D38: 112.4 | E38: 1.3 | F38: 13.50967742 | G38: 79.80645161
B39: 6 | C39: 56.9 | D39: 45.52 | E39: 17.5 | F39: 16.68666667 | G39: 76.9
B40: 7 | C40: 49.5 | D40: 39.6 | E40: 31 | F40: 17.40322581 | G40: 81.19354839
B41: 8 | C41: 14.9 | D41: 11.92 | E41: 32.2 | F41: 18.55806452 | G41: 85.90322581
B42: 9 | C42: 124.3 | D42: 99.44 | E42: 1.8 | F42: 13.91666667 | G42: 85.13333333
B43: 10 | C43: 292 | D43: 292 | E43: 0 | F43: 8.580645161 | G43: 87.58064516
B44: 11 | C44: 327.2 | D44: 359.92 | E44: 0 | F44: 7.093333333 | G44: 91.6
B45: 12 | C45: 509.9 | D45: 560.89 | E45: 0 | F45: 1.551612903 | G45: 88.16129032
B46: Totaal | C46: 2908 | D46: 2935.62 | E46: 83.8
B47: 2003 | C47: Ongewogen graaddagen | D47: Gewogen graaddagen | E47: Koeldagen | F47: Gem. etm. temperatuur | G47: Gem. relatieve vochtigheid
B48: maand | C48: K.d | D48: K.d | E48: K.d | F48: °C | G48: %
B49: 1 | C49: 508.1 | D49: 558.91 | E49: 0 | F49: 1.609677419 | G49: 86.16129032
B50: 2 | C50: 484.8 | D50: 533.28 | E50: 0 | F50: 0.6857142857 | G50: 78.21428571
B51: 3 | C51: 347.5 | D51: 347.5 | E51: 0 | F51: 6.790322581 | G51: 73.96774194
B52: 4 | C52: 261.5 | D52: 209.2 | E52: 0 | F52: 9.283333333 | G52: 64.1
B53: 5 | C53: 147.5 | D53: 118 | E53: 6.4 | F53: 13.4483871 | G53: 75.06451613
B54: 6 | C54: 27.6 | D54: 22.08 | E54: 25.9 | F54: 17.94333333 | G54: 72.76666667
B55: 7 | C55: 25.9 | D55: 20.72 | E55: 41.7 | F55: 18.50967742 | G55: 75.64516129
B56: 8 | C56: 29.1 | D56: 23.28 | E56: 69.3 | F56: 19.29677419 | G56: 71.93548387
B57: 9 | C57: 131.6 | D57: 105.28 | E57: 7.2 | F57: 13.85333333 | G57: 81.06666667
B58: 10 | C58: 354 | D58: 354 | E58: 0 | F58: 6.580645161 | G58: 86.41935484
B59: 11 | C59: 307.3 | D59: 338.03 | E59: 0 | F59: 7.756666667 | G59: 88.83333333
B60: 12 | C60: 455 | D60: 500.5 | E60: 0 | F60: 3.322580645 | G60: 88.41935484
B61: Totaal | C61: 3079.9 | D61: 3130.78 | E61: 150.5
B62: 2004 | C62: Ongewogen graaddagen | D62: Gewogen graaddagen | E62: Koeldagen | F62: Gem. etm. temperatuur | G62: Gem. relatieve vochtigheid
B63: maand | C63: K.d | D63: K.d | E63: K.d | F63: °C | G63: %
B64: 1 | C64: 472.8 | D64: 520.08 | E64: 0 | F64: 2.748387097 | G64: 87.25806452
B65: 2 | C65: 405.7 | D65: 446.27 | E65: 0 | F65: 4.010344828 | G65: 85
B66: 3 | C66: 385 | D66: 385 | E66: 0 | F66: 5.166666667 | G66: 78.53333333
B67: 4 | C67: 236.9 | D67: 189.52 | E67: 0 | F67: 10.10333333 | G67: 71.76666667
B68: 5 | C68: 195.3 | D68: 156.24 | E68: 0 | F68: 11.7 | G68: 75.74193548
B69: 6 | C69: 97 | D69: 77.6 | E69: 7.1 | F69: 15.00333333 | G69: 78.6
B70: 7 | C70: 62.7 | D70: 50.16 | E70: 13.5 | F70: 16.41290323 | G70: 80.70967742
B71: 8 | C71: 32.6 | D71: 26.08 | E71: 63.3 | F71: 18.99032258 | G71: 77.41935484
B72: 9 | C72: 96.6 | D72: 77.28 | E72: 6.2 | F72: 14.98666667 | G72: 79.03333333
B73: 10 | C73: 214.5 | D73: 214.5 | E73: 0 | F73: 11.08064516 | G73: 83.41935484
B74: 11 | C74: 373 | D74: 410.3 | E74: 0 | F74: 5.566666667 | G74: 91.73333333
B75: 12 | C75: 490.1 | D75: 539.11 | E75: 0 | F75: 2.684375 | G75: 91.84375
B76: Totaal | C76: 3062.2 | D76: 3092.14 | E76: 90.1
B77: 2005 | C77: Ongewogen graaddagen | D77: Gewogen graaddagen | E77: Koeldagen | F77: Gem. etm. temperatuur | G77: Gem. relatieve vochtigheid
B78: maand | C78: K.d | D78: K.d | E78: K.d | F78: °C | G78: %
B79: 1 | C79: 426.2 | D79: 468.82 | E79: 0 | F79: 4.251612903 | G79: 85.80645161
B80: 2 | C80: 465.3 | D80: 511.83 | E80: 0 | F80: 1.382142857 | G80: 83.82142857
B81: 3 | C81: 377.3 | D81: 377.3 | E81: 0 | F81: 5.829032258 | G81: 80.22580645
B82: 4 | C82: 233.2 | D82: 186.56 | E82: 0 | F82: 10.22666667 | G82: 71.73333333
B83: 5 | C83: 183.9 | D83: 147.12 | E83: 14.6 | F83: 12.53870968 | G83: 75.16129032
B84: 6 | C84: 81 | D84: 64.8 | E84: 26.8 | F84: 16.19333333 | G84: 72.13333333
B85: 7 | C85: 45.3 | D85: 36.24 | E85: 31.4 | F85: 17.5516129 | G85: 80.87096774
B86: 8 | C86: 83 | D86: 66.4 | E86: 10.8 | F86: 15.67096774 | G86: 82.35483871
B87: 9 | C87: 98.8 | D87: 79.04 | E87: 15.2 | F87: 15.21333333 | G87: 83.06666667
B88: 10 | C88: 159 | D88: 159 | E88: 0 | F88: 12.87096774 | G88: 84.70967742
B89: 11 | C89: 358 | D89: 393.8 | E89: 0 | F89: 6.066666667 | G89: 91.53333333
B90: 12 | C90: 454.7 | D90: 500.17 | E90: 0 | F90: 3.332258065 | G90: 91.48387097
B91: Totaal | C91: 2965.7 | D91: 2991.08 | E91: 98.8
B92: 2006 | C92: Ongewogen graaddagen | D92: Gewogen graaddagen | E92: Koeldagen | F92: Gem. etm. temperatuur | G92: Gem. relatieve vochtigheid
B93: maand | C93: K.d | D93: K.d | E93: K.d | F93: °C | G93: %
B94: 1 | C94: 547 | D94: 601.7 | E94: 0 | F94: 0.3548387097 | G94: 87.03225806
B95: 2 | C95: 454.4 | D95: 499.84 | E95: 0 | F95: 1.771428571 | G95: 87.14285714
B96: 3 | C96: 460.3 | D96: 460.3 | E96: 0 | F96: 3.151612903 | G96: 80.29032258
B97: 4 | C97: 284.3 | D97: 227.44 | E97: 0 | F97: 8.523333333 | G97: 76.23333333
B98: 5 | C98: 119.1 | D98: 95.28 | E98: 5.6 | F98: 14.33870968 | G98: 68.64516129
B99: 6 | C99: 68.5 | D99: 54.8 | E99: 31.4 | F99: 16.76333333 | G99: 70.5
B100: 7 | C100: 1.1 | D100: 0.88 | E100: 131.8 | F100: 22.21612903 | G100: 66.61290323
B101: 8 | C101: 70.8 | D101: 56.64 | E101: 6.2 | F101: 15.91612903 | G101: 84.48387097
B102: 9 | C102: 33.2 | D102: 26.56 | E102: 23.3 | F102: 17.67 | G102: 77.96666667
B103: 10 | C103: 137.8 | D103: 137.8 | E103: 0.4 | F103: 13.56774194 | G103: 84.51612903
B104: 11 | C104: 277.2 | D104: 304.92 | E104: 0 | F104: 8.76 | G104: 85.8
B105: 12 | C105: 365 | D105: 401.5 | E105: 0 | F105: 6.225806452 | G105: 87.35483871
B106: Totaal | C106: 2818.7 | D106: 2867.66 | E106: 198.7
B107: 2007 | C107: Ongewogen graaddagen | D107: Gewogen graaddagen | E107: Koeldagen | F107: Gem. etm. temperatuur | G107: Gem. relatieve vochtigheid
B108: maand | C108: K.d | D108: K.d | E108: K.d | F108: °C | G108: %
B109: 1 | C109: 367.6 | D109: 404.36 | E109: 0 | F109: 6.141935484 | G109: 83.67741935
B110: 2 | C110: 353.5 | D110: 388.85 | E110: 0 | F110: 5.375 | G110: 87.28571429
B111: 3 | C111: 328.6 | D111: 328.6 | E111: 0 | F111: 7.4 | G111: 76.09677419
B112: 4 | C112: 172.4 | D112: 137.92 | E112: 7.7 | F112: 12.51 | G112: 62.86666667
B113: 5 | C113: 128.3 | D113: 102.64 | E113: 0.4 | F113: 13.87419355 | G113: 77.35483871
B114: 6 | C114: 40.7 | D114: 32.56 | E114: 24 | F114: 17.44333333 | G114: 81.93333333
B115: 7 | C115: 56.2 | D115: 44.96 | E115: 21.2 | F115: 16.87096774 | G115: 81.83870968
B116: 8 | C116: 53.4 | D116: 42.72 | E116: 16.5 | F116: 16.80967742 | G116: 81.4516129
B117: 9 | C117: 141.6 | D117: 113.28 | E117: 0 | F117: 13.28 | G117: 85.63333333
B118: 10 | C118: 269.9 | D118: 269.9 | E118: 0 | F118: 9.293548387 | G118: 88.61290323
B119: 11 | C119: 355.9 | D119: 391.49 | E119: 0 | F119: 6.136666667 | G119: 88.2
B120: 12 | C120: 461.6 | D120: 507.76 | E120: 0 | F120: 3.109677419 | G120: 89.70967742
B121: Totaal | C121: 2729.7 | D121: 2765.04 | E121: 69.8
B122: 2008 | C122: Ongewogen graaddagen | D122: Gewogen graaddagen | E122: Koeldagen | F122: Gem. etm. temperatuur | G122: Gem. relatieve vochtigheid
B123: maand | C123: K.d | D123: K.d | E123: K.d | F123: °C | G123: %
B124: 1 | C124: 375.9 | D124: 413.49 | E124: 0 | F124: 5.874193548 | G124: 85.64516129
B125: 2 | C125: 385 | D125: 423.5 | E125: 0 | F125: 4.65 | G125: 79.82142857
B126: 3 | C126: 384.4 | D126: 384.4 | E126: 0 | F126: 5.238709677 | G126: 80.16129032
B127: 4 | C127: 297.1 | D127: 237.68 | E127: 0 | F127: 8.096666667 | G127: 73.96666667
B128: 5 | C128: 101.7 | D128: 81.36 | E128: 6.9 | F128: 14.94193548 | G128: 66.4516129
B129: 6 | C129: 64.6 | D129: 51.68 | E129: 14.2 | F129: 16.32 | G129: 73.63333333
B130: 7 | C130: 46.9 | D130: 37.52 | E130: 39.2 | F130: 17.7516129 | G130: 77.77419355
B131: 8 | C131: 35.3 | D131: 28.24 | E131: 17.3 | F131: 17.41935484 | G131: 80.41935484
B132: 9 | C132: 142.9 | D132: 114.32 | E132: 5.2 | F132: 13.41 | G132: 81.3
B133: 10 | C133: 251.1 | D133: 251.1 | E133: 0 | F133: 9.9 | G133: 88.06451613
B134: 11 | C134: 350.8 | D134: 385.88 | E134: 0 | F134: 6.306666667 | G134: 91.13333333
B135: 12 | C135: 521.1 | D135: 573.21 | E135: 0 | F135: 1.715625 | G135: 92.8125
B136: Totaal | C136: 2956.8 | D136: 2982.38 | E136: 82.8
B137: 2009 | C137: Ongewogen graaddagen | D137: Gewogen graaddagen | E137: Koeldagen | F137: Gem. etm. temperatuur | G137: Gem. relatieve vochtigheid
B138: maand | C138: K.d | D138: K.d | E138: K.d | F138: °C | G138: %
B139: 1 | C139: 556.3 | D139: 611.93 | E139: 0 | F139: 0.05483870968 | G139: 88.32258065
B140: 2 | C140: 430.5 | D140: 473.55 | E140: 0 | F140: 2.625 | G140: 91.07142857
B141: 3 | C141: 389 | D141: 389 | E141: 0 | F141: 5.451612903 | G141: 83.93548387
B142: 4 | C142: 163.7 | D142: 130.96 | E142: 0 | F142: 12.54333333 | G142: 71.33333333
B143: 5 | C143: 134 | D143: 107.2 | E143: 0 | F143: 13.67741935 | G143: 69.83870968
B144: 6 | C144: 100.3 | D144: 80.24 | E144: 18.1 | F144: 15.26 | G144: 73.26666667
B145: 7 | C145: 38.7 | D145: 30.96 | E145: 32.8 | F145: 17.80967742 | G145: 75.90322581
B146: 8 | C146: 27.4 | D146: 21.92 | E146: 33.3 | F146: 18.19032258 | G146: 74.87096774
B147: 9 | C147: 111.1 | D147: 88.88 | E147: 1.6 | F147: 14.35 | G147: 82.36666667
B148: 10 | C148: 270.1 | D148: 270.1 | E148: 0 | F148: 9.287096774 | G148: 85.5483871
B149: 11 | C149: 259.4 | D149: 285.34 | E149: 0 | F149: 9.353333333 | G149: 84.4
B150: 12 | C150: 505 | D150: 555.5 | E150: 0 | F150: 1.709677419 | G150: 87.12903226
B151: Totaal | C151: 2985.5 | D151: 3045.58 | E151: 85.8
B152: 2010 | C152: Ongewogen graaddagen | D152: Gewogen graaddagen | E152: Koeldagen | F152: Gem. etm. temperatuur | G152: Gem. relatieve vochtigheid
B153: maand | C153: K.d | D153: K.d | E153: K.d | F153: °C | G153: %
B154: 1 | C154: 611.6 | D154: 672.76 | E154: 0 | F154: -1.729032258 | G154: 88.19354839
B155: 2 | C155: 479.4 | D155: 527.34 | E155: 0 | F155: 0.8785714286 | G155: 85.82142857
B156: 3 | C156: 378.3 | D156: 378.3 | E156: 0 | F156: 5.796774194 | G156: 76.25806452
B157: 4 | C157: 262.3 | D157: 209.84 | E157: 1.3 | F157: 9.3 | G157: 67.33333333
B158: 5 | C158: 246.6 | D158: 197.28 | E158: 0 | F158: 10.04516129 | G158: 77.83870968
B159: 6 | C159: 65.8 | D159: 52.64 | E159: 19.2 | F159: 16.44666667 | G159: 68.96666667
B160: 7 | C160: 15 | D160: 12 | E160: 87.9 | F160: 20.3516129 | G160: 66.19354839
B161: 8 | C161: 62 | D161: 49.6 | E161: 11.3 | F161: 16.36451613 | G161: 80.70967742
B162: 9 | C162: 160.8 | D162: 128.64 | E162: 0 | F162: 12.64 | G162: 85.36666667
B163: 10 | C163: 262.4 | D163: 262.4 | E163: 0.2 | F163: 9.5 | G163: 85.9
B164: 11 | C164: 384.3 | D164: 422.7 | E164: 0 | F164: 5.2 | G164: 90.1
B165: 12 | C165: 643.2 | D165: 707.5 | E165: 0 | F165: -2.7 | G165: 91.1
B166: Totaal | C166: =SUM(C154:C165) -> 3571.7 | D166: =SUM(D154:D165) -> 3621 | E166: =SUM(E154:E165) -> 119.9
B167: 2011 | C167: Ongewogen graaddagen | D167: Gewogen graaddagen | E167: Koeldagen | F167: Gem. etm. temperatuur | G167: Gem. relatieve vochtigheid
B168: maand | C168: K.d | D168: K.d | E168: K.d | F168: °C | G168: %
B169: 1 | C169: 475.1 | D169: 522.6 | E169: 0 | F169: 2.7 | G169: 91.1
B170: 2 | C170: 402 | D170: 442.2 | E170: 0 | F170: 3.642857143 | G170: 83.75
B171: 3 | C171: 397.2 | D171: 397.2 | E171: 0 | F171: 5.187096774 | G171: 77.80645161
B172: 4 | C172: 169.8 | D172: 135.84 | E172: 0.6 | F172: 12.36 | G172: 69
B173: 5 | C173: 137.6 | D173: 110.08 | E173: 8.2 | F173: 13.82580645 | G173: 66.67741935
B174: 6 | C174: 75 | D174: 60 | E174: 22.2 | F174: 16.24 | G174: 76.26666667
B175: 7 | C175: 71.2 | D175: 56.96 | E175: 1.7 | F175: 15.75806452 | G175: 78.09677419
B176: 8 | C176: 53.8 | D176: 43.04 | E176: 17.4 | F176: 16.82580645 | G176: 84.22580645
B177: 9 | C177: 91.2 | D177: 72.96 | E177: 8.3 | F177: 15.23666667 | G177: 83.93333333
B178: 10 | C178: 228.9 | D178: 228.9 | E178: 0 | F178: 10.61612903 | G178: 84.80645161
B179: 11 | C179: 360.3 | D179: 396.33 | E179: 0 | F179: 5.99 | G179: 89.26666667
B180: 12 | C180: 386.8 | D180: 425.48 | E180: 0 | F180: 5.522580645 | G180: 88
B181: Totaal | C181: =SUM(C169:C180) -> 2848.9 | D181: =SUM(D169:D180) -> 2891.59 | E181: =SUM(E169:E180) -> 58.4
B182: 2012 | C182: Ongewogen graaddagen | D182: Gewogen graaddagen | E182: Koeldagen | F182: Gem. etm. temperatuur | G182: Gem. relatieve vochtigheid
B183: maand | C183: K.d | D183: K.d | E183: K.d | F183: °C | G183: %
B184: 1 | C184: 445.2 | D184: 489.72 | E184: 0 | F184: 3.638709677 | G184: 87.41935484
B185: 2 | C185: 518 | D185: 569.8 | E185: 0 | F185: 0.1379310345 | G185: 81.89655172
B186: 3 | C186: 318.2 | D186: 318.2 | E186: 0 | F186: 7.735483871 | G186: 81.90322581
B187: 4 | C187: 293.8 | D187: 235.04 | E187: 0 | F187: 8.206666667 | G187: 77.93333333
B188: 5 | C188: 125.3 | D188: 100.24 | E188: 16.3 | F188: 14.48387097 | G188: 71.67741935
B189: 6 | C189: 111.4 | D189: 89.12 | E189: 7.2 | F189: 14.52666667 | G189: 78.3
B190: 7 | C190: 59.1 | D190: 47.28 | E190: 26.1 | F190: 16.93548387 | G190: 77.80645161
B191: 8 | C191: 27.9 | D191: 22.32 | E191: 40.1 | F191: 18.39354839 | G191: 75.09677419
B192: 9 | C192: 139.8 | D192: 111.84 | E192: 2.5 | F192: 13.42333333 | G192: 81.3
B193: 10 | C193: 260.2 | D193: 260.2 | E193: 0.1 | F193: 9.609677419 | G193: 84.64516129
B194: 11 | C194: 347.9 | D194: 382.69 | E194: 0 | F194: 6.403333333 | G194: 88.06666667
B195: 12 | C195: 430.6 | D195: 473.66 | E195: 0 | F195: 4.109677419 | G195: 89.5483871
B196: Totaal | C196: =SUM(C184:C195) -> 3077.4 | D196: =SUM(D184:D195) -> 3100.11 | E196: =SUM(E184:E195) -> 92.3
B197: 2013 | C197: Ongewogen graaddagen | D197: Gewogen graaddagen | E197: Koeldagen | F197: Gem. etm. temperatuur | G197: Gem. relatieve vochtigheid
B198: maand | C198: K.d | D198: K.d | E198: K.d | F198: °C | G198: %
B199: 1 | C199: 511.6 | D199: 562.76 | E199: 0 | F199: 1.496774194 | G199: 88.41935484
B200: 2 | C200: 479.3 | D200: 527.23 | E200: 0 | F200: 0.8821428571 | G200: 84.71428571
B201: 3 | C201: 521 | D201: 521 | E201: 0 | F201: 1.193548387 | G201: 70.48387097
... 85 more rows

Sheet Vlissingen 2000-2018
B2: 2000 | C2: Ongewogen graaddagen | D2: Gewogen graaddagen | E2: Koeldagen | F2: Gem. etm. temperatuur | G2: Gem. relatieve vochtigheid
B3: maand | C3: K.d | D3: K.d | E3: K.d | F3: °C | G3: %
B4: 1 | C4: 405.8 | D4: 446.38 | E4: 0 | F4: 4.909677419 | G4: 89.41935484
B5: 2 | C5: 338.3 | D5: 372.13 | E5: 0 | F5: 6.334482759 | G5: 85.79310345
B6: 3 | C6: 321.3 | D6: 321.3 | E6: 0 | F6: 7.29 | G6: 85.06666667
B7: 4 | C7: 257.9 | D7: 206.32 | E7: 0 | F7: 9.403333333 | G7: 79.03333333
B8: 5 | C8: 120.1 | D8: 96.08 | E8: 3.5 | F8: 14.23870968 | G8: 79
B9: 6 | C9: 75.9 | D9: 60.72 | E9: 14.5 | F9: 15.95333333 | G9: 75.53333333
B10: 7 | C10: 71.1 | D10: 56.88 | E10: 1.1 | F10: 15.74193548 | G10: 80.51612903
B11: 8 | C11: 12.6 | D11: 10.08 | E11: 20.9 | F11: 18.26774194 | G11: 77.61290323
B12: 9 | C12: 35.4 | D12: 28.32 | E12: 4.9 | F12: 16.98333333 | G12: 80.03333333
B13: 10 | C13: 165.7 | D13: 165.7 | E13: 0 | F13: 12.65483871 | G13: 82.5483871
B14: 11 | C14: 284.8 | D14: 313.28 | E14: 0 | F14: 8.506666667 | G14: 87.2
B15: 12 | C15: 372.4 | D15: 409.64 | E15: 0 | F15: 6.3625 | G15: 85.25
B16: Totaal | C16: 2461.3 | D16: 2486.83 | E16: 44.9
B17: 2001 | C17: Ongewogen graaddagen | D17: Gewogen graaddagen | E17: Koeldagen | F17: Gem. etm. temperatuur | G17: Gem. relatieve vochtigheid
B18: maand | C18: K.d | D18: K.d | E18: K.d | F18: °C | G18: %
B19: 1 | C19: 439.6 | D19: 483.56 | E19: 0 | F19: 3.819354839 | G19: 86.51612903
B20: 2 | C20: 356.7 | D20: 392.37 | E20: 0 | F20: 5.260714286 | G20: 86.25
B21: 3 | C21: 377.6 | D21: 377.6 | E21: 0 | F21: 5.819354839 | G21: 85.51612903
B22: 4 | C22: 290.3 | D22: 232.24 | E22: 0 | F22: 8.323333333 | G22: 80
B23: 5 | C23: 127.6 | D23: 102.08 | E23: 2.7 | F23: 13.97096774 | G23: 73.38709677
B24: 6 | C24: 83.4 | D24: 66.72 | E24: 10.4 | F24: 15.56666667 | G24: 72.96666667
B25: 7 | C25: 21.2 | D25: 16.96 | E25: 42.6 | F25: 18.69032258 | G25: 78.12903226
B26: 8 | C26: 11.4 | D26: 9.12 | E26: 44.7 | F26: 19.07419355 | G26: 77.5483871
B27: 9 | C27: 103.3 | D27: 82.64 | E27: 0 | F27: 14.55666667 | G27: 82.2
B28: 10 | C28: 96.4 | D28: 96.4 | E28: 0 | F28: 14.89032258 | G28: 85.83870968
B29: 11 | C29: 277.2 | D29: 304.92 | E29: 0 | F29: 8.76 | G29: 84.1
B30: 12 | C30: 417.7 | D30: 459.47 | E30: 0 | F30: 4.525806452 | G30: 86.19354839
B31: Totaal | C31: 2602.4 | D31: 2624.08 | E31: 100.4
B32: 2002 | C32: Ongewogen graaddagen | D32: Gewogen graaddagen | E32: Koeldagen | F32: Gem. etm. temperatuur | G32: Gem. relatieve vochtigheid
B33: maand | C33: K.d | D33: K.d | E33: K.d | F33: °C | G33: %
B34: 1 | C34: 404 | D34: 444.4 | E34: 0 | F34: 4.967741935 | G34: 89.74193548
B35: 2 | C35: 290 | D35: 319 | E35: 0 | F35: 7.642857143 | G35: 81.60714286
B36: 3 | C36: 313.3 | D36: 313.3 | E36: 0 | F36: 7.893548387 | G36: 80.93548387
B37: 4 | C37: 249.3 | D37: 199.44 | E37: 0 | F37: 9.69 | G37: 75.6
B38: 5 | C38: 162.7 | D38: 130.16 | E38: 0.1 | F38: 12.75483871 | G38: 81
B39: 6 | C39: 56.9 | D39: 45.52 | E39: 5.9 | F39: 16.3 | G39: 78.03333333
B40: 7 | C40: 43.3 | D40: 34.64 | E40: 23.6 | F40: 17.36451613 | G40: 80.32258065
B41: 8 | C41: 5.6 | D41: 4.48 | E41: 40.3 | F41: 19.11935484 | G41: 80.38709677
B42: 9 | C42: 55.6 | D42: 44.48 | E42: 0.1 | F42: 16.15 | G42: 76.56666667
B43: 10 | C43: 195.5 | D43: 195.5 | E43: 0 | F43: 11.69354839 | G43: 80.41935484
B44: 11 | C44: 253 | D44: 278.3 | E44: 0 | F44: 9.566666667 | G44: 89.1
B45: 12 | C45: 420.5 | D45: 462.55 | E45: 0 | F45: 4.435483871 | G45: 91.19354839
B46: Totaal | C46: 2449.7 | D46: 2471.77 | E46: 70
B47: 2003 | C47: Ongewogen graaddagen | D47: Gewogen graaddagen | E47: Koeldagen | F47: Gem. etm. temperatuur | G47: Gem. relatieve vochtigheid
B48: maand | C48: K.d | D48: K.d | E48: K.d | F48: °C | G48: %
B49: 1 | C49: 450.9 | D49: 495.99 | E49: 0 | F49: 3.45483871 | G49: 86.25806452
B50: 2 | C50: 417.2 | D50: 458.92 | E50: 0 | F50: 3.1 | G50: 82.17857143
B51: 3 | C51: 323 | D51: 323 | E51: 0 | F51: 7.580645161 | G51: 81.03225806
B52: 4 | C52: 238.1 | D52: 190.48 | E52: 0 | F52: 10.06333333 | G52: 71.1
B53: 5 | C53: 143 | D53: 114.4 | E53: 4.1 | F53: 13.51935484 | G53: 79.4516129
B54: 6 | C54: 11.3 | D54: 9.04 | E54: 17.1 | F54: 18.19333333 | G54: 77.2
B55: 7 | C55: 9.2 | D55: 7.36 | E55: 49.2 | F55: 19.29032258 | G55: 75.35483871
B56: 8 | C56: 10 | D56: 8 | E56: 71.7 | F56: 19.99032258 | G56: 74.93548387
B57: 9 | C57: 51.5 | D57: 41.2 | E57: 9.1 | F57: 16.58666667 | G57: 75.5
B58: 10 | C58: 256.3 | D58: 256.3 | E58: 0 | F58: 9.732258065 | G58: 79.61290323
B59: 11 | C59: 276.8 | D59: 304.48 | E59: 0 | F59: 8.773333333 | G59: 91.13333333
B60: 12 | C60: 385.3 | D60: 423.83 | E60: 0 | F60: 5.570967742 | G60: 88.61290323
B61: Totaal | C61: 2572.6 | D61: 2633 | E61: 151.2
B62: 2004 | C62: Ongewogen graaddagen | D62: Gewogen graaddagen | E62: Koeldagen | F62: Gem. etm. temperatuur | G62: Gem. relatieve vochtigheid
B63: maand | C63: K.d | D63: K.d | E63: K.d | F63: °C | G63: %
B64: 1 | C64: 410.2 | D64: 451.22 | E64: 0 | F64: 4.767741935 | G64: 87.90322581
B65: 2 | C65: 362.2 | D65: 398.42 | E65: 0 | F65: 5.510344828 | G65: 82.72413793
B66: 3 | C66: 351.5 | D66: 351.5 | E66: 0 | F66: 6.283333333 | G66: 80.43333333
B67: 4 | C67: 225.5 | D67: 180.4 | E67: 0 | F67: 10.48333333 | G67: 74.93333333
B68: 5 | C68: 170.1 | D68: 136.08 | E68: 0 | F68: 12.51290323 | G68: 75.74193548
B69: 6 | C69: 62.9 | D69: 50.32 | E69: 5.4 | F69: 16.08333333 | G69: 76.26666667
B70: 7 | C70: 36.9 | D70: 29.52 | E70: 16.8 | F70: 17.3516129 | G70: 76.96774194
B71: 8 | C71: 9.7 | D71: 7.76 | E71: 58.6 | F71: 19.57741935 | G71: 78.64516129
B72: 9 | C72: 52 | D72: 41.6 | E72: 15.1 | F72: 16.77 | G72: 75.66666667
B73: 10 | C73: 166.8 | D73: 166.8 | E73: 0 | F73: 12.61935484 | G73: 82.38709677
B74: 11 | C74: 292.1 | D74: 321.31 | E74: 0 | F74: 8.263333333 | G74: 83.9
B75: 12 | C75: 420.4 | D75: 462.44 | E75: 0 | F75: 4.8625 | G75: 89.3125
B76: Totaal | C76: 2560.3 | D76: 2597.37 | E76: 95.9
B77: 2005 | C77: Ongewogen graaddagen | D77: Gewogen graaddagen | E77: Koeldagen | F77: Gem. etm. temperatuur | G77: Gem. relatieve vochtigheid
B78: maand | C78: K.d | D78: K.d | E78: K.d | F78: °C | G78: %
B79: 1 | C79: 372.4 | D79: 409.64 | E79: 0 | F79: 5.987096774 | G79: 83.64516129
B80: 2 | C80: 407.6 | D80: 448.36 | E80: 0 | F80: 3.442857143 | G80: 81.96428571
B81: 3 | C81: 367.9 | D81: 367.9 | E81: 0 | F81: 6.132258065 | G81: 86.83870968
B82: 4 | C82: 240.7 | D82: 192.56 | E82: 0 | F82: 9.976666667 | G82: 80.53333333
B83: 5 | C83: 179.1 | D83: 143.28 | E83: 2.1 | F83: 12.29032258 | G83: 76.96774194
B84: 6 | C84: 66 | D84: 52.8 | E84: 31.5 | F84: 16.85 | G84: 73.4
B85: 7 | C85: 22.3 | D85: 17.84 | E85: 19.8 | F85: 17.91935484 | G85: 79.67741935
B86: 8 | C86: 36.1 | D86: 28.88 | E86: 12.4 | F86: 17.23548387 | G86: 78.03225806
B87: 9 | C87: 42.6 | D87: 34.08 | E87: 19.9 | F87: 17.24333333 | G87: 79.73333333
B88: 10 | C88: 106 | D88: 106 | E88: 0 | F88: 14.58064516 | G88: 84.74193548
B89: 11 | C89: 281.4 | D89: 309.54 | E89: 0 | F89: 8.62 | G89: 85.03333333
B90: 12 | C90: 397.3 | D90: 437.03 | E90: 0 | F90: 5.183870968 | G90: 87.06451613
B91: Totaal | C91: 2519.4 | D91: 2547.91 | E91: 85.7
B92: 2006 | C92: Ongewogen graaddagen | D92: Gewogen graaddagen | E92: Koeldagen | F92: Gem. etm. temperatuur | G92: Gem. relatieve vochtigheid
B93: maand | C93: K.d | D93: K.d | E93: K.d | F93: °C | G93: %
B94: 1 | C94: 468.3 | D94: 515.13 | E94: 0 | F94: 2.893548387 | G94: 85.83870968
B95: 2 | C95: 411.1 | D95: 452.21 | E95: 0 | F95: 3.317857143 | G95: 87.42857143
B96: 3 | C96: 421.4 | D96: 421.4 | E96: 0 | F96: 4.406451613 | G96: 81.09677419
B97: 4 | C97: 279.9 | D97: 223.92 | E97: 0 | F97: 8.67 | G97: 81.53333333
B98: 5 | C98: 146.7 | D98: 117.36 | E98: 0 | F98: 13.26774194 | G98: 81.74193548
B99: 6 | C99: 74.3 | D99: 59.44 | E99: 20.7 | F99: 16.21333333 | G99: 74.6
B100: 7 | C100: 0 | D100: 0 | E100: 128.9 | F100: 22.15806452 | G100: 69.93548387
B101: 8 | C101: 25.1 | D101: 20.08 | E101: 8.1 | F101: 17.4516129 | G101: 80.03225806
B102: 9 | C102: 9 | D102: 7.2 | E102: 30.6 | F102: 18.72 | G102: 81.03333333
B103: 10 | C103: 97.3 | D103: 97.3 | E103: 0 | F103: 14.86129032 | G103: 84.93548387
B104: 11 | C104: 229.2 | D104: 252.12 | E104: 0 | F104: 10.36 | G104: 84.06666667
B105: 12 | C105: 337.7 | D105: 371.47 | E105: 0 | F105: 7.106451613 | G105: 88.22580645
B106: Totaal | C106: 2500 | D106: 2537.63 | E106: 188.3
B107: 2007 | C107: Ongewogen graaddagen | D107: Gewogen graaddagen | E107: Koeldagen | F107: Gem. etm. temperatuur | G107: Gem. relatieve vochtigheid
B108: maand | C108: K.d | D108: K.d | E108: K.d | F108: °C | G108: %
B109: 1 | C109: 316 | D109: 347.6 | E109: 0 | F109: 7.806451613 | G109: 85.16129032
B110: 2 | C110: 313.3 | D110: 344.63 | E110: 0 | F110: 6.810714286 | G110: 88.75
B111: 3 | C111: 295.5 | D111: 295.5 | E111: 0 | F111: 8.467741935 | G111: 80.09677419
B112: 4 | C112: 158.1 | D112: 126.48 | E112: 0.1 | F112: 12.73333333 | G112: 72.06666667
B113: 5 | C113: 122.9 | D113: 98.32 | E113: 0 | F113: 14.03548387 | G113: 78.06451613
B114: 6 | C114: 41.9 | D114: 33.52 | E114: 5.7 | F114: 16.79333333 | G114: 81.8
B115: 7 | C115: 36.2 | D115: 28.96 | E115: 8.7 | F115: 17.11290323 | G115: 79.32258065
B116: 8 | C116: 21.5 | D116: 17.2 | E116: 14.1 | F116: 17.76129032 | G116: 77.74193548
B117: 9 | C117: 77.4 | D117: 61.92 | E117: 0.1 | F117: 15.42333333 | G117: 79.83333333
B118: 10 | C118: 195.5 | D118: 195.5 | E118: 0 | F118: 11.69354839 | G118: 84.58064516
B119: 11 | C119: 285.2 | D119: 313.72 | E119: 0 | F119: 8.493333333 | G119: 83.6
B120: 12 | C120: 403.6 | D120: 443.96 | E120: 0 | F120: 4.980645161 | G120: 88
B121: Totaal | C121: 2267.1 | D121: 2307.31 | E121: 28.7
B122: 2008 | C122: Ongewogen graaddagen | D122: Gewogen graaddagen | E122: Koeldagen | F122: Gem. etm. temperatuur | G122: Gem. relatieve vochtigheid
B123: maand | C123: K.d | D123: K.d | E123: K.d | F123: °C | G123: %
B124: 1 | C124: 347.4 | D124: 382.14 | E124: 0 | F124: 6.793548387 | G124: 87.51612903
B125: 2 | C125: 347.3 | D125: 382.03 | E125: 0 | F125: 5.957142857 | G125: 81.32142857
B126: 3 | C126: 345.8 | D126: 345.8 | E126: 0 | F126: 6.519354839 | G126: 82.16129032
B127: 4 | C127: 267.1 | D127: 213.68 | E127: 0 | F127: 9.096666667 | G127: 76.2
B128: 5 | C128: 78.8 | D128: 63.04 | E128: 7.9 | F128: 15.71290323 | G128: 70.06451613
B129: 6 | C129: 70.9 | D129: 56.72 | E129: 0.7 | F129: 15.66 | G129: 78.1
B130: 7 | C130: 30.5 | D130: 24.4 | E130: 26.2 | F130: 17.86129032 | G130: 78.90322581
B131: 8 | C131: 17.4 | D131: 13.92 | E131: 16 | F131: 17.95483871 | G131: 83.70967742
B132: 9 | C132: 90.1 | D132: 72.08 | E132: 2.8 | F132: 15.09 | G132: 81.36666667
B133: 10 | C133: 190.7 | D133: 190.7 | E133: 0 | F133: 11.8483871 | G133: 84.5483871
B134: 11 | C134: 296.3 | D134: 325.93 | E134: 0 | F134: 8.123333333 | G134: 89.9
B135: 12 | C135: 462.7 | D135: 508.97 | E135: 0 | F135: 3.540625 | G135: 91.5625
B136: Totaal | C136: 2545 | D136: 2579.41 | E136: 53.6
B137: 2009 | C137: Ongewogen graaddagen | D137: Gewogen graaddagen | E137: Koeldagen | F137: Gem. etm. temperatuur | G137: Gem. relatieve vochtigheid
B138: maand | C138: K.d | D138: K.d | E138: K.d | F138: °C | G138: %
B139: 1 | C139: 506.9 | D139: 557.59 | E139: 0 | F139: 1.648387097 | G139: 89.38709677
B140: 2 | C140: 404.5 | D140: 444.95 | E140: 0 | F140: 3.553571429 | G140: 89.75
B141: 3 | C141: 351.4 | D141: 351.4 | E141: 0 | F141: 6.664516129 | G141: 82.61290323
B142: 4 | C142: 200.8 | D142: 160.64 | E142: 0 | F142: 11.30666667 | G142: 79.63333333
B143: 5 | C143: 124.9 | D143: 99.92 | E143: 0 | F143: 13.97096774 | G143: 75.25806452
B144: 6 | C144: 72.2 | D144: 57.76 | E144: 8 | F144: 15.86 | G144: 74.53333333
B145: 7 | C145: 16.9 | D145: 13.52 | E145: 22.4 | F145: 18.17741935 | G145: 75.38709677
B146: 8 | C146: 5.6 | D146: 4.48 | E146: 46.8 | F146: 19.32903226 | G146: 71.70967742
B147: 9 | C147: 48.4 | D147: 38.72 | E147: 5.9 | F147: 16.58333333 | G147: 75.86666667
B148: 10 | C148: 170.3 | D148: 170.3 | E148: 0 | F148: 12.50645161 | G148: 80.29032258
B149: 11 | C149: 234 | D149: 257.4 | E149: 0 | F149: 10.2 | G149: 84.76666667
B150: 12 | C150: 438.8 | D150: 482.68 | E150: 0 | F150: 3.84516129 | G150: 87.12903226
B151: Totaal | C151: 2574.7 | D151: 2639.36 | E151: 83.1
B152: 2010 | C152: Ongewogen graaddagen | D152: Gewogen graaddagen | E152: Koeldagen | F152: Gem. etm. temperatuur | G152: Gem. relatieve vochtigheid
B153: maand | C153: K.d | D153: K.d | E153: K.d | F153: °C | G153: %
B154: 1 | C154: 527.3 | D154: 580.03 | E154: 0 | F154: 0.9903225806 | G154: 89
B155: 2 | C155: 440.8 | D155: 484.88 | E155: 0 | F155: 2.257142857 | G155: 87.89285714
B156: 3 | C156: 375.2 | D156: 375.2 | E156: 0 | F156: 5.896774194 | G156: 80.77419355
B157: 4 | C157: 256.9 | D157: 205.52 | E157: 0 | F157: 9.436666667 | G157: 74.13333333
B158: 5 | C158: 223.8 | D158: 179.04 | E158: 0 | F158: 10.78064516 | G158: 77.09677419
B159: 6 | C159: 66.4 | D159: 53.12 | E159: 14.5 | F159: 16.27 | G159: 75.73333333
B160: 7 | C160: 3.3 | D160: 2.64 | E160: 51.2 | F160: 19.54516129 | G160: 73.4516129
B161: 8 | C161: 24.3 | D161: 19.44 | E161: 9.4 | F161: 17.51935484 | G161: 78.64516129
B162: 9 | C162: 89.7 | D162: 71.76 | E162: 0 | F162: 15.01 | G162: 81
B163: 10 | C163: 190.6 | D163: 190.6 | E163: 0 | F163: 11.9 | G163: 82.7
B164: 11 | C164: 330.1 | D164: 363.1 | E164: 0 | F164: 7 | G164: 88.3
B165: 12 | C165: 533 | D165: 586.3 | E165: 0 | F165: 0.8 | G165: 88.8
B166: Totaal | C166: =SUM(C154:C165) -> 3061.4 | D166: =SUM(D154:D165) -> 3111.63 | E166: =SUM(E154:E165) -> 75.1
B167: 2011 | C167: Ongewogen graaddagen | D167: Gewogen graaddagen | E167: Koeldagen | F167: Gem. etm. temperatuur | G167: Gem. relatieve vochtigheid
B168: maand | C168: K.d | D168: K.d | E168: K.d | F168: °C | G168: %
B169: 1 | C169: 433.9 | D169: 477.3 | E169: 0 | F169: 4 | G169: 90.5
B170: 2 | C170: 354.4 | D170: 389.84 | E170: 0 | F170: 5.342857143 | G170: 89.25
B171: 3 | C171: 343.5 | D171: 343.5 | E171: 0 | F171: 6.919354839 | G171: 81.16129032
B172: 4 | C172: 147.9 | D172: 118.32 | E172: 1.5 | F172: 13.12 | G172: 71.66666667
B173: 5 | C173: 119.7 | D173: 95.76 | E173: 0 | F173: 14.13870968 | G173: 69.90322581
B174: 6 | C174: 71.5 | D174: 57.2 | E174: 13.2 | F174: 16.05666667 | G174: 77.1
B175: 7 | C175: 54.6 | D175: 43.68 | E175: 2.4 | F175: 16.31612903 | G175: 76.83870968
B176: 8 | C176: 28.6 | D176: 22.88 | E176: 9.6 | F176: 17.38709677 | G176: 80.70967742
B177: 9 | C177: 48.4 | D177: 38.72 | E177: 8.5 | F177: 16.67 | G177: 83.23333333
B178: 10 | C178: 146.6 | D178: 146.6 | E178: 4.1 | F178: 13.40322581 | G178: 81.41935484
B179: 11 | C179: 259.1 | D179: 285.01 | E179: 0 | F179: 9.363333333 | G179: 89.53333333
B180: 12 | C180: 338.2 | D180: 372.02 | E180: 0 | F180: 7.090322581 | G180: 83.38709677
B181: Totaal | C181: =SUM(C169:C180) -> 2346.4 | D181: =SUM(D169:D180) -> 2390.83 | E181: =SUM(E169:E180) -> 39.3
B182: 2012 | C182: Ongewogen graaddagen | D182: Gewogen graaddagen | E182: Koeldagen | F182: Gem. etm. temperatuur | G182: Gem. relatieve vochtigheid
B183: maand | C183: K.d | D183: K.d | E183: K.d | F183: °C | G183: %
B184: 1 | C184: 376.5 | D184: 414.15 | E184: 0 | F184: 5.85483871 | G184: 85.41935484
B185: 2 | C185: 480.9 | D185: 528.99 | E185: 0 | F185: 1.417241379 | G185: 83.5862069
B186: 3 | C186: 312.7 | D186: 312.7 | E186: 0 | F186: 7.912903226 | G186: 85.80645161
B187: 4 | C187: 283.5 | D187: 226.8 | E187: 0 | F187: 8.55 | G187: 80.9
B188: 5 | C188: 155.6 | D188: 124.48 | E188: 7.2 | F188: 13.21290323 | G188: 78.83870968
B189: 6 | C189: 86.8 | D189: 69.44 | E189: 2.9 | F189: 15.20333333 | G189: 77.63333333
B190: 7 | C190: 41.1 | D190: 32.88 | E190: 19.6 | F190: 17.30645161 | G190: 79.70967742
B191: 8 | C191: 10 | D191: 8 | E191: 36.5 | F191: 18.85483871 | G191: 77.96774194
B192: 9 | C192: 78.5 | D192: 62.8 | E192: 4.7 | F192: 15.54 | G192: 77.4
B193: 10 | C193: 193.4 | D193: 193.4 | E193: 0 | F193: 11.76129032 | G193: 85.16129032
B194: 11 | C194: 301.5 | D194: 331.65 | E194: 0 | F194: 7.95 | G194: 86.43333333
B195: 12 | C195: 376.6 | D195: 414.26 | E195: 0 | F195: 5.851612903 | G195: 85.83870968
B196: Totaal | C196: =SUM(C184:C195) -> 2697.1 | D196: =SUM(D184:D195) -> 2719.55 | E196: =SUM(E184:E195) -> 70.9
B197: 2013 | C197: Ongewogen graaddagen | D197: Gewogen graaddagen | E197: Koeldagen | F197: Gem. etm. temperatuur | G197: Gem. relatieve vochtigheid
B198: maand | C198: K.d | D198: K.d | E198: K.d | F198: °C | G198: %
B199: 1 | C199: 473.3 | D199: 520.63 | E199: 0 | F199: 2.732258065 | G199: 85.74193548
B200: 2 | C200: 441 | D200: 485.1 | E200: 0 | F200: 2.25 | G200: 81.92857143
B201: 3 | C201: 465.1 | D201: 465.1 | E201: 0 | F201: 2.996774194 | G201: 73.48387097
... 85 more rows
